Workbook

Sheet Instructions
A1: 2020-11-18
B2: I. Introduction
B4: The following presents brief instructions for understanding and operating the various worksheets. The primary goal is to accurately reproduce the GPL model in a spreadsheet form. However, an additional tool is included to calculate soil equilibrium concentrations. The document A Screening Method to Determine Soil Concentrations Protective of Groundwater Quality, September 1996 should be consulted for additional information.
B6: Minimum GPL for VOCs: This table shows the minimum GPLs using the revised 2007 chemical properties.
B8: Default GPL Metals: This table shows default metals GPLs per ADEQ’s Guidance: A Screening Method to Determine Soil Concentrations Protective of Groundwater Quality, September 1996 (Table 4, page 35).
B10: Alt-GPL Calc for VOCs: The input and output worksheet to calculate alternative GPLs for VOCs. Drop down boxes are provided to enter chemical (cell K6) and soil (cell K15) type. The selection made from these drop down boxes affects certain chemical and soil parameters (cells K7-10, K16-18). Selecting a listed chemical and/or soil will cause a GPL to be calculated using the parameters included on the Lookup Table worksheet. Selecting "Enter Chemical Properties" and/or "New Soil Type" will cause a GPL to be calculated using data entered by the user on the Alt-GPL Calc for VOCs worksheet. Upon selecting the button “Run GPL”, a dialog box will appear. The dialog box contains check box 1 to use minimum GPL default values (cells K19 through K31) and check boxes 2 and 3 to use default chemical half-life values (cells K11, K12). Selecting any of these check boxes will overwrite user-entered values.
B12: Alt-GPL Calc for Metals: The input and output worksheet to calculate alternative GPLs for metals. The concentration of a metal found in soil is entered into the cell below the respective metal’s name. An associated SPLP or TCLP concentration is entered into the cell immediately to the right of the cell where the user entered a metal concentration.
B14: Soil Phase Partitioning Calc: The input and output worksheet to calculate equilibrium soil gas, liquid, and total soil contaminant concentrations. Drop down boxes are provided to enter chemical (cell G14) and soil (cell G21) type. The selection made from these drop down boxes affects certain chemical and soil parameters (cells H17-19, H23-25). Selecting a listed chemical and/or soil will cause equilibrium concentrations to be calculated using the parameters included on the Lookup Table worksheet. Selecting "Enter Chemical Properties" and/or "New Soil Type" will cause equilibrium concentrations to be calculated using data entered by the user on the Soil Phase Partitioning Calc worksheet. Upon selecting the button “Calculate Soil Phase Concentrations”, a dialog box will appear. The dialog box requires the user to input a chemical concentration and select the phase which the concentration represents. Additionally the dialog box offers the option of using the GPL default value for the fraction of organic carbon (foc, cell H16) in the soil from which the concentration was determined.
B16: Lookup Table: Details the chemical and soil data used when a chemical or soil type is selected from a drop down box on the Soil Phase Partitioning Calc or Alt-GPL Calc for VOCs worksheets.
B19: II. Calculating a GPL
B21: A note on Model Calculation Values (column I) and Enter User Data (column K):
B23: When using the Alt-GPL Calc for VOCs worksheet, data must be entered into the field titled Enter User Data (column K), but the worksheet will actually use the values in the field titled Model Calculation Values (column I) to complete the GPL calculation. The values in the Model Calculation Values field will generally reflect those in the Enter User Data field. The exception to this occurs in rows 7-10 and 16-18. The Model Calculation Values in these rows will be dependent on the selections made from the drop down lists in cells K6 and K15. The values for Model Calculation Values and Enter User Data in the aforementioned rows may not match, but the calculation will still be performed.
B25: In addition, users should be aware that values entered into the Enter User Data Field may be overwritten depending on selections made in the dialog box that appears after pressing the “Run GPL” button, found below the model input descriptions.
B27: 1) Select Alt-GPL Calc for VOCs worksheet. It may be necessary to load the Analysis Tool Pack to use the worksheets in the GPL Model Excel file. This may be done by clicking File -> Options -> Add-Ins -> Analysis Toolpack -> Go...
B29: 2) Select a chemical from the drop down list in cell K6. Values for Kh, S, Koc and WQS of the selected chemical will automatically be drawn from the Lookup Table worksheet and placed in the appropriate cells in the Model Calculation Values field (column I).
B31: To calculate a GPL for a chemical not available on the drop down list or to force the Model Calculation Values to mirror the Enter User Data values, select "Enter chemical properties" from the list. Values for Kh, S, Koc and WQS must be entered into cells K7-10, respectively, if “Enter chemical properties” is selected.
B33: 3) Enter an appropriate value for T1/2 V and T1/2 GW (biodegradation half-life in vadose zone and groundwater, respectively) in cells K11 and 12, respectively. The biodegradation half-life may be different in the vadose zone and groundwater but typically, they are the same. For petroleum hydrocarbons, the assumed half-life is 1,000 days. Chlorinated compounds are assumed to be relatively non-biodegradable and a half-life of 100,000 days is assumed.
B35: Regardless of values entered into the Enter User Data field, options to use either assumed value will be presented as check box 2 and 3 in the dialog box that appears after pressing the “Run GPL” button. Selecting either check box will overwrite data in cells K11 and 12. Not selecting either check box will maintain the user-entered data in cells K11 and 12. See the publication A Screening Method to Determine Soil Concentrations Protective of Groundwater Quality Leaching Guidance, September 1996 for a discussion of biodegradation rates.
B37: 4) Select a soil type from the drop down list in cell K15. Values for Φ, Pb, and θ of the selected soil type will automatically be drawn from the Lookup Table worksheet and placed in the appropriate cells in the Model Calculation Values field (column I).
B39: Other soil properties may be appropriate based upon site-specific information. To calculate a GPL for a soil type not available on the drop down list or to force the Model Calculation Values to mirror the Enter User Data values, select "New Soil Type" from the list. Values for Φ, Pb, and θ must be entered into cells K16-18, respectively, if “New Soil Type” is selected.
B41: Values for Φ, Pb, and θ used to calculate default GPLs can be automatically entered into the Model Calculation Values field by selecting "GPL Defaults" from the drop down list.
B43: 5) Enter the remaining model inputs (K19-31). Column H lists the default GPL values for variables considered by the GPL calculation. GPL default values can be quickly and automatically entered by selecting check box 1 in the dialog box that appears after pressing the “Run GPL” button. Check box 1 automatically makes the depth to groundwater, Z (cell K26), equal to the depth of incorporation, L (cell K25), resulting in a minimum GPL.
B45: Other GPL values can be calculated by entering data into the Enter User Data field and not selecting check box 1 in the dialog box that appears after pressing the “Run GPL” button. See the publication A Screening Method to Determine Soil Concentrations Protective of Groundwater Quality Leaching Guidance, September 1996 for a discussion of default values.
B47: 6) Click the “Run GPL” Button. Upon clicking the button, a dialog box will appear. The dialog box contains three options that may be selected, check boxes 1, 2, and 3. Check boxes 2 and 3 may not be selected simultaneously and a message to this effect will appear if it is attempted.
B49: Check box 1: Overwrites Enter User Data cells K19-31 with values used in a minimum default GPL calculation.
B51: Check box 2: Overwrites Enter User Data cells K11 and 12 with values used in a default GPL calculation for relatively biodegradable compounds (generally, petroleum hydrocarbons).
B53: Check box 3: Overwrites Enter User Data cells K11 and 12 with values used in a default GPL calculation for relatively non-biodegradable (generally, chlorinated compounds).
B55: After selecting appropriate check boxes, click the “OK” button.
B57: 7) View the results. Rows 48 through 52 of the Alt-GPL Valc for VOCs worksheet display the GPL and information about the calculation. If the GPL exceeds the solubility threshold, a warning note appears. Additionally, it is noted whether the GPL is calculated based upon a risk-based standard or an Aquifer Water Quality Standard.
B60: III. Soil Phase Partitioning
B62: A note on Calculation values (column F) and Data Enter values (column H):
B64: When using the Soil Phase Partitioning Calc worksheet, user data is entered into the fields under Data Enter (column H), but the worksheet will actually use the values in the fields under Calculation (column F) to complete the phase partitioning calculation. The values in the Calculation values fields (cells F17-19 and F23-25) will generally be determined by the selections made in the drop down lists in cells G14 and 21, and NOT match their corresponding Data Enter fields (cells H17-19 and H23-25). The exception to this occurs when “Enter chemical properties” and/or “New Soil Type” are selected from the dropdown lists. Either of these selections will cause the values in the Calculation values fields to match the data entered into the corresponding Data Enter fields. The values for the Calculation fields and Data Enter fields in the aforementioned cells may not match, but the calculation will still be performed.
B66: In addition, users should be aware that a value entered into cell H16 of the Data Enter field will be overwritten if the check box “Insert GPL default for foc (.001)” is selected in the dialog box that appears after pressing the “Calculate Soil Phase Concentrations” button.
B68: 1) Select Soil Phase Partitioning Calc worksheet. It may be necessary to load the Analysis Tool Pack to use the worksheets in the GPL Model Excel file. This may be done by clicking File -> Options -> Add-Ins -> Analysis Toolpack -> Go...
B70: 2) Select a chemical from the drop down list in cell G14. Values for Koc, Kh, and S of the selected chemical will automatically be drawn from the Lookup Table worksheet and placed in the appropriate cells in the Calculation field (column F).
B72: 4) Enter an appropriate value for foc in cell H16. The value of foc used for default GPL calculations is 0.001. Regardless of the foc value entered into Data Enter cell H16, an option to use the default GPL foc value will be presented in the dialog box that appears after pressing the “Calculate Soil Phase Concentrations” button. Selecting this check box will overwrite any user-entered value in cell H16 with 0.001 and the Calculation value in cell F16 will update to match.
B74: 5) Select a soil type from the drop down list in cell G21. Values for Pb, Ow, and Ot of the selected soil type will automatically be drawn from the Lookup Table worksheet and placed in the appropriate cells in the Calculation values field (column F).
B76: Other soil properties may be appropriate based upon site-specific information. To calculate phase concentrations for a soil type not available on the drop down list or to force the Calculation values to mirror the Data Enter values, select "New Soil Type" from the list. Values for Pb, Ow, and Ot must be entered into cells H23-25, respectively, if “New Soil Type” is selected.
B78: 6) Click the “Calculate Soil Phase Concentrations” button. Upon clicking the button, a dialog box will appear. The dialog box contains three options for a known concentration: soil gas, soil solid, and liquid phase. Select the phase of the known concentration and input the concentration (paying attention to the units) into the data entry field below the three options. The spreadsheet will calculate equilibrium concentrations for the two unselected, unknown phases.
B80: Additionally, there is an option within the dialog box to “Insert GPL defaults for foc (.001)”. Selecting this option will cause a user-entered value in cell H16 of the Data Enter field to be overwritten with the GPL default value for foc of 0.001.
B82: After selecting appropriate check boxes, click the “OK” button.
B84: 7) View the results. Equilibrium concentrations of soil gas, soil solid, and liquid will appear in rows 40, 43, and 46, respectively. A soil saturation concentration will also be calculated using the values in the Calculation field, and shown in row 49. If the saturation concentration exceeds the soil concentration, a warning note appears in row 50.
B86: It is necessary to click on the “Calculate Soil Phase Concentrations” button anytime a spreadsheet value is changed in order to calculate a new equilibrium concentration distribution.
B89: IV. Updates
B91: The first version of the spreadsheet GPL was updated on 1-2013 to correct a problem with the look up table and to password
B93: Updated 9-2020 in response to user feedback and to correct xylene saturation error.
B95: Protect all of sheets.

Sheet Minimum GPL for VOCs
A1: 2008-11-01
B4: Saturation Concentrations and Minimum GPLs
B7: Compound | C7: Spreadsheet Min. | D7: 1996 Min. GPL | E7: Saturation
C8: GPL (mg/kg) | D8: (mg/kg) | E8: (mg/kg)
C9: (2007 chemical properties) | D9: (1996 chemical properties) | E9: (2007 chemical properties)
C10: ( foc = .001, θw=.15, Φ=.25) | D10: ( foc = .001, θw=.15, n=.25) | E10: ( foc = .001, θw=.15, n=.25)
B11: Benzene | C11: 0.7 | D11: 0.71 | E11: 313.38
B12: Carbon tetrachloride | C12: 0.95 | D12: 1.6 | E12: 282.2933333
B13: Chlorobenzene | C13: 16.5 | D13: 22 | E13: 154.6926667
B14: o-dichlorobenzene | C14: 116* | D14: 72 | E14: 116.0341333
B15: p-dichlorobenzene | C15: 27 | D15: 9.3 | E15: 53.77333333
B16: 1,2-Dichloroethane (DCA) | C16: 0.23 | D16: 0.21 | E16: 1020.623333
B17: 1,1-Dichloroethylene(DCE) | C17: 0.85 | D17: 0.81 | E17: 529.5366667
B18: cis-1,2-Dichloroethylene | C18: 5.3 | D18: 4.9 | E18: 513.2166667
B19: trans-1,2-Dichloroethylene | C19: 9.2 | D19: 8.4 | E19: 1122.45
B20: 1,2-Dichloropropane | C20: 0.36 | D20: 0.28 | E20: 423.8266667
B21: Ethylbenzene | C21: 82* | D21: 120 | E21: 82.37066667
B22: Styrene | C22: 45 | D22: 36 | E22: 273.8953333
B23: Tetrachloroethylene (PCE) | C23: 0.8 | D23: 1.3 | E23: 61.05333333
B24: Toluene | C24: 159* | D24: 400 | E24: 159.0706667
B25: 1,1,1-Trichloroethane | C25: 0.94 | D25: 1 | E25: 334.1
B26: Trichloroethylene (TCE) | C26: 0.76 | D26: 0.61 | E26: 323.5466667
B27: Xylenes (total)3 | C27: 81* | D27: 2200 | E27: 81
B29: * = Based upon saturation limit
B30: Saturation = S/Pb(Kd*Pb+θw+Kh*θa)
B31: S = Solubility
B32: Pb= Soil dry bulk density = 1.5
B33: Kd = Distribution coefficient = foc*Koc
B34: Koc = Organic carbon partition coefficient
B35: foc = Fraction of organic carbon = 0.001
B36: θa = Air filled porosity
B37: Kh = Henry's constant
B38: θw = Water content= 0.15
B39: Φ = Total porosity = 0.25

Sheet Default GPL Metals
A1: Default GPL - Metals milligrams per kilogram (mg/Kg)
A2: Antimony | B2: 35
A3: Arsenic | B3: 290
A4: Barium | B4: 12000
A5: Beryllium | B5: 23
A6: Cadmium | B6: 29
A7: Chromium, unspeciated | B7: 590
A8: Lead | B8: 290
A9: Mercury | B9: 12
A10: Nickel | B10: 590
A11: Selenium | B11: 290
A12: Thallium | B12: 12
A14: For more information, refer to the ADEQ September 1996 Guidance: A Screening Method to Determine Soil Concentrations Protective of Groundwater Quality(Table 4, page 35)

Sheet Alt-GPL Calc for VOCs
A1: 2020-11-18
G3: *The Mixing Cell Diagram at the right of the Input Field visually depicts measurements.
G4: Input Field | O4: Mixing Cell Diagram -- conventional units (autofills)
C5: Model Input Descriptions | G5: Parameter | H5: Min GPL Default | I5: Model Calculation Values | J5: Modeled Value : Custom /Default | K5: Enter User Data | L5: units
A6: Select chemical name from drop down list | G6: Compound | K6: Enter chemical properties | T6: Sc = distance from vadose impact to
A7: Kh = Henry's Constant (dimensionless) | G7: Kh | H7: - | I7: =VLOOKUP(K$6,'Lookup Table'!A9:J79,3) -> 1 | J7: =IF(K$6="Enter chemical properties","C","D") -> C | K7: 1 | L7: ratio | T7: groundwater compliance point (m) | Y7: w = release width (m)
A8: S = water solubility (mg/l) | G8: S | H8: - | I8: =VLOOKUP($K$6,'Lookup Table'!A8:J79,4) -> 1 | J8: =IF(K$6="Enter chemical properties","C","D") -> C | K8: 1 | L8: mg/L | U8: =AC38 -> 30.5 | Z8: =AC39 -> 10
A9: Koc = soil distribution coefficient (L/Kg) | G9: Koc | H9: - | I9: =VLOOKUP($K$6,'Lookup Table'!A8:J79,2) -> 1 | J9: C | K9: 1 | L9: L/kg
A10: WQS = Water Quality Standard (ug/l)- see help cells in Columns G & H | G10: WQS | H10: - | I10: =IF(VLOOKUP(K$6,'Lookup Table'!A8:J79,5) =0,IF( VLOOKUP(K$6,'Lookup Table'!A8:J79,6) =0, 'Alt-GPL Calc for VOCs'!$K10, VLOOKUP(K$6,'Lookup Table'!A8:J79,6)), VLOOKUP(K$6,'Lookup Table'!A8:L79,5)) -> 1 | J10: C | K10: 1 | L10: ug/L
A11: T1/2 V = vadose zone half life (d) | G11: T1/2 V | H11: 1,000/100,000 | I11: =$K$11 -> 100000 | J11: =IF(OR(I11=1000,I11=100000),("D"),("C")) -> D | K11: 100000 | L11: day | AC11: =AC36 -> 1000 | AD11: L = depth of
A12: T1/2 GW = groundwater half life (d) | G12: T1/2 GW | H12: 1,000/100,000 | I12: =$K$12 -> 100000 | J12: =IF(OR(I12=1000,I12=100000),("D"),("C")) -> D | K12: 100000 | L12: day | O12: Z = groundwater | Q12: =AC37 -> 1000 | AD12: incorporation (cm)
A13: Ct = initial total soil contaminant concentration (ug/kg, [ug/kg = (ug/l)/Pb]) | G13: Ct (Co) | H13: - | I13: =$K$13 -> 100 | J13: C | K13: 100 | L13: ug/kg
O14: or vadose zone depth
A15: Select Soil Type from drop down list | G15: Soil | K15: New Soil Type | O15: of interest (cm) | V15: ▼
A16: Φ = total porosity | G16: Φ | H16: 0.25 | I16: =VLOOKUP($K$15,'Lookup Table'!B99:F109,3) -> 0.5 | J16: =IF(K$15="New Soil Type","C","D") -> C | K16: 0.5 | L16: ratio
A17: Pb = dry bulk density (g/cm3) | G17: Pb | H17: 1.5 | I17: =VLOOKUP($K$15,'Lookup Table'!B99:F109,4) -> 1.5 | J17: =IF(K$15="New Soil Type","C","D") -> C | K17: 1.5 | L17: g/cm3 | AB17: d1
A18: θ = moisture content (vol/vol) | G18: θ | H18: 0.15 | I18: =VLOOKUP($K$15,'Lookup Table'!B99:F109,5) -> 0.45 | J18: C | K18: 0.45 | L18: ratio | AC18: d = mixing cell
A19: foc V = fraction of organic carbon in vadose zone | G19: foc V | H19: 0.001 | I19: =$K$19 -> 0.001 | J19: =IF(I19=H19,("D"),("C")) -> D | K19: 0.001 | L19: ratio | AC19: depth (centimeters)
A20: foc A = fraction of organic carbon in aquifer | G20: foc A | H20: 0.001 | I20: =$K$20 -> 0.001 | J20: =IF(I20=H20,("D"),("C")) -> D | K20: 0.001 | L20: ratio
A21: Dga = gaseous diffusion coefficient (cm2/d) | G21: Dga | H21: 7000 | I21: =$K$21 -> 7000 | J21: D | K21: 7000 | L21: cm2/d
A22: D1w = liquid diffusion coefficient (cm2/d) | G22: D1w | H22: 0.7 | I22: =$K$22 -> 0.7 | J22: D | K22: 0.7 | L22: cm2/d | S22: dn
A23: d = diffusion layer thickness (cm) | G23: d | H23: 0.5 | I23: =$K$23 -> 0.5 | J23: D | K23: 0.5 | L23: cm
A24: Ai = infiltration rate inside source area, water flux (cm/d) | G24: Ai | H24: 0.007 | I24: =$K$24 -> 0.007 | J24: D | K24: 0.007 | L24: cm/d | R24: w
A25: L = depth of incorporation (cm) | G25: L | H25: 1000 | I25: =K25 -> 1000 | J25: D | K25: 1000 | L25: cm | O25: s = screen | Q25: =AC40 -> 8.2 | R25: e
A26: Z = depth to water or depth of interest, (cm) | G26: Z | H26: 1000 | I26: =K26 -> 1000 | J26: D | K26: 1000 | L26: cm | O26: interval (m) | R26: l
A27: Sc = distance from edge of release to compliance point (meters) | G27: Sc | H27: 30.5 | I27: =$K$27 -> 30.5 | J27: D | K27: 30.5 | L27: m | R27: l | AB27: mixing cells
A28: w = release width (meters) | G28: w | H28: 10 | I28: =$K$28 -> 10 | J28: D | K28: 10 | L28: m | AB28: (each 1 meter wide)
A29: s = well screen interval (meters) | G29: s | H29: 8.2 | I29: =$K$29 -> 8.2 | J29: D | K29: 8.2 | L29: m
A30: v = groundwater velocity [v=Ki/n], actual velocity not Darcy velocity (cm/d) | G30: v | H30: 10 | I30: =K30 -> 10 | J30: D | K30: 10 | L30: cm/d | R30: s
A31: Si = infiltration rate outside source area (cm/d) | G31: Si | H31: 0.007 | I31: =$K$31 -> 0.007 | J31: D | K31: 0.007 | L31: cm/d | R31: c | AB31: Input Summary
A32: time step = vary until output graphs shows complete curve, Jury 1 solution (days) | G32: time step | H32: auto | I32: =$K$32 -> 10 | J32: C | K32: 10 | L32: day | R32: r | AC32: Input units | AE32: English units
A33: d time = depth profile time, Jury 2 solution (d) | G33: d time | H33: - | I33: =$K$33 -> 365 | J33: C | K33: 365 | L33: day
A34: Vd = total vadose zone depth, Jury 2 solution (cm) | G34: Vd | H34: - | I34: =$K$34 -> 3000 | J34: C | K34: 3000 | L34: cm
R35: r | AB35: Variable | AC35: Input units | AE35: English units
G36: Data Entry Legend | R36: e | AB36: L | AC36: ='Alt-GPL Calc for VOCs'!$K$25 -> 1000 | AD36: cm | AE36: =AC36/2.54/12 -> 32.80839895 | AF36: feet
G37: Help Cells - Cells that may be selected to provide a pop-up window with info to help in data entry | R37: e | AB37: Z | AC37: ='Alt-GPL Calc for VOCs'!$K$26 -> 1000 | AD37: cm | AE37: =AC37/2.54/12 -> 32.80839895 | AF37: feet
G38: Select entry from the drop-down menu | R38: n | AB38: Sc | AC38: ='Alt-GPL Calc for VOCs'!$I$27 -> 30.5 | AD38: m | AE38: =AC38*100/2.54/12 -> 100.0656168 | AF38: feet
G39: A manually entered value will be used only if you selected "enter chemical properties" or "new soil type", otherwise this value will reflect the chemical or soil type you selected from the drop down menus cells K6 and K15) | AB39: w | AC39: ='Alt-GPL Calc for VOCs'!$I$28 -> 10 | AD39: m | AE39: =AC39*100/2.54/12 -> 32.80839895 | AF39: feet
AB40: s | AC40: ='Alt-GPL Calc for VOCs'!$I$29 -> 8.2 | AD40: m | AE40: =AC40*100/2.54/12 -> 26.90288714 | AF40: feet
U41: well
G42: These cells may use manual entry, but your entry may be overwritten depending on what boxes you select after pressing the "Run GPL" button. Specific details are included in the help cells. | Z42: Mixing Cell Thickness: Jw x Δt/Φ (see GPL Guidance)
Z43: Variable | AB43: Jw | AC43: Φ | AD43: Δt | AE43: cell | AF43: cm
Z44: First mixing cell | AB44: ='Alt-GPL Calc for VOCs'!$I$24 -> 0.007 | AC44: ='Alt-GPL Calc for VOCs'!$I$16 -> 0.5 | AD44: =100/I30 -> 10 | AE44: d1 | AF44: =AB44*AD44/AC44 -> 0.14
Z45: Last mixing cell | AB45: ='Alt-GPL Calc for VOCs'!$I$31 -> 0.007 | AC45: ='Alt-GPL Calc for VOCs'!$I$16 -> 0.5 | AD45: =AD44 -> 10 | AE45: dn | AF45: =(AB44*AC39*AD44/AC44)+(AB45*AD45*AC38/AC45) -> 5.67 | AG45: if > s, then s
D47: Chemical:
D48: =VLOOKUP(K$6,'Lookup Table'!A9:J79,1) -> Enter chemical properties
D50: GPL (mg/kg) = | F50: =GPL!E90 -> 0.2548608707 | G50: =IF(F50>F51,"WARNING: GPL exceeds saturation, discuss with specific ADEQ Program","") -> 
D51: Saturation conc. (mg/kg) = | F51: =IntercalsJury1!M30 -> 0.3343333333
D52: =IF(VLOOKUP(K$6,'Lookup Table'!A8:J79,5) = 0, "GPL based upon risk based water quality standard", "GPL based upon Aquifer Water Quality Standard") -> GPL based upon risk based water quality standard

Sheet Alt-GPL Calc for Metals
A1: Alternative GPL Calculator - Metals
B2: Antimony (mg/Kg) | C2: SPLP or TCLP (mg/L) | D2: Arsenic (mg/Kg) | E2: SPLP or TCLP (mg/L) | F2: Barium (mg/Kg) | G2: SPLP or TCLP (mg/L) | H2: Beryllium (mg/Kg) | I2: SPLP or TCLP (mg/L) | J2: Cadmium (mg/Kg) | K2: SPLP or TCLP (mg/L) | L2: Chromium (mg/Kg) | M2: SPLP or TCLP (mg/L) | N2: Copper (mg/Kg) | O2: SPLP or TCLP (mg/L)
A4: R = Csoil / Cleachate | B4: =B3/C3 ->  | D4: =D3/E3 ->  | F4: =F3/G3 ->  | H4: =H3/I3 ->  | J4: =J3/K3 ->  | L4: =L3/M3 ->  | N4: =N3/O3 -> 
A5: CW | B5: 0.006 | D5: 0.05 | F5: 2 | H5: 0.004 | J5: 0.005 | L5: 0.1 | N5: 1.3
A6: Alternative GPL = (292.9)*R*Cw | B6: =292.9*B4*B5 ->  | D6: =292.9*D4*D5 ->  | F6: =292.9*F4*F5 ->  | H6: =292.9*H4*H5 ->  | J6: =292.9*J4*J5 ->  | L6: =292.9*L4*L5 ->  | N6: =292.9*N4*N5 -> 
B8: Lead (mg/Kg) | C8: SPLP or TCLP (mg/L) | D8: Mercury (mg/Kg) | E8: SPLP or TCLP (mg/L) | F8: Nickel (mg/Kg) | G8: SPLP or TCLP (mg/L) | H8: Selenium (mg/Kg) | I8: SPLP or TCLP (mg/L) | J8: Thallium (mg/Kg) | K8: SPLP or TCLP (mg/L) | L8: Enter Chem (mg/Kg) | M8: SPLP or TCLP (mg/L) | N8: Enter Chem (mg/Kg) | O8: SPLP or TCLP (mg/L)
A10: R = Csoil / Cleachate | B10: =B9/C9 ->  | D10: =D9/E9 ->  | F10: =F9/G9 ->  | H10: =H9/I9 ->  | J10: =J9/K9 ->  | L10: =L9/M9 ->  | N10: =N9/O9 -> 
A11: CW | B11: 0.05 | D11: 0.002 | F11: 0.1 | H11: 0.05 | J11: 0.002
A12: Alternative GPL = (292.9)*R*Cw | B12: =292.9*B10*B11 ->  | D12: =292.9*D10*D11 ->  | F12: =292.9*F10*F11 ->  | H12: =292.9*H10*H11 ->  | J12: =292.9*J10*J11 ->  | L12: =292.9*L10*L11 ->  | N12: =292.9*N10*N11 -> 
A14: Formula: | B14: Xs = (292.9)*(Csoil / Cleachate)*Cw
B15: Xs | C15: = The Alternative GPL; The maximum allowable total metals concentration in soil which achieves protection of groundwater quality.
B16: 292.9 | C16: = This constant results from calculations involving the mixing cell dimensions, groundwater flow rate, and infiltration rate for the base case conditions.
B17: Csoil | C17: = Total metals concentration in a soil (mg/Kg).
B18: Cleachate | C18: = The TCLP or SPLP metal concentration (mg/L).
B19: R | C19: = The ratio between the total metals content in a soil (Csoil) and the TCLP or SPLP leachate result (Cleachate). Default GPLs for metals assumes the worst-case leachable fraction from a TCLP or SPLP of 20:1. The ratio may be greater and calculating a site specific "R" value based on the ratio between the total metals content in soil and the TCLP or SPLP leachate result allows for the calculation of an alternative GPL for metals.
B22: Cw | C22: = The maximum groundwater concentration in the mixing cell across the perforated interval of the monitor well and is equivalent to the AWQS.
A24: Notes: | B24: All soil data in milligrams per kilogram (mg/Kg) and aqueous data in milligrams per liter (mg/L)
B25: All Cw inputs are the AWQS except for Copper: MCL for Copper = 1.3 mg/L
B26: SPLP: Synthetic Precipitation Leaching Procedure
B27: TCLP: Toxicity Characteristic Leaching Procedure
B28: The last two boxes are available to enter information about any metal for which an Alt-GPL value is sought.
B29: It is best practice to co-locate or split sample for the total metals and SPLP/TCLP metals sample.
B30: For more information, refer to the ADEQ September 1996 Guidance: A Screening Method to Determine Soil Concentrations Protective of Groundwater Quality(Section IV, pages 33-35 and Appendix C).

Sheet Soil Phase Partitioning Calc
A1: 2008-06-03
A3: Calculate equilibrium soil phase concentrations
A5: Cg (ug/l) =Ct(( Hd*Pb/((foc)(Koc)(Pb)+Ow +Hd (Ot-Ow)))
A7: R (unitless) = Hd*Pb/((foc)(Koc)(Pb)+Ow +Hd (Ot-Ow))
A9: Ct ( ug/kg)= Cg/ R
A11: Cl (ug/l) = Cg/H
A14: Select chemical from drop down list, G14 | G14: Toluene
F15: Calculation | H15: Data Enter
A16: foc = fraction of organic carbon = | F16: =$H16 -> 0.001 | H16: 0.001
A17: Koc = soil distribution coefficient (ml/g) = | F17: =IF($G$14="Enter chemical properties",$H17,VLOOKUP($G$14,'Lookup Table'!A8:J79,2)) -> 182 | H17: 1
A18: Kh = Henry's Constant = | F18: =IF($G$14="Enter chemical properties",$H18,VLOOKUP($G$14,'Lookup Table'!A8:J79,3)) -> 0.272 | H18: 1
A19: S = solubility in water (mg/l) = | F19: =IF($G$14="Enter chemical properties",$H19,VLOOKUP($G$14,'Lookup Table'!A8:J79,4)) -> 530 | H19: 1
A21: Select soil from drop down list, G21 | G21: Silty Clay
A23: Pb = dry bulk density (g/cm3) | F23: =IF($G$21="New Soil Type",$H$23,VLOOKUP($G$21,'Lookup Table'!B99:F109,4)) -> 1.38 | H23: 1
A24: Ow = water filled porosity, (vol water/volume of soil) | F24: =IF($G$21="New Soil Type",$H$24,VLOOKUP($G$21,'Lookup Table'!B99:F109,5)) -> 0.216 | H24: 1
A25: Ot = porosity (vol voids/vol total) | F25: =IF($G$21="New Soil Type",$H$25,VLOOKUP($G$21,'Lookup Table'!B99:F109,3)) -> 0.481 | H25: 1
A27: Ot-Ow = | F27: =$F$25-$F$24 -> 0.265 | G27: unitless
A28: Hd*Pb = | F28: =$F$18*$F$23 -> 0.37536 | G28: g/cm3
A29: Foc*Koc*Pb = | F29: =$F$16*$F$17*$F$23 -> 0.25116 | G29: g/cm3
A30: R = Hd*Pb/((foc)(Koc)(Pb)+Ow +Hd (Ot-Ow)) | F30: =$F$28/($F$29+$F$24+$F$18*$F$27) -> 0.6960907945 | G30: unitless
A38: -----OUTPUTS BELOW ARE FOR A SYSTEM IN EQUILIBRIUM-----
A40: Cg (soil gas concentration ug/l) | H40: 3000
A43: Ct (total soil solids concentration mg/kg) | H43: 4.309782609
A44: =IF($H$43>$H$49,"(Concentration exceeds saturation)","") -> 
A46: Cl (liquid phase concentration ug/l) | H46: 11029.41176
A49: Saturation concentration (mg/kg) = | H49: =$F$19/$F$23*($F$29+$F$24+$F$18*$F$27) -> 207.0994203

Sheet Lookup Table
D4: Chemical Properties
A7: CONTAMINANT | B7: Koc | C7: Kh | D7: S | E7: Water Quality | F7: Risk-based | G7: Residential SRL (mg/kg) | J7: Non-Residential
B8: (L/Kg) | C8: (dimensionless) | D8: (mg/L) | E8: Standard (ug/L) | F8: Standard (ug/l) | G8: 10-6 ELCR | H8: 10-5 ELCR | I8: Non-carc | J8: SRL (mg/kg)
A9: 1,1,1-Trichloroethane* | B9: 110 | C9: 0.705 | D9: 1300 | E9: 7 | I9: 1200 | J9: 1200
A10: 1,1,2,2-Tetrachloroethane | B10: 93.3 | C10: 0.0141 | D10: 3000 | F10: 0.2 | G10: 0.42 | H10: 4.2 | J10: 9.3
A11: 1,1,2-Trichlorethane | B11: 50.1 | C11: 0.0374 | D11: 4400 | E11: 5 | G11: 0.74 | H11: 7.4 | J11: 16
A12: 1,1-Dichloroethane | B12: 31.6 | C12: 0.23 | D12: 5100 | F12: 700 | I12: 510 | J12: 1700
A13: 1,1-Dichloroethylene(DCE) | B13: 58.9 | C13: 1.07 | D13: 2300 | E13: 7 | I13: 120 | J13: 410
A14: 1,2,4-Trimethylbenzene | B14: 3720 | C14: 0.2337 | D14: 57 | F14: 12 | I14: 52 | J14: 170
A15: 1,2-Dibromoethane | B15: 28.1 | C15: 0.029 | D15: 3400 | E15: 0.05 | G15: 0.029 | H15: 0.29 | J15: 0.63
A16: 1,2-Dichlorobenzene (ortho) | B16: 620 | C16: 0.0782 | D16: 160 | E16: 600 | I16: 600 | J16: 600
A17: 1,2-Dichloroethane (DCA) | B17: 17.4 | C17: 0.0401 | D17: 8500 | E17: 5 | G17: 0.28 | H17: 2.8 | J17: 6
A18: 1,2-Dichloropropane | B18: 43.7 | C18: 0.115 | D18: 2800 | E18: 5 | G18: 0.34 | H18: 3.4 | J18: 7.4
A19: 1,3,5-Trimethylbenzene | B19: 819 | C19: 0.32 | D19: 48 | F19: 12 | I19: 21 | J19: 70
A20: 1,3-Butadiene | B20: 120 | C20: 7.298 | D20: 735 | F20: 0.1 | G20: 0.058 | H20: 0.58 | J20: 1.2
A21: 1,3-Dichloropropene | B21: 45.7 | C21: 0.726 | D21: 2800 | F21: 0.4 | G21: 0.79 | H21: 7.9 | J21: 18
A22: 1,4-Dichlorobenzene (para) | B22: 620 | C22: 0.1 | D22: 74 | E22: 75 | G22: 3.5 | H22: 35 | J22: 79
A23: 1,4-Dioxane | B23: 1 | C23: 0.000196 | D23: 1000000 | F23: 1 | G23: 50 | H23: 500 | J23: 1600
A24: 2,4-Dinitrotoluene | B24: 363.8 | C24: 2.21e-06 | D24: 270 | F24: 12 | I24: 120 | J24: 1200
A25: 2,6-Dinitrotoluene | B25: 371.4 | C25: 3.05e-05 | D25: 352 | F25: 6 | I25: 61 | J25: 620
A26: Acenaphthene | B26: 4898 | C26: 0.006355 | D26: 4.24 | F26: 370 | I26: 3700 | J26: 29000
A27: Anthracene | B27: 23500 | C27: 0.002665 | D27: 0.0434 | F27: 1800 | I27: 22000 | J27: 240000
A28: Benzene | B28: 58.9 | C28: 0.228 | D28: 1800 | E28: 5 | G28: 0.65 | H28: NA | J28: 1.4
A29: Bis(2-ethylhexyl)phthalate (DEHP) | B29: 165000 | C29: 1.1e-05 | D29: 0.27 | F29: 0.8 | G29: 39 | H29: 390 | J29: 1200
A30: Bromodichloromethane | B30: 55 | C30: 0.0656 | D30: 6700 | E30: 80 | G30: 0.83 | H30: 8.3 | J30: 18
A31: Bromoform | B31: 87.1 | C31: 0.0219 | D31: 3100 | E31: 80 | G31: 69 | H31: 690 | J31: 2200
A32: Carbon disulfide | B32: 45.7 | C32: 1.24 | D32: 1200 | F32: 700 | I32: 360 | J32: 720
A33: Carbon tetrachloride | B33: 174 | C33: 1.25 | D33: 790 | E33: 5 | G33: 0.25 | H33: 2.5 | I33: 2.2 | J33: 5.5
A34: Chlorobenzene | B34: 219 | C34: 0.152 | D34: 470 | E34: 100 | I34: 150 | J34: 530
A35: Chloroform | B35: 39.8 | C35: 0.15 | D35: 7900 | E35: 80 | G35: 0.94 | H35: 9.4 | J35: 20
A36: Chrysene | B36: 398000 | C36: 0.0038786 | D36: 0.0016 | F36: 1.5 | G36: 68 | H36: 680 | J36: 2000
A37: cis-1,2-Dichloroethylene | B37: 35.5 | C37: 0.167 | D37: 3500 | E37: 70 | I37: 43 | J37: 150
A38: Cumene (isopropylbenzene) | B38: 220 | C38: 0.4715 | D38: 61 | F38: 660 | I38: 92 | J38: 92
A39: Cyclohexane | B39: 160 | C39: 8.2 | D39: 55 | F39: 10300 | I39: 140 | J39: 140
A40: Dibenzofuran | B40: 7760 | C40: 0.000533 | D40: 3.1 | F40: 12 | I40: 140 | J40: 140
A41: Dibromochloromethane | B41: 468 | C41: 0.03485 | D41: 4400 | F41: 0.13 | G41: 1.1 | H41: 11 | J41: 26
A42: Dichlorodifluoromethane | B42: 58 | C42: 4.1 | D42: 280 | F42: 390 | I42: 94 | J42: 310
A43: Dicyclopentadiene | B43: 570 | C43: 0.4387 | D43: 1800 | F43: 0.4 | I43: 0.54 | J43: 1.8
A44: Enter chemical properties | B44: ='Alt-GPL Calc for VOCs'!$K$9 -> 1 | C44: ='Alt-GPL Calc for VOCs'!K7 -> 1 | D44: ='Alt-GPL Calc for VOCs'!K8 -> 1
A45: Ethylbenzene | B45: 363 | C45: 0.323 | D45: 170 | E45: 700 | I45: 400 | J45: 400
A46: Ethylene oxide | B46: 2.2 | C46: 0.0030996 | D46: 1000000 | F46: 0.024 | G46: 0.14 | H46: 1.4 | J46: 3.4
A47: Fluorene | B47: 13800 | C47: 0.003157 | D47: 1.9 | F47: 240 | I47: 2700 | J47: 26000
A48: HCH (gamma) Lindane | B48: 3380 | C48: 0.00021 | D48: 8 | E48: 0.2 | G48: 0.5 | H48: 5 | J48: 17
A49: HCH-technical | B49: 3380 | C49: 1.75e-05 | D49: 8 | F49: 0.0062 | G49: 0.36 | H49: 3.6 | J49: 13
A50: Heptachlor | B50: 52400 | C50: 0.012 | D50: 0.18 | E50: 0.4 | G50: 0.12 | H50: 1.2 | J50: 3.8
A51: Heptachlor epoxide | B51: 5260 | C51: 0.000859 | D51: 0.2 | E51: 0.2 | G51: 0.06 | H51: 0.6 | J51: 1.9
A52: Hexachlorobenzene | B52: 3380 | C52: 0.0695 | D52: 0.0062 | E52: 1 | G52: 0.34 | H52: 3.4 | J52: 11
A53: Hexachlorobutadiene | B53: 993.5 | C53: 0.421 | D53: 3.2 | F53: 0.14 | G53: 7 | H53: 70 | I53: 18 | J53: 180
A54: Hexachlorocyclopentadiene | B54: 1667 | C54: 1.1 | D54: 1.8 | E54: 50 | I54: 370 | J54: 3700
A55: Hexachloroethane | B55: 224.7 | C55: 0.159 | D55: 50 | F55: 0.8 | G55: 39 | H55: 390 | I55: 61 | J55: 620
A56: Methyl bromide | B56: 10.5 | C56: 0.256 | D56: 12000 | F56: 8.7 | I56: 3.9 | J56: 13
A57: Methyl ethyl ketone | B57: 4.5 | C57: 0.0011234 | D57: 268000 | F57: 4200 | I57: 23000 | J57: 34000
A58: Methyl isobutyl ketone | B58: 134 | C58: 0.00574 | D58: 19000 | F58: 560 | I58: 5300 | J58: 17000
A59: Methyl tert-butyl ether (MTBE) | B59: 6 | C59: 0.024067 | D59: 150000 | F59: 11 | G59: 32 | H59: 320 | J59: 710
A60: Methylcyclohexane | B60: 2188 | C60: 17.63 | D60: 14 | F60: 5200 | I60: 230 | J60: 230
A61: Methylene bromide | B61: 25 | C61: 0.0369 | D61: 11700 | F61: 61 | I61: 67 | J61: 230
A62: Methylene chloride | B62: 11.7 | C62: 0.0898 | D62: 13200 | F62: 4.3 | G62: 9.3 | H62: 93 | J62: 210
A63: Naphthalene | B63: 1191 | C63: 0.019803 | D63: 31 | F63: 6.2 | I63: 56 | J63: 190
A64: n-Butylbenzene | B64: 2830 | C64: 0.5371 | D64: 13.8 | F64: 240 | I64: 240 | J64: 240
A65: n-Hexane | B65: 890 | C65: 5.002 | D65: 18 | F65: 1500 | I65: 110 | J65: 110
A66: Nitrobenzene | B66: 64.6 | C66: 0.0009799 | D66: 2100 | F66: 3.4 | I66: 20 | J66: 100
A67: n-Propylbenzene | B67: 2830 | C67: 0.5371 | D67: 13.8 | F67: 240 | I67: 240 | J67: 240
A68: Pyrene | B68: 105000 | C68: 0.000451 | D68: 0.135 | F68: 180 | I68: 2300 | J68: 29000
A69: sec-Butylbenzene | B69: 2150 | C69: 0.7667 | D69: 17 | F69: 240 | I69: 220 | J69: 220
A70: Styrene | B70: 776 | C70: 0.113 | D70: 310 | E70: 100 | I70: 1500 | J70: 1500
A71: tert-Butylbenzene | B71: 2150 | C71: 0.5166 | D71: 30 | F71: 240 | I71: 220 | J71: 220
A72: Tetrachloroethylene (PCE) | B72: 155 | C72: 0.754 | D72: 200 | E72: 5 | G72: 0.51 | H72: 5.1 | J72: 13
A73: Tetrahydrofuran | B73: 0.95 | C73: 0.00287 | D73: 1000000 | F73: 1.6 | G73: 9.5 | H73: 95 | J73: 210
A74: Toluene | B74: 182 | C74: 0.272 | D74: 530 | E74: 1000 | I74: 650 | J74: 650
A75: trans-1,2-Dichloroethylene | B75: 52.5 | C75: 0.385 | D75: 6300 | E75: 100 | I75: 69 | J75: 230
A76: Trichloroethylene (TCE) | B76: 166 | C76: 0.422 | D76: 1100 | E76: 5 | G76: 3 | H76: 30 | I76: 17 | J76: 65
A77: Vinyl acetate | B77: 5.25 | C77: 0.021 | D77: 20000 | F77: 410 | I77: 430 | J77: 1400
A78: Vinyl chloride | B78: 18.6 | C78: 1.107 | D78: 2760 | E78: 2 | G78: 0.085 | H78: NA | J78: 0.75
A79: Xylenes (total)1 | B79: 386 | C79: 0.276 | D79: 160 | E79: 10000 | I79: 270 | J79: 420
A80: Those chemical values shown in red are taken from http://www.epa.gov/opptintr/exposure/pubs/episuite.htm
A81: Note: Reference for Koc and Ho values: U.S. EPA Soil Screening Guidance: User’s Guide, 2nd Edition (July 1996) * GPL calculated on 1,1DCE water quality standard because of subsurface biotransformation
A83: Koc = organic carbon partition coefficient
A84: Kh = Dimensionless Henry's Law Constant [HLC(atm-m)*41(25oC)]
A85: S = Solubility in water
A86: Xylenes (total)1 - Koc and Foc values for total xylenes represent average of values for ortho-, meta, and para-xylenes.
A87: The following soil default values were used in the minimum GPL and soil saturation calculations: Foc = 0.001; θw = 0.15; θt = 0.25; ρb = 1.5 g/cm3
A89: foc | C89: 0.001
A90: Pb | C90: 1.5
A91: θa (air filled content) | C91: 0.1
A92: θw (water filled content vol/vol) | C92: 0.15
A94: Sat = S/Pb(KdPb+θw+Hθa)
D96: Soil Properties
B98: SCS Soil Type | C98: SCS Soil Name | D98: n (cm3/cm3) | E98: Bulk density(g/cm3) | F98: qw (cm3/cm3)
B99: Clay | C99: C | D99: 0.459 | E99: 1.43 | F99: 0.215
B100: GPL Defaults | C100: GPL Defaults | D100: 0.25 | E100: 1.5 | F100: 0.15
B101: New Soil Type | D101: ='Alt-GPL Calc for VOCs'!K16 -> 0.5 | E101: ='Alt-GPL Calc for VOCs'!K17 -> 1.5 | F101: ='Alt-GPL Calc for VOCs'!K18 -> 0.45
B102: Poorly graded gravels | C102: GP | D102: 0.25 | E102: 1.76 | F102: 0.02
B103: Poorly graded sands | C103: SP | D103: 0.25 | E103: 1.66 | F103: 0.05
B104: Sand | C104: S | D104: 0.375 | E104: 1.66 | F104: 0.054
B105: Sandy Clay | C105: SC | D105: 0.385 | E105: 1.63 | F105: 0.197
B106: Silt | C106: SI | D106: 0.489 | E106: 1.35 | F106: 0.167
B107: Silty Clay | C107: SIC | D107: 0.481 | E107: 1.38 | F107: 0.216
B108: Well graded gravels | C108: GW | D108: 0.35 | E108: 1.76 | F108: 0.02
B109: Well graded sands | C109: SW | D109: 0.35 | E109: 1.66 | F109: 0.03

Sheet IntercalsJury1 (hidden)
A1: 2008-05-10 | C1: Solution of Jury 1 Equation
B4: Ct = total soil contamination, ug/kg | M4: ='Alt-GPL Calc for VOCs'!I13 -> 100
B5: Co (ug/l) | M5: =$M$4*$M$10 -> 150
B6: T1/2 (d) | M6: ='Alt-GPL Calc for VOCs'!$I$11 -> 100000
B7: Kh (dimensionless) | M7: ='Alt-GPL Calc for VOCs'!I7 -> 1
B8: S (water solubility, mg/l) | M8: ='Alt-GPL Calc for VOCs'!I8 -> 1
B9: Φ(total porosity) | M9: ='Alt-GPL Calc for VOCs'!$I$16 -> 0.5
B10: Pb (g/cm3) (dry bulk density) | M10: ='Alt-GPL Calc for VOCs'!I17 -> 1.5
B11: foc | M11: ='Alt-GPL Calc for VOCs'!$I$19 -> 0.001
B12: Dga (cm2/d) | M12: ='Alt-GPL Calc for VOCs'!$I$21 -> 7000
B13: D1w(cm2/d) | M13: ='Alt-GPL Calc for VOCs'!$I$22 -> 0.7
B14: L (cm)(depth of incorporation) | M14: ='Alt-GPL Calc for VOCs'!I25 -> 1000
B15: θ (vol/vol)= water content | M15: ='Alt-GPL Calc for VOCs'!I18 -> 0.45
B16: Jw (water flux- cm/d) | M16: ='Alt-GPL Calc for VOCs'!I24 -> 0.007
B17: Koc (cm3/g) | M17: ='Alt-GPL Calc for VOCs'!I9 -> 1
B18: z -cm(depth to water) or depth of interest | M18: ='Alt-GPL Calc for VOCs'!I26 -> 1000
B19: a(air filled porosity) | M19: =$M$9-$M$15 -> 0.05
B20: t (days) (calculation test) | M20: ='Alt-GPL Calc for VOCs'!I32 -> 10
B21: d(diffusion layer thickness,cm) | M21: ='Alt-GPL Calc for VOCs'!I23 -> 0.5
B24: Rl (liquid phase coeffcient ) = (Pb)(foc)(Koc)+Φ+aKh | M24: =$M$10*$M$17*$M$11+$M$15+$M$19*$M$7 -> 0.5015 | N24: =$M$10*$M$17*$M$11+$M$15+$M$19*$M$7
B25: Maximum liquid phase concentration (ug/l) = Co/Rl | M25: =$M$5/$M$24 -> 299.1026919 | N25: =$M$5/$M$24
B26: Rg = Rl/Kh | M26: =$M$24/$M$7 -> 0.5015 | N26: =$M$24/$M$7
B27: Maximum gas phase concentration (ug/l) | M27: =($M$5/$M$26) -> 299.1026919 | N27: =($M$5/$M$26)
B28: Maximum sorbed soil concentration (ug/kg) = (Cl)(Foc)(Koc) | M28: =$M25*$M17*$M11 -> 0.2991026919 | N28: =$M25*$M17*$M11
B30: Soil saturation concentration (mg/kg) =S/Pb(Foc*Koc*Pb+θ+Kh*a) | M30: =$M$8/$M$10*($M$11*$M$17*$M$10+$M$15+$M$19*$M$7) -> 0.3343333333 | N30: =$M$8/$M$10*($M$11*$M$17*$M$10+$M$15+$M$19*$M$7)
C31: A | O31: B
H32: Ve=Jw/((Pb)(Foc)(Koc)+θ+aKh)
Q33: De=((a3.33)(Dga)(Kh)+(θ3.33)(D1w))/Φ2/((Pb)(Foc)(Koc)+θ+aKh)
B34: (Pb)(Foc)(Koc) | I34: =$M$10*$M$11*$M$17 -> 0.0015
B35: (Pb)(Foc)(Koc)+θ+aKh | I35: =$I$34+$M$15+$M$19*$M$7 -> 0.5015 | O35: (a3.33)(Dga)(Kh)+(θ3.33)(D1w))/Φ2 | S35: =((POWER($M$19,3.33)*$M$12*$M$7+POWER($M$15,3.33)*$M$13))/POWER($M$9,2) -> 1.498396263
B36: Ve = | I36: =$M$16/$I$35 -> 0.01395812562 | Q36: De= | S36: =$S$35/$I$35 -> 2.987829039
B37: R= (Pb)(Foc)(Koc)/n +1 | I37: =I34/M9 +1 -> 1.003
C39: C | O39: D
B40: He=(Kh)(Dga)/(d((Pb)(Foc)(Koc)+θ+aKh)) | N40: (1+Ve/He)(exp((Ve)(z)/De
C42: =$M$12*$M$7/($M$21*$I$35) -> 27916.25125 | N42: 1+(Ve/He) = | Q42: =1+($I$36/$C$42) -> 1.0000005
N43: (Ve)(z)/De = | Q43: =IF(($I$36*$M$18)/$S$36>225,225,($I$36*$M$18/$S$36)) -> 4.671661411
N44: 1+Ve/He)(exp((Ve)(z)/De = | Q44: =Q42*EXP(Q43) -> 106.875212
N45: 1+Ve/He)(exp((Ve)(z)/De =
C47: E | P47: F
H48: erfc(z-L-(Ve)(t)/(4De)(t).5) | P48: z-(Ve)(t)/4De)(t).5)
B50: z-L-(Ve)(t) | I50: =($M$18-$M$14-($I$36*$M$20)) -> -0.1395812562 | N50: z-(Ve)(t) | Q50: =($M$18-$M$20*$I$36) -> 999.8604187
B51: 4De)(t).5) | I51: =POWER(4*$S$36*$M$20,0.5) -> 10.93220753 | N51: z-(Ve)(t)/4De)(t).5 = | Q51: =($M$18-($M$20*$I$36))/POWER(4*$S$36*$M$20,0.5) -> 91.46006566
B52: z-L-(Ve)(t)/4De)(t).5)= | I52: =($M$18-$M$14-($I$36*$M$20))/POWER(4*$S$36*$M$20,0.5) -> -0.01276789302 | N52: erfc(z-(Ve)(t)/4De)(t).5)) | Q52: =IF($Q$51>0,ERFC(IF($Q$51<27,$Q$51,27)),1+ERF(IF(-$Q$51<27,-$Q$51,27))) -> 0
B53: erfc(z-L-(Ve)(t)/(4De)(t).5)= | I53: =IF($I$52>0,ERFC(IF($I$52<27,$I$52,27)),1+ERF(IF(-$I$52<27,-$I$4,27))) -> 1 | R53: =IF(($M$18-$M$20*$I$36)/POWER(4*$S$36*$M$20,0.5)>27,ERFC(27),6) -> 0
C56: G | P56: H
H58: (1+Ve/He)(exp((Ve)(z)/De | P58: erfc(z+L+(Ve)(t)/(4De)(t).5))
H59: (D)
B60: 1+(Ve/He) = | I60: =1+($I$36/$C$42) -> 1.0000005 | N60: z+L+(Ve)(t) = | Q60: =$M$18+$M$14+($I$36*$M$20) -> 2000.139581
B61: (Ve)(z)/De = | I61: =($I$36*$M$18)/$S$36 -> 4.671661411 | N61: z+L+(Ve)(t)/(4De)(t).5) = | Q61: =($M$18+$M$14+$I$36*$M$20)/POWER(4*$S$36*$M$20,0.5) -> 182.958435
I62: =IF($I$61>225,225,$I$61) -> 4.671661411 | N62: erfc(z+L+(Ve)(t)/(4De)(t).5) = | Q62: =IF($Q$61>27,ERFC(27),ERFC($Q$61)) -> 0
B63: 1+Ve/He)(exp((Ve)(z)/De = | I63: =(1+($I$36/$C$42))*EXP($I$62) -> 106.875212
C64: I | P64: J
H66: erfc(z+(Ve)(t)/(4De)(t).5) | P66: 2+(Ve)/(He)exp((He(He+Ve)(t)+(He+Ve)z)De
B68: z+(Ve)(t) = | I68: =$M$18+($I$36*$M$20) -> 1000.139581 | N68: 2+(Ve)/(He) | Q68: =2+$I$36/$C$42 -> 2.0000005
B69: z+(Ve)(t)/((4)(De)(t))1/2 = | I69: =($M$18+($I$36*$M$20))/(POWER(4*$S$36*$M$20,0.5)) -> 91.48560144
B70: erfc(z+(Ve)(t)/(4De)(t).5) = | I70: =IF($I$69>27,ERFC(27),ERFC($I$69)) -> 0 | N70: He+Ve | Q70: =$I$36+$C$42 -> 27916.2652
N71: He(He+Ve)(t) | Q71: =$C$42*($C$42+$I$36)*$M$20 -> 7793174733
N72: (He+Ve)z | Q72: =($C$42+$I$36)*$M$18 -> 27916265.2
N73: He(He+Ve)(t)+(He+Ve)z | Q73: =$C$42*($C$42+$I$36)*$M$20+($C$42+$I$36)*$M$18 -> 7821090998
N74: ((He(He+Ve)(t)+(He+Ve)z)/De | Q74: =($C$42*($C$42+$I$36)*$M$20+($C$42+$I$36)*$M$18)/$S$36 -> 2617650105
N75: IF(F101>225,225,F101,1) | Q75: =IF(($C$42*($C$42+$I$36)*$M$20+($C$42+$I$36)*$M$18)/$S$36>225,225,($C$42*($C$42+$I$36)*$M$20+($C$42+$I$36)*$M$18)/$S$36) -> 225
N76: exp((He(He+Ve)(t)+(He+Ve)z)De | Q76: =EXP(IF(($C$42*($C$42+$I$36)*$M$20+($C$42+$I$36)*$M$18)/$S$36>225,225,($C$42*($C$42+$I$36)*$M$20+($C$42+$I$36)*$M$18)/$S$36)) -> 5.203055138e+97
C78: K | P78: L
H80: erfc(z+(2He+Ve)t)/(4Det)1/2 | P80: exp(He*L/De) =
P81: (X)
B82: z+(2He+Ve)t/(4Det)1/2 = | I82: =$M$18+(2*$C$42+$I$36)*$M20/POWER(4*$S$36*$M$20,0.5) -> 52071.58484 | N82: He*L/De | Q82: =$C$42*$M$14/$S$36 -> 9343322.822
B83: erfc(z+(2He+Ve)t/(4Det)1/2) = | I83: =IF($M$18+(2*$C$42+$I$36)*$M20/POWER(4*$S$36*$M$20,0.5)>27,ERFC(27),ERFC(($M$18+(2*$C$42+$I$36)*$M20/POWER(4*$S$36*$M$20,0.5)))) -> 0 | N83: IF(F118>225,225,F1181 | Q83: =IF($C$42*$M$14/$S$36>225,225,$C$42*$M$14/$S$36) -> 225
N84: exp(He*L/De) = | Q84: =EXP(Q83) -> 5.203055138e+97
C87: M | P87: N
H89: erfc(z+L+(2He+Ve)t)/(4Det)1/2 | N89: u=.693/T1/2 | Q89: =0.693/$M$6 -> 6.93e-06
N90: exp(-ut) | Q90: =EXP(-0.693/$M$6*$M$20) -> 0.9999307024
B91: z+L+(2He+Ve)t = | I91: =$M$18+$M$14+(2*$C$42+$I$36)*$M$20 -> 560325.1645
B92: (4Det)1/2= | I92: =POWER(4*$S$36*$M$20,0.5) -> 10.93220753
B93: z+L+(2He+Ve)t/(4Det)1/2 | I93: =($M$18+$M$14+(2*$C$42+$I$36)*$M$20)/POWER(4*$S$36*$M$20,0.5) -> 51254.53051
B94: erfc(z+L+(2He+Ve)t)/(4Det)1/2 | I94: =IF(($M$18+$M$14+(2*$C$42+$I$36)*$M$20)/POWER(4*$S$36*$M$20,0.5)>27,ERFC(27),ERFC(($M$18+$M$14+(2*$C$42+$I$36)*$M$20)/POWER(4*$S$36*$M$20,0.5))) -> 0
C100: .5*Co(exp(-ut)(erfc(z-L-(Ve)(t)/(4De)(t).5 -erfc(z-(Ve)(t)/4De)(t).5)+(1+Ve/He)(exp((Ve)(z)/De)(erfc(z+L+(Ve)(t)/(4De)(t).5)-erfc(z+(Ve)(t)/(4De)(t).5)
S106: =POWER(4*$S$36*B129,0.5) -> 39.41663482
D114: exp(-ut) | F114: z-L-(Ve)(t)/(4De)(t).5 | I114: erfc(z-L-(Ve)(t)/(4De)(t).5) | L114: z-(Ve)(t)/4De)(t).5) | N114: erfc(z-(Ve)(t)/4De)(t).5)) | P114: erfc(z+L+(Ve)(t)/(4De)(t).5)) | R114: erfc(z+(Ve)(t)/(4De)(t).5) | U114: 2+(Ve)/(He)exp((He(He+Ve)(t)+(He+Ve)z)De | Y114: erfc(z+(2He+Ve)t)/(4Det)1/2 | AB114: erfc(z+L+(2He+Ve)t)/(4Det)1/2 | AF114: C/Co | AH114: Ct (ug/kg) | AJ114: CL (ug/l) | AL114: Cg (ug/l) | AN114: Cs (ug/kg)
D115: (N) | I115: (E) | N115: (F) | P115: (H) | R115: (I) | U115: (j) | Y115: (K) | AB115: (M) | AJ115: (Cl=Ct/Rl) | AL115: (Cg= Ct/Rg)
B116: ='Alt-GPL Calc for VOCs'!$I$32 -> 10
B117: =B116 -> 10 | D117: =EXP(-0.693/$M$6*B117) -> 0.9999307024 | F117: =($M$18-$M$14-($I$36*B117))/POWER(4*$S$36*B117,0.5) -> -0.01276789302 | I117: =IF(F117>0,ERFC(IF(F117<27,F117,27)),1+ERF(IF(-F117<27,-F117,27))) -> 1.014406242 | L117: =($M$18-(B117*$I$36))/POWER(4*$S$36*B117,0.5) -> 91.46006566 | N117: =IF(L117>0,ERFC(IF(L117<27,L117,27)),1+ERF(IF(-L117<27,-L117,27))) -> 0 | P117: =IF(($M$18+$M$14+$I$36*B117)/POWER(4*$S$36*B117,0.5)>27,ERFC(27),ERFC(($M$18+$M$14+$I$36*B117)/POWER(4*$S$36*B117,0.5))) -> 0 | R117: =IF(($M$18+$I$36*B117)/(POWER(4*$S$36*B117,0.5))>27,ERFC(27),ERFC(($M$18+$I$36*B117)/(POWER(4*$S$36*B117,0.5)))) -> 0 | U117: =(2+$I$36/$C$42)*EXP(IF(($C$42*($C$42+$I$36)*B117+($C$42+$I$36)*$M$18)/$S$36>225,225,($C$42*($C$42+$I$36)*B117+($C$42+$I$36)*$M$18)/$S$36)) -> 1.040611288e+98 | Y117: =IF(($M$18+((2*$C$42+$I$36)*B117))/POWER(4*$S$36*B117,0.5)>27,ERFC(27),ERFC(($M$18+((2*$C$42+$I$36)*B117))/POWER(4*$S$36*B117,0.5))) -> 0 | AB117: =IF(($M$18+$M$14+((2*$C$42+$I$36)*B117))/POWER(4*$S$36*B117,0.5)>27,ERFC(27),ERFC(($M$18+$M$14+((2*$C$42+$I$36)*B117))/POWER(4*$S$36*B117,0.5))) -> 0 | AF117: =0.5*D117*((I117-N117)+($Q$44)*(P117-R117)+U117*(Y117-($Q$84*AB117))) -> 0.5071679729 | AH117: =$M$4*AF117 -> 50.71679729 | AJ117: =AF117*$M$25 -> 151.6953059 | AL117: =AF117*$M$27 -> 151.6953059 | AN117: =AF117*$M$28 -> 0.1516953059
B118: =B117+$M$20 -> 20 | D118: =EXP(-0.693/$M$6*B118) -> 0.9998614096 | F118: -0.01805652747 | I118: 1.020372395 | L118: 64.66300437 | N118: 0 | P118: 0 | R118: 0 | U118: 1.040611288e+98 | Y118: 0 | AB118: 0 | AF118: =0.5*D118*((I118-N118)+($Q$44)*(P118-R118)+U118*(Y118-($Q$84*AB118))) -> 0.5101154908 | AH118: =$M$4*AF118 -> 51.01154908 | AJ118: =AF118*$M$25 -> 152.5769165 | AL118: =AF118*$M$27 -> 152.5769165 | AN118: =AF118*$M$28 -> 0.1525769165
B119: 30 | D119: 0.9997921216 | F119: -0.02211463941 | I119: 1.024949631 | L119: 52.78975043 | N119: 0 | P119: 0 | R119: 0 | U119: 1.040611288e+98 | Y119: 0 | AB119: 0 | AF119: 0.5123682831 | AH119: 51.23682831 | AJ119: 153.2507327 | AL119: 153.2507327 | AN119: 0.1532507327
B120: 40 | D120: 0.9997228384 | F120: -0.02553578604 | I120: 1.028807787 | L120: 45.71088099 | N120: 0 | P120: 0 | R120: 0 | U120: 1.040611288e+98 | Y120: 0 | AB120: 0 | AF120: 0.5142613206 | AH120: 51.42613206 | AJ120: 153.8169453 | AL120: 153.8169453 | AN120: 0.1538169453
B121: 50 | D121: 0.99965356 | F121: -0.02854987672 | I121: 1.032206335 | L121: 40.8793449 | N121: 0 | P121: 0 | R121: 0 | U121: 1.040611288e+98 | Y121: 0 | AB121: 0 | AF121: 0.515924369 | AH121: 51.5924369 | AJ121: 154.3143676 | AL121: 154.3143676 | AN121: 0.1543143676
B122: 60 | D122: 0.9995842864 | F122: -0.03127482298 | I122: 1.035278356 | L122: 37.3123531 | N122: 0 | P122: 0 | R122: 0 | U122: 1.040611288e+98 | Y122: 0 | AB122: 0 | AF122: 0.5174239885 | AH122: 51.74239885 | AJ122: 154.7629078 | AL122: 154.7629078 | AN122: 0.1547629078
B123: 70 | D123: 0.9995150176 | F123: -0.03378066969 | I123: 1.03810291 | L123: 34.53970066 | N123: 0 | P123: 0 | R123: 0 | U123: 1.040611288e+98 | Y123: 0 | AB123: 0 | AF123: 0.5187997241 | AH123: 51.87997241 | AJ123: 155.1743941 | AL123: 155.1743941 | AN123: 0.1551743941
B124: 80 | D124: 0.9994457537 | F124: -0.03611305494 | I124: 1.040731511 | L124: 32.30441739 | N124: 0 | P124: 0 | R124: 0 | U124: 1.040611288e+98 | Y124: 0 | AB124: 0 | AF124: 0.5200773449 | AH124: 52.00773449 | AJ124: 155.5565339 | AL124: 155.5565339 | AN124: 0.1555565339
B125: 90 | D125: 0.9993764945 | F125: -0.03830367905 | I125: 1.043199945 | L125: 30.45264084 | N125: 0 | P125: 0 | R125: 0 | U125: 1.040611288e+98 | Y125: 0 | AB125: 0 | AF125: 0.5212747521 | AH125: 52.12747521 | AJ125: 155.9146816 | AL125: 155.9146816 | AN125: 0.1559146816
B126: 100 | D126: 0.9993072401 | F126: -0.04037562286 | I126: 1.045534267 | L126: 28.88587418 | N126: 0 | P126: 0 | R126: 0 | U126: 1.040611288e+98 | Y126: 0 | AB126: 0 | AF126: 0.5224049815 | AH126: 52.24049815 | AJ126: 156.2527362 | AL126: 156.2527362 | AN126: 0.1562527362
B127: 110 | D127: 0.9992379905 | F127: -0.0423463105 | I127: 1.047754148 | L127: 27.53775072 | N127: 0 | P127: 0 | R127: 0 | U127: 1.040611288e+98 | Y127: 0 | AB127: 0 | AF127: 0.5234778749 | AH127: 52.34778749 | AJ127: 156.5736415 | AL127: 156.5736415 | AN127: 0.1565736415
B128: 120 | D128: 0.9991687457 | F128: -0.04422927882 | I128: 1.049874872 | L128: 26.36170326 | N128: 3.325014962e-304 | P128: 0 | R128: 3.100730667e-306 | U128: 1.040611288e+98 | Y128: 0 | AB128: 0 | AF128: 0.5245010797 | AH128: 52.45010797 | AJ128: 156.8796849 | AL128: 156.8796849 | AN128: 0.1568796849
B129: 130 | D129: 0.9990995057 | F129: -0.04603529295 | I129: 1.051908594 | L129: 25.32396407 | N129: 6.809787176e-281 | P129: 0 | R129: 6.348675084e-283 | U129: 1.040611288e+98 | Y129: 0 | AB129: 0 | AF129: 0.5254806781 | AH129: 52.54806781 | AJ129: 157.1726854 | AL129: 157.1726854 | AN129: 0.1571726854
B130: 140 | D130: 0.9990302705 | F130: -0.04777308122 | I130: 1.053865168 | L130: 24.39937001 | N130: 6.538395614e-261 | P130: 0 | R130: 6.093964306e-263 | U130: 1.040611288e+98 | Y130: 0 | AB130: 0 | AF130: 0.526421602 | AH130: 52.6421602 | AJ130: 157.4541183 | AL130: 157.4541183 | AN130: 0.1574541183
B131: 150 | D131: 0.9989610401 | F131: -0.04944983702 | I131: 1.055752718 | L131: 23.56873423 | N131: 1.36309858e-243 | P131: 0 | R131: 1.270091926e-245 | U131: 1.040611288e+98 | Y131: 0 | AB131: 0 | AF131: 0.5273279168 | AH131: 52.73279168 | AJ131: 157.7251995 | AL131: 157.7251995 | AN131: 0.1577251995
B132: 160 | D132: 0.9988918145 | F132: -0.05107157207 | I132: 1.057578033 | L132: 22.81713681 | N132: 1.948059725e-228 | P132: 0 | R132: 1.814635339e-230 | U132: 1.040611288e+98 | Y132: 0 | AB132: 0 | AF132: 0.5282030203 | AH132: 52.82030203 | AJ132: 157.9869453 | AL132: 157.9869453 | AN132: 0.1579869453
B133: 170 | D133: 0.9988225937 | F133: -0.05264337153 | I133: 1.059346856 | L133: 22.13277749 | N133: 4.5975015e-215 | P133: 0 | R133: 4.281423727e-217 | U133: 1.040611288e+98 | Y133: 0 | AB133: 0 | AF133: 0.5290497869 | AH133: 52.90497869 | AJ133: 158.2402154 | AL133: 158.2402154 | AN133: 0.1582402154
B134: 180 | D134: 0.9987533777 | F134: -0.05416958241 | I134: 1.061064095 | L134: 21.50618405 | N134: 3.550320551e-203 | P134: 0 | R134: 3.30531734e-205 | U134: 1.040611288e+98 | Y134: 0 | AB134: 0 | AF134: 0.5298706743 | AH134: 52.98706743 | AJ134: 158.4857451 | AL134: 158.4857451 | AN134: 0.1584857451
B135: 190 | D135: 0.9986841665 | F135: -0.05565395539 | I135: 1.062733987 | L135: 20.92965328 | N135: 1.539228387e-192 | P135: 0 | R135: 1.432609913e-194 | U135: 1.040611288e+98 | Y135: 0 | AB135: 0 | AF135: 0.5306678031 | AH135: 53.06678031 | AJ135: 158.7241684 | AL135: 158.7241684 | AN135: 0.1587241684
B136: 200 | D136: 0.9986149601 | F136: -0.05709975343 | I136: 1.064360218 | L136: 20.39684764 | N136: 5.770362648e-183 | P136: 0 | R136: 5.369171996e-185 | U136: 1.040611288e+98 | Y136: 0 | AB136: 0 | AF136: 0.5314430185 | AH136: 53.14430185 | AJ136: 158.9560374 | AL136: 158.9560374 | AN136: 0.1589560374
B137: 210 | D137: 0.9985457584 | F137: -0.05850983622 | I137: 1.065946018 | L137: 19.90249891 | N137: 2.653486879e-174 | P137: 0 | R137: 2.468314542e-176 | U137: 1.040611288e+98 | Y137: 0 | AB137: 0 | AF137: 0.5321979377 | AH137: 53.21979377 | AJ137: 159.1818358 | AL137: 159.1818358 | AN137: 0.1591818358
B138: 220 | D138: 0.9984765616 | F138: -0.05988672663 | I138: 1.067494238 | L138: 19.44218691 | N138: 1.992449606e-166 | P138: 0 | R138: 1.852892744e-168 | U138: 1.040611288e+98 | Y138: 0 | AB138: 0 | AF138: 0.5329339879 | AH138: 53.29339879 | AJ138: 159.4019904 | AL138: 159.4019904 | AN138: 0.1594019904
B139: 230 | D139: 0.9984073696 | F139: -0.06123266382 | I139: 1.069007405 | L139: 19.01217163 | N139: 3.094223601e-159 | P139: 0 | R139: 2.876696432e-161 | U139: 1.040611288e+98 | Y139: 0 | AB139: 0 | AF139: 0.5336524357 | AH139: 53.36524357 | AJ139: 159.6168801 | AL139: 159.6168801 | AN139: 0.1596168801
B140: 240 | D140: 0.9983381824 | F140: -0.06254964597 | I140: 1.070487779 | L140: 18.60926431 | N140: 1.21016015e-152 | P140: 0 | R140: 1.124772325e-154 | U140: 1.040611288e+98 | Y140: 0 | AB140: 0 | AF140: 0.5343544116 | AH140: 53.43544116 | AJ140: 159.8268429 | AL140: 159.8268429 | AN140: 0.1598268429
B141: 250 | D141: 0.9982689999 | F141: -0.06383946509 | I141: 1.071937383 | L141: 18.23072724 | N141: 1.406403182e-146 | P141: 0 | R141: 1.30680587e-148 | U141: 1.040611288e+98 | Y141: 0 | AB141: 0 | AF141: 0.5350409296 | AH141: 53.50409296 | AJ141: 160.0321823 | AL141: 160.0321823 | AN141: 0.1600321823
B142: 260 | D142: 0.9981998223 | F142: -0.06510373564 | I142: 1.073358042 | L142: 17.87419485 | N142: 5.586621145e-141 | P142: 0 | R142: 5.189552952e-143 | U142: 1.040611288e+98 | Y142: 0 | AB142: 0 | AF142: 0.5357129033 | AH142: 53.57129033 | AJ142: 160.2331715 | AL142: 160.2331715 | AN142: 0.1602331715
B143: 270 | D143: 0.9981306494 | F143: -0.06634391824 | I143: 1.074751406 | L143: 17.53761111 | N143: 8.545779346e-136 | P143: 0 | R143: 7.93618751e-138 | U143: 1.040611288e+98 | Y143: 0 | AB143: 0 | AF143: 0.5363711594 | AH143: 53.63711594 | AJ143: 160.4300577 | AL143: 160.4300577 | AN143: 0.1604300577
B144: 280 | D144: 0.9980614814 | F144: -0.06756133938 | I144: 1.076118974 | L144: 17.21917932 | N144: 5.575837446e-131 | P144: 0 | R144: 5.176663036e-133 | U144: 1.040611288e+98 | Y144: 0 | AB144: 0 | AF144: 0.5370164488 | AH144: 53.70164488 | AJ144: 160.6230655 | AL144: 160.6230655 | AN144: 0.1606230655
B145: 290 | D145: 0.9979923181 | F145: -0.06875720814 | I145: 1.077462113 | L145: 16.91732155 | N145: 1.694708524e-126 | P145: 0 | R145: 1.572948056e-128 | U145: 1.040611288e+98 | Y145: 0 | AB145: 0 | AF145: 0.5376494561 | AH145: 53.76494561 | AJ145: 160.8123996 | AL145: 160.8123996 | AN145: 0.1608123996
B146: 300 | D146: 0.9979231596 | F146: -0.06993263018 | I146: 1.078782072 | L146: 16.63064548 | N146: 2.589851342e-122 | P146: 0 | R146: 2.403110862e-124 | U146: 1.040611288e+98 | Y146: 0 | AB146: 0 | AF146: 0.5382708071 | AH146: 53.82708071 | AJ146: 160.9982474 | AL146: 160.9982474 | AN146: 0.1609982474
B147: 310 | D147: 0.9978540059 | F147: -0.07108861973 | I147: 1.080079998 | L147: 16.35791728 | N147: 2.126859406e-118 | P147: 0 | R147: 1.972955926e-120 | U147: 1.040611288e+98 | Y147: 0 | AB147: 0 | AF147: 0.5388810762 | AH147: 53.88810762 | AJ147: 161.1807805 | AL147: 161.1807805 | AN147: 0.1611807805
B148: 320 | D148: 0.9977848571 | F148: -0.07222610987 | I148: 1.081356944 | L148: 16.09803911 | N148: 9.948678923e-115 | P148: 0 | R148: 9.226217223e-117 | U148: 1.040611288e+98 | Y148: 0 | AB148: 0 | AF148: 0.5394807919 | AH148: 53.94807919 | AJ148: 161.3601571 | AL148: 161.3601571 | AN148: 0.1613601571
B149: 330 | D149: 0.997715713 | F149: =($M$18-$M$14-($I$36*B149))/POWER(4*$S$36*B149,0.5) -> -0.0733459613 | I149: 1.082613884 | L149: =($M$18-(B149*$I$36))/POWER(4*$S$36*B149,0.5) -> 15.85003049 | N149: 2.789778171e-111 | P149: 0 | R149: 2.586471036e-113 | U149: =(2+$I$36/$C$42)*EXP(IF(($C$42*($C$42+$I$36)*B149+($C$42+$I$36)*$M$18)/$S$36>225,225,($C$42*($C$42+$I$36)*B149+($C$42+$I$36)*$M$18)/$S$36)) -> 1.040611288e+98 | Y149: 0 | AB149: 0 | AF149: 0.5400704417 | AH149: 54.00704417 | AJ149: 161.5365229 | AL149: 161.5365229 | AN149: 0.1615365229
B150: 340 | D150: 0.9976465737 | F150: -0.07444896998 | I150: 1.083851718 | L150: 15.61301256 | N150: 4.906291622e-108 | P150: 0 | R150: 4.547482341e-110 | U150: 1.040611288e+98 | Y150: 0 | AB150: 0 | AF150: 0.5406504764 | AH150: 54.06504764 | AJ150: 161.7100129 | AL150: 161.7100129 | AN150: 0.1617100129
B151: 350 | D151: 0.9975774391 | F151: -0.07553587375 | I151: 1.085071279 | L151: 15.38619502 | N151: 5.632204571e-105 | P151: 0 | R151: 5.218862163e-107 | U151: 1.040611288e+98 | Y151: 0 | AB151: 0 | AF151: 0.5412213141 | AH151: 54.12213141 | AJ151: 161.880752 | AL151: 161.880752 | AN151: 0.161880752
B152: 360 | D152: 0.9975083094 | F152: -0.07660735811 | I152: 1.086273344 | L152: 15.1688649 | N152: 4.372985189e-102 | P152: 0 | R152: 4.05093415e-104 | U152: 1.040611288e+98 | Y152: 0 | AB152: 0 | AF152: 0.5417833433 | AH152: 54.17833433 | AJ152: 162.0488564 | AL152: 162.0488564 | AN152: 0.1620488564
B153: 370 | D153: 0.9974391845 | F153: -0.07766406124 | I153: 1.087458632 | L153: 14.96037714 | N153: 2.370375171e-99 | P153: 0 | R153: 2.195199856e-101 | U153: 1.040611288e+98 | Y153: 0 | AB153: 0 | AF153: 0.5423369255 | AH153: 54.23369255 | AJ153: 162.2144343 | AL153: 162.2144343 | AN153: 0.1622144343
B154: 380 | D154: 0.9973700644 | F154: -0.07870657851 | I154: 1.088627817 | L154: 14.76014647 | N154: 9.228092601e-97 | P154: 0 | R154: 8.543754231e-99 | U154: 1.040611288e+98 | Y154: 0 | AB154: 0 | AF154: 0.5428823982 | AH154: 54.28823982 | AJ154: 162.3775867 | AL154: 162.3775867 | AN154: 0.1623775867
B155: 390 | D155: 0.997300949 | F155: -0.07973546634 | I155: 1.08978153 | L155: 14.56764049 | N155: 2.646767889e-94 | P155: 0 | R155: 2.44981063e-96 | U155: 1.040611288e+98 | Y155: 0 | AB155: 0 | AF155: 0.5434200768 | AH155: 54.34200768 | AJ155: 162.5384078 | AL155: 162.5384078 | AN155: 0.1625384078
B156: 400 | D156: 0.9972318384 | F156: -0.08075124571 | I156: 1.090920357 | L156: 14.38237366 | N156: 5.722383834e-92 | P156: 0 | R156: 5.295092187e-94 | U156: 1.040611288e+98 | Y156: 0 | AB156: 0 | AF156: 0.5439502567 | AH156: 54.39502567 | AJ156: 162.6969861 | AL156: 162.6969861 | AN156: 0.1626969861
B157: 410 | D157: 0.9971627327 | F157: -0.08175440524 | I157: 1.092044853 | L157: 14.20390212 | N157: 9.520792754e-90 | P157: 0 | R157: 8.807437347e-92 | U157: 1.040611288e+98 | Y157: 0 | AB157: 0 | AF157: 0.5444732149 | AH157: 54.44732149 | AJ157: 162.8534042 | AL157: 162.8534042 | AN157: 0.1628534042
B158: 420 | D158: 0.9970936317 | F158: -0.08274540391 | I158: 1.093155536 | L158: 14.03181924 | N158: 1.242015897e-87 | P158: 0 | R158: 1.148638962e-89 | U158: 1.040611288e+98 | Y158: 0 | AB158: 0 | AF158: 0.5449892116 | AH158: 54.49892116 | AJ158: 163.0077403 | AL158: 163.0077403 | AN158: 0.1630077403
B159: 430 | D159: 0.9970245355 | F159: -0.08372467355 | I159: 1.094252894 | L159: 13.86575167 | N159: 1.292131039e-85 | P159: 0 | R159: 1.194656124e-87 | U159: 1.040611288e+98 | Y159: 0 | AB159: 0 | AF159: 0.5454984918 | AH159: 54.54984918 | AJ159: 163.1600673 | AL159: 163.1600673 | AN159: 0.1631600673
B160: 440 | D160: 0.9969554441 | F160: -0.08469262101 | I160: 1.095337388 | L160: 13.7053559 | N160: 1.088702285e-83 | P160: 0 | R160: 1.00629539e-85 | U160: 1.040611288e+98 | Y160: 0 | AB160: 0 | AF160: 0.5460012862 | AH160: 54.60012862 | AJ160: 163.3104545 | AL160: 163.3104545 | AN160: 0.1633104545
B161: 450 | D161: 0.9968863575 | F161: -0.08564963015 | I161: 1.096409452 | L161: 13.5503153 | N161: 7.534205338e-82 | P161: 0 | R161: 6.961996844e-84 | U161: 1.040611288e+98 | Y161: 0 | AB161: 0 | AF161: 0.5464978125 | AH161: 54.64978125 | AJ161: 163.4589669 | AL161: 163.4589669 | AN161: 0.1634589669
B162: 460 | D162: 0.9968172756 | F162: -0.08659606364 | I162: 1.097469496 | L162: 13.40033745 | N162: 4.337740187e-80 | P162: 0 | R162: 4.007190182e-82 | U162: 1.040611288e+98 | Y162: 0 | AB162: 0 | AF162: 0.5469882767 | AH162: 54.69882767 | AJ162: 163.605666 | AL162: 163.605666 | AN162: 0.163605666
B163: 470 | D163: 0.9967481986 | F163: -0.0875322645 | I163: 1.098517908 | L163: 13.25515182 | N163: 2.102254523e-78 | P163: 0 | R163: 1.941519652e-80 | U163: 1.040611288e+98 | Y163: 0 | AB163: 0 | AF163: 0.5474728731 | AH163: 54.74728731 | AJ163: 163.7506101 | AL163: 163.7506101 | AN163: 0.1637506101
B164: 480 | D164: 0.9966791263 | F164: -0.08845855765 | I164: 1.099555056 | L164: 13.11450771 | N164: 8.669137843e-77 | P164: 2.976818406e-307 | R164: 8.004100037e-79 | U164: 1.040611288e+98 | Y164: 0 | AB164: 0 | AF164: 0.5479517864 | AH164: 54.79517864 | AJ164: 163.8938543 | AL164: 163.8938543 | AN164: 0.1638938543
B165: 490 | D165: 0.9966100589 | F165: -0.08937525112 | I165: 1.100581288 | L165: 12.9781724 | N165: 3.072042035e-75 | P165: 4.55157672e-301 | R165: 2.835592931e-77 | U165: 1.040611288e+98 | Y165: 0 | AB165: 0 | AF165: 0.5484251912 | AH165: 54.84251912 | AJ165: 164.035451 | AL165: 164.035451 | AN165: 0.164035451
B166: 500 | D166: 0.9965409962 | F166: -0.09028263734 | I166: 1.101596935 | L166: 12.84592954 | N166: 9.440338062e-74 | P166: 3.938033066e-295 | R166: 8.711329426e-76 | U166: 1.040611288e+98 | Y166: 0 | AB166: 0 | AF166: 0.5488932536 | AH166: 54.88932536 | AJ166: 164.1754497 | AL166: 164.1754497 | AN166: 0.1641754497
B167: 510 | D167: 0.9964719383 | F167: -0.09118099417 | I167: 1.102602311 | L167: 12.71757771 | N167: 2.536857003e-72 | P167: 1.993653444e-289 | R167: 2.340308257e-74 | U167: 1.040611288e+98 | Y167: 0 | AB167: 0 | AF167: 0.5493561312 | AH167: 54.93561312 | AJ167: 164.3138977 | AL167: 164.3138977 | AN167: 0.1643138977
B168: 520 | D168: 0.9964028852 | F168: -0.09207058591 | I168: 1.103597716 | L168: 12.59292909 | N168: 6.007745519e-71 | P168: 6.091144165e-284 | R168: 5.540753375e-73 | U168: 1.040611288e+98 | Y168: 0 | AB168: 0 | AF168: 0.5498139743 | AH168: 54.98139743 | AJ168: 164.4508398 | AL168: 164.4508398 | AN168: 0.1644508398
B169: 530 | D169: 0.9963338368 | F169: -0.09295166422 | I169: 1.104583434 | L169: 12.47180834 | N169: 1.262815106e-69 | P169: 1.155685991e-278 | R169: 1.164333255e-71 | U169: 1.040611288e+98 | Y169: 0 | AB169: 0 | AF169: 0.5502669257 | AH169: 55.02669257 | AJ169: 164.5863187 | AL169: 164.5863187 | AN169: 0.1645863187
B170: 540 | D170: 0.9962647933 | F170: -0.09382446895 | I170: 1.105559737 | L170: 12.3540515 | N170: 2.371681257e-68 | P170: 1.398189451e-273 | R170: 2.186120637e-70 | U170: 1.040611288e+98 | Y170: 0 | AB170: 0 | AF170: 0.5507151215 | AH170: 55.07151215 | AJ170: 164.7203753 | AL170: 164.7203753 | AN170: 0.1647203753
B171: 550 | D171: 0.9961957545 | F171: -0.09468922888 | I171: 1.106526883 | L171: 12.23950513 | N171: 4.004310241e-67 | P171: 1.105439568e-268 | R171: 3.689995333e-69 | U171: 1.040611288e+98 | Y171: 0 | AB171: 0 | AF171: 0.5511586918 | AH171: 55.11586918 | AJ171: 164.8530484 | AL171: 164.8530484 | AN171: 0.1648530484
B172: 560 | D172: 0.9961267206 | F172: -0.09554616245 | I172: 1.10748512 | L172: 12.12802539 | N172: 6.112657621e-66 | P172: 5.843098432e-264 | R172: 5.63129779e-68 | U172: 1.040611288e+98 | Y172: 0 | AB172: 0 | AF172: 0.5515977606 | AH172: 55.15977606 | AJ172: 164.984375 | AL172: 164.984375 | AN172: 0.164984375
B173: 570 | D173: 0.9960576914 | F173: -0.09639547837 | I173: 1.108434685 | L173: 12.0194773 | N173: 8.481365468e-65 | P173: 2.109077674e-259 | R173: 7.811322201e-67 | U173: 1.040611288e+98 | Y173: 0 | AB173: 0 | AF173: 0.5520324465 | AH173: 55.20324465 | AJ173: 165.1143908 | AL173: 165.1143908 | AN173: 0.1651143908
B174: 580 | D174: 0.995988667 | F174: -0.09723737626 | I174: 1.109375802 | L174: 11.9137341 | N174: 1.074925812e-63 | P174: 5.302131672e-255 | R174: 9.897320735e-66 | U174: 1.040611288e+98 | Y174: 0 | AB174: 0 | AF174: 0.5524628629 | AH174: 55.24628629 | AJ174: 165.2431295 | AL174: 165.2431295 | AN174: 0.1652431295
B175: 590 | D175: 0.9959196474 | F175: -0.09807204716 | I175: 1.110308688 | L175: 11.81067654 | N175: 1.250162804e-62 | P175: 9.455915707e-251 | R175: 1.150763642e-64 | U175: 1.040611288e+98 | Y175: 0 | AB175: 0 | AF175: 0.5528891184 | AH175: 55.28891184 | AJ175: 165.3706236 | AL175: 165.3706236 | AN175: 0.1653706236
B176: 600 | D176: 0.9958506325 | F176: -0.09889967405 | I176: 1.11123355 | L176: 11.71019236 | N176: 1.339970375e-61 | P176: 1.217043243e-246 | R176: 1.233091173e-63 | U176: 1.040611288e+98 | Y176: 0 | AB176: 0 | AF176: 0.553311317 | AH176: 55.3311317 | AJ176: 165.4969044 | AL176: 165.4969044 | AN176: 0.1654969044
B177: 610 | D177: 0.9957816225 | F177: -0.0997204323 | I177: 1.112150588 | L177: 11.61217577 | N177: 1.328945787e-60 | P177: 1.148743804e-242 | R177: 1.222609362e-62 | U177: 1.040611288e+98 | Y177: 0 | AB177: 0 | AF177: 0.5537295584 | AH177: 55.37295584 | AJ177: 165.6220015 | AL177: 165.6220015 | AN177: 0.1656220015
B178: 620 | D178: 0.9957126172 | F178: -0.1005344902 | I178: 1.113059991 | L178: 11.51652699 | N178: 1.224146134e-59 | P178: 8.071814643e-239 | R178: 1.125885447e-61 | U178: 1.040611288e+98 | Y178: 0 | AB178: 0 | AF178: 0.5541439382 | AH178: 55.41439382 | AJ178: 165.7459436 | AL178: 165.7459436 | AN178: 0.1657459436
B179: 630 | D179: 0.9956436167 | F179: -0.1013420091 | I179: 1.113961942 | L179: 11.42315177 | N179: 1.050993902e-58 | P179: 4.282056443e-235 | R179: 9.663660214e-61 | U179: 1.040611288e+98 | Y179: 0 | AB179: 0 | AF179: 0.5545545482 | AH179: 55.45545482 | AJ179: 165.8687582 | AL179: 165.8687582 | AN179: 0.1658687582
B180: 640 | D180: 0.995574621 | F180: -0.1021431441 | I180: 1.114856616 | L180: 11.33196105 | N180: 8.438002403e-58 | P180: 1.737752074e-231 | R180: 7.756425787e-60 | U180: 1.040611288e+98 | Y180: 0 | AB180: 0 | AF180: 0.5549614766 | AH180: 55.49614766 | AJ180: 165.9904716 | AL180: 165.9904716 | AN180: 0.1659904716
B181: 650 | D181: 0.99550563 | F181: =($M$18-$M$14-($I$36*B181))/POWER(4*$S$36*B181,0.5) -> -0.1029380444 | I181: =IF(F181>0,ERFC(IF(F181<27,F181,27)),1+ERF(IF(-F181<27,-F181,27))) -> 1.115744183 | L181: =($M$18-(B181*$I$36))/POWER(4*$S$36*B181,0.5) -> 11.24287059 | N181: =IF(L181>0,ERFC(IF(L181<27,L181,27)),1+ERF(IF(-L181<27,-L181,27))) -> 6.354701094e-57 | P181: =IF(($M$18+$M$14+$I$36*B181)/POWER(4*$S$36*B181,0.5)>27,ERFC(27),ERFC(($M$18+$M$14+$I$36*B181)/POWER(4*$S$36*B181,0.5))) -> 5.461933917e-228 | R181: =IF(($M$18+$I$36*B181)/(POWER(4*$S$36*B181,0.5))>27,ERFC(27),ERFC(($M$18+$I$36*B181)/(POWER(4*$S$36*B181,0.5)))) -> 5.83979623e-59 | U181: =(2+$I$36/$C$42)*EXP(IF(($C$42*($C$42+$I$36)*B181+($C$42+$I$36)*$M$18)/$S$36>225,225,($C$42*($C$42+$I$36)*B181+($C$42+$I$36)*$M$18)/$S$36)) -> 1.040611288e+98 | Y181: =IF(($M$18+((2*$C$42+$I$36)*B181))/POWER(4*$S$36*B181,0.5)>27,ERFC(27),ERFC(($M$18+((2*$C$42+$I$36)*B181))/POWER(4*$S$36*B181,0.5))) -> 0 | AB181: =IF(($M$18+$M$14+((2*$C$42+$I$36)*B181))/POWER(4*$S$36*B181,0.5)>27,ERFC(27),ERFC(($M$18+$M$14+((2*$C$42+$I$36)*B181))/POWER(4*$S$36*B181,0.5))) -> 0 | AF181: 0.5553648082 | AH181: 55.53648082 | AJ181: 166.1111091 | AL181: 166.1111091 | AN181: 0.1661111091
B182: =B181+$M$20 -> 660 | D182: =EXP(-0.693/$M$6*B182) -> 0.9954366439 | F182: -0.1037268532 | I182: 1.116624806 | L182: 11.15580061 | N182: 4.502241234e-56 | P182: 1.345153587e-224 | R182: 4.136298984e-58 | U182: 1.040611288e+98 | Y182: 0 | AB182: 0 | AF182: =0.5*D182*((I182-N182)+($Q$44)*(P182-R182)+U182*(Y182-($Q$84*AB182))) -> 0.5557646245 | AH182: =$M$4*AF182 -> 55.57646245 | AJ182: =AF182*$M$25 -> 166.2306953 | AL182: =AF182*$M$27 -> 166.2306953 | AN182: =AF182*$M$28 -> 0.1662306953
B183: 670 | D183: 0.9953676625 | F183: -0.1045097085 | I183: 1.117498639 | L183: 11.07067554 | N183: 3.009035668e-55 | P183: 2.624258641e-221 | R183: 2.763701417e-57 | U183: 1.040611288e+98 | Y183: 0 | AB183: 0 | AF183: 0.5561610039 | AH183: 55.61610039 | AJ183: 166.3492534 | AL183: 166.3492534 | AN183: 0.1663492534
B184: 680 | D184: 0.9952986859 | F184: -0.1052867431 | I184: 1.118365833 | L184: 10.98742369 | N184: 1.90198835e-54 | P184: 4.097456003e-218 | R184: 1.746434444e-56 | U184: 1.040611288e+98 | Y184: 0 | AB184: 0 | AF184: 0.5565540221 | AH184: 55.65540221 | AJ184: 166.4668062 | AL184: 166.4668062 | AN184: 0.1664668062
B185: 690 | D185: 0.9952297141 | F185: -0.1060580848 | I185: 1.119226534 | L185: 10.90597702 | N185: 1.139784061e-53 | P185: 5.170108991e-215 | R185: 1.046279442e-55 | U185: 1.040611288e+98 | Y185: 0 | AB185: 0 | AF185: 0.5569437518 | AH185: 55.69437518 | AJ185: 166.5833754 | AL185: 166.5833754 | AN185: 0.1665833754
B186: 700 | D186: 0.9951607471 | F186: -0.1068238571 | I186: 1.120080881 | L186: 10.82627091 | N186: 6.490283609e-53 | P186: 5.32019332e-212 | R186: 5.956203016e-55 | U186: 1.040611288e+98 | Y186: 0 | AB186: 0 | AF186: 0.5573302632 | AH186: 55.73302632 | AJ186: 166.698982 | AL186: 166.698982 | AN186: 0.166698982
B187: 710 | D187: 0.9950917848 | F187: -0.1075841789 | I187: 1.120929009 | L187: 10.74824393 | N187: 3.519390196e-52 | P187: 4.503380935e-209 | R187: 3.228895342e-54 | U187: 1.040611288e+98 | Y187: 0 | AB187: 0 | AF187: 0.557713624 | AH187: 55.7713624 | AJ187: 166.8136463 | AL187: 166.8136463 | AN187: 0.1668136463
B188: 720 | D188: 0.9950228274 | F188: -0.1083391648 | I188: 1.121771047 | L188: 10.67183765 | N188: 1.821034179e-51 | P188: 3.16130883e-206 | R188: 1.67026509e-53 | U188: 1.040611288e+98 | Y188: 0 | AB188: 0 | AF188: 0.5580938995 | AH188: 55.80938995 | AJ188: 166.9273877 | AL188: 166.9273877 | AN188: 0.1669273877
B189: 730 | D189: 0.9949538747 | F189: -0.1090889258 | I189: 1.122607122 | L189: 10.59699645 | N189: 9.008480696e-51 | P189: 1.854607231e-203 | R189: 8.260372731e-53 | U189: 1.040611288e+98 | Y189: 0 | AB189: 0 | AF189: 0.5584711528 | AH189: 55.84711528 | AJ189: 167.0402252 | AL189: 167.0402252 | AN189: 0.1670402252
B190: 740 | D190: 0.9948849268 | F190: -0.1098335687 | I190: 1.123437354 | L190: 10.52366734 | N190: 4.268334685e-50 | P190: 9.159105469e-201 | R190: 3.912797477e-52 | U190: 1.040611288e+98 | Y190: 0 | AB190: 0 | AF190: 0.5588454448 | AH190: 55.88454448 | AJ190: 167.1521769 | AL190: 167.1521769 | AN190: 0.1671521769
B191: 750 | D191: 0.9948159836 | F191: -0.1105731971 | I191: 1.124261861 | L191: 10.45179982 | N191: 1.940382562e-49 | P191: 3.834079191e-198 | R191: 1.77826756e-51 | U191: 1.040611288e+98 | Y191: 0 | AB191: 0 | AF191: 0.5592168343 | AH191: 55.92168343 | AJ191: 167.2632605 | AL191: 167.2632605 | AN191: 0.1672632605
B192: 760 | D192: 0.9947470453 | F192: -0.1113079108 | I192: 1.125080755 | L192: 10.38134571 | N192: 8.477101597e-49 | P192: 1.369334115e-195 | R192: 7.766726229e-51 | U192: 1.040611288e+98 | Y192: 0 | AB192: 0 | AF192: 0.5595853784 | AH192: 55.95853784 | AJ192: 167.373493 | AL192: 167.373493 | AN192: 0.167373493
B193: 770 | D193: 0.9946781117 | F193: -0.1120378065 | I193: 1.125894147 | L193: 10.31225904 | N193: 3.564600466e-48 | P193: 4.198405225e-193 | R193: 3.264993799e-50 | U193: 1.040611288e+98 | Y193: 0 | AB193: 0 | AF193: 0.5599511321 | AH193: 55.99511321 | AJ193: 167.4828909 | AL193: 167.4828909 | AN193: 0.1674828909
B194: 780 | D194: 0.9946091829 | F194: -0.1127629779 | I194: 1.126702142 | L194: 10.24449589 | N194: 1.444826273e-47 | P194: 1.111563706e-190 | R194: 1.323025001e-49 | U194: 1.040611288e+98 | Y194: 0 | AB194: 0 | AF194: 0.5603141486 | AH194: 56.03141486 | AJ194: 167.5914702 | AL194: 167.5914702 | AN194: 0.1675914702
B195: 790 | D195: 0.9945402589 | F195: -0.1134835154 | I195: 1.127504844 | L195: 10.17801431 | N195: 5.652847502e-47 | P195: 2.555517842e-188 | R195: 5.174884205e-49 | U195: 1.040611288e+98 | Y195: 0 | AB195: 0 | AF195: 0.5606744796 | AH195: 56.06744796 | AJ195: 167.6992462 | AL195: 167.6992462 | AN195: 0.1676992462
B196: 800 | D196: 0.9944713396 | F196: -0.1141995069 | I196: 1.128302351 | L196: 10.11277419 | N196: 2.137672052e-46 | P196: 5.128809228e-186 | R196: 1.95638993e-48 | U196: 1.040611288e+98 | Y196: 0 | AB196: 0 | AF196: 0.5610321751 | AH196: 56.10321751 | AJ196: 167.8062338 | AL196: 167.8062338 | AN196: 0.1678062338
B197: 810 | D197: 0.9944024251 | F197: -0.1149110372 | I197: 1.129094759 | L197: 10.04873713 | N197: 7.823191519e-46 | P197: 9.030925499e-184 | R197: 7.157795747e-48 | U197: 1.040611288e+98 | Y197: 0 | AB197: 0 | AF197: 0.5613872835 | AH197: 56.13872835 | AJ197: 167.9124477 | AL197: 167.9124477 | AN197: 0.1679124477
B198: 820 | D198: 0.9943335154 | F198: -0.1156181887 | I198: 1.129882163 | L198: 9.985866414 | N198: 2.774061938e-45 | P198: 1.401859543e-181 | R198: 2.537420936e-47 | U198: 1.040611288e+98 | Y198: 0 | AB198: 0 | AF198: 0.5617398517 | AH198: 56.17398517 | AJ198: 168.0179018 | AL198: 168.0179018 | AN198: 0.1680179018
B199: 830 | D199: 0.9942646105 | F199: -0.1163210413 | I199: 1.130664653 | L199: 9.924126842 | N199: 9.541855307e-45 | P199: 1.927132428e-179 | R199: 8.725498427e-47 | U199: 1.040611288e+98 | Y199: 0 | AB199: 0 | AF199: 0.5620899253 | AH199: 56.20899253 | AJ199: 168.1226098 | AL199: 168.1226098 | AN199: 0.1681226098
B200: 840 | D200: 0.9941957104 | F200: -0.1170196724 | I200: 1.131442316 | L200: 9.863484703 | N200: 3.187172608e-44 | P200: 2.356337648e-177 | R200: 2.913694952e-46 | U200: 1.040611288e+98 | Y200: 0 | AB200: 0 | AF200: 0.5624375484 | AH200: 56.24375484 | AJ200: 168.2265848 | AL200: 168.2265848 | AN200: 0.1682265848
B201: 850 | D201: 0.994126815 | F201: -0.1177141573 | I201: 1.132215237 | L201: 9.803907672 | N201: 1.034865349e-43 | P201: 2.573225387e-175 | R201: 9.458090139e-46 | U201: 1.040611288e+98 | Y201: 0 | AB201: 0 | AF201: 0.5627827638 | AH201: 56.27827638 | AJ201: 168.3298396 | AL201: 168.3298396 | AN201: 0.1683298396
B202: 860 | D202: 0.9940579244 | F202: -0.1184045688 | I202: 1.1329835 | L202: 9.745364745 | N202: 3.269611363e-43 | P202: 2.519674334e-173 | R202: 2.98742403e-45 | U202: 1.040611288e+98 | Y202: 0 | AB202: 0 | AF202: 0.5631256132 | AH202: 56.31256132 | AJ202: 168.4323868 | AL202: 168.4323868 | AN202: 0.1684323868
B203: 870 | D203: 0.9939890386 | F203: -0.1190909779 | I203: 1.133747185 | L203: 9.687826167 | N203: 1.006123471e-42 | P203: 2.220600901e-171 | R203: 9.190373798e-45 | U203: 1.040611288e+98 | Y203: 0 | AB203: 0 | AF203: 0.5634661371 | AH203: 56.34661371 | AJ203: 168.5342384 | AL203: 168.5342384 | AN203: 0.1685342384
B204: 880 | D204: 0.9939201575 | F204: -0.1197734533 | I204: 1.134506369 | L204: 9.631263367 | N204: 3.0181411e-42 | P204: 1.767726738e-169 | R204: 2.756148543e-44 | U204: 1.040611288e+98 | Y204: 0 | AB204: 0 | AF204: 0.5638043745 | AH204: 56.38043745 | AJ204: 168.6354061 | AL204: 168.6354061 | AN204: 0.1686354061
B205: 890 | D205: 0.9938512812 | F205: -0.1204520618 | I205: 1.135261129 | L205: 9.575648902 | N205: 8.833516673e-42 | P205: 1.275461092e-167 | R205: 8.064508909e-44 | U205: 1.040611288e+98 | Y205: 0 | AB205: 0 | AF205: 0.5641403637 | AH205: 56.41403637 | AJ205: 168.7359014 | AL205: 168.7359014 | AN205: 0.1687359014
B206: 900 | D206: 0.9937824097 | F206: -0.1211268686 | I206: 1.136011538 | L206: 9.520956399 | N206: 2.524583421e-41 | P206: 8.368536987e-166 | R206: 2.304173923e-43 | U206: 1.040611288e+98 | Y206: 0 | AB206: 0 | AF206: 0.5644741418 | AH206: 56.44741418 | AJ206: 168.8357353 | AL206: 168.8357353 | AN206: 0.1688357353
B207: 910 | D207: 0.993713543 | F207: -0.1217979367 | I207: 1.136757668 | L207: 9.467160501 | N207: 7.050961331e-41 | P207: 5.008669205e-164 | R207: 6.433615906e-43 | U207: 1.040611288e+98 | Y207: 0 | AB207: 0 | AF207: 0.5648057448 | AH207: 56.48057448 | AJ207: 168.9349187 | AL207: 168.9349187 | AN207: 0.1689349187
B208: 920 | D208: 0.993644681 | F208: -0.1224653276 | I208: 1.137499588 | L208: 9.414236817 | N208: 1.925906377e-40 | P208: 2.742753348e-162 | R208: 1.756803788e-42 | U208: 1.040611288e+98 | Y208: 0 | AB208: 0 | AF208: 0.5651352078 | AH208: 56.51352078 | AJ208: 169.033462 | AL208: 169.033462 | AN208: 0.169033462
B209: 930 | D209: 0.9935758238 | F209: -0.1231291012 | I209: 1.138237367 | L209: 9.362161876 | N209: 5.148277574e-40 | P209: 1.378122761e-160 | R209: 4.694954201e-42 | U209: 1.040611288e+98 | Y209: 0 | AB209: 0 | AF209: 0.5654625649 | AH209: 56.54625649 | AJ209: 169.1313753 | AL209: 169.1313753 | AN209: 0.1691313753
B210: 940 | D210: 0.9935069714 | F210: -0.1237893156 | I210: 1.13897107 | L210: 9.310913082 | N210: 1.34780523e-39 | P210: 6.371152189e-159 | R210: 1.22879062e-41 | U210: 1.040611288e+98 | Y210: 0 | AB210: 0 | AF210: 0.5657878494 | AH210: 56.57878494 | AJ210: 169.2286688 | AL210: 169.2286688 | AN210: 0.1692286688
B211: 950 | D211: 0.9934381238 | F211: -0.1244460275 | I211: 1.139700762 | L211: 9.260468675 | N211: 3.457933324e-39 | P211: 2.717183435e-157 | R211: 3.15172804e-41 | U211: 1.040611288e+98 | Y211: 0 | AB211: 0 | AF211: 0.5661110935 | AH211: 56.61110935 | AJ211: 169.325352 | AL211: 169.325352 | AN211: 0.169325352
B212: 960 | D212: 0.9933692809 | F212: -0.1250992919 | I212: 1.140426505 | L212: 9.210807688 | N212: 8.699701958e-39 | P212: 1.071729657e-155 | R212: 7.927164889e-41 | U212: 1.040611288e+98 | Y212: 0 | AB212: 0 | AF212: 0.5664323288 | AH212: 56.64323288 | AJ212: 169.4214343 | AL212: 169.4214343 | AN212: 0.1694214343
B213: 970 | D213: 0.9933004428 | F213: =($M$18-$M$14-($I$36*B213))/POWER(4*$S$36*B213,0.5) -> -0.1257491628 | I213: 1.141148361 | L213: =($M$18-(B213*$I$36))/POWER(4*$S$36*B213,0.5) -> 9.161909913 | N213: 2.14759859e-38 | P213: 3.918917594e-154 | R213: 1.956356739e-40 | U213: =(2+$I$36/$C$42)*EXP(IF(($C$42*($C$42+$I$36)*B213+($C$42+$I$36)*$M$18)/$S$36>225,225,($C$42*($C$42+$I$36)*B213+($C$42+$I$36)*$M$18)/$S$36)) -> 1.040611288e+98 | Y213: 0 | AB213: 0 | AF213: 0.5667515859 | AH213: 56.67515859 | AJ213: 169.516925 | AL213: 169.516925 | AN213: 0.169516925
B214: 980 | D214: 0.9932316094 | F214: -0.1263956923 | I214: 1.141866387 | L214: 9.113755864 | N214: 5.204928875e-38 | P214: 1.331582457e-152 | R214: 4.740140223e-40 | U214: 1.040611288e+98 | Y214: 0 | AB214: 0 | AF214: 0.5670688948 | AH214: 56.70688948 | AJ214: 169.6118329 | AL214: 169.6118329 | AN214: 0.1696118329
B215: 990 | D215: 0.9931627809 | F215: -0.1270389315 | I215: 1.142580643 | L215: 9.066326747 | N215: 1.239171005e-37 | P215: 4.213634363e-151 | R215: 1.128207827e-39 | U215: 1.040611288e+98 | Y215: 0 | AB215: 0 | AF215: 0.5673842846 | AH215: 56.73842846 | AJ215: 169.7061669 | AL215: 169.7061669 | AN215: 0.1697061669
B216: 1000 | D216: 0.9930939571 | F216: -0.1276789302 | I216: 1.143291185 | L216: 9.019604425 | N216: 2.89957652e-37 | P216: 1.244398988e-149 | R216: 2.639209961e-39 | U216: 1.040611288e+98 | Y216: 0 | AB216: 0 | AF216: 0.5676977837 | AH216: 56.76977837 | AJ216: 169.7999353 | AL216: 169.7999353 | AN216: 0.1697999353
B217: 1010 | D217: 0.9930251381 | F217: -0.1283157368 | I217: 1.143998068 | L217: 8.973571391 | N217: 6.6718725e-37 | P217: 3.436900242e-148 | R217: 6.071117435e-39 | U217: 1.040611288e+98 | Y217: 0 | AB217: 0 | AF217: 0.5680094198 | AH217: 56.80094198 | AJ217: 169.8931465 | AL217: 169.8931465 | AN217: 0.1698931465
B218: 1020 | D218: 0.9929563238 | F218: -0.1289493986 | I218: 1.144701346 | L218: 8.92821074 | N218: 1.51037553e-36 | P218: 8.894759693e-147 | R218: 1.374002081e-38 | U218: 1.040611288e+98 | Y218: 0 | AB218: 0 | AF218: 0.5683192199 | AH218: 56.83192199 | AJ218: 169.9858086 | AL218: 169.9858086 | AN218: 0.1699858086
B219: 1030 | D219: 0.9928875143 | F219: -0.1295799618 | I219: 1.14540107 | L219: 8.883506143 | N219: 3.365519206e-36 | P219: 2.161144704e-145 | R219: 3.060808108e-38 | U219: 1.040611288e+98 | Y219: 0 | AB219: 0 | AF219: 0.5686272105 | AH219: 56.86272105 | AJ219: 170.0779294 | AL219: 170.0779294 | AN219: 0.1700779294
B220: 1040 | D220: 0.9928187096 | F220: -0.1302074713 | I220: 1.146097292 | L220: 8.839441822 | N220: 7.384942396e-36 | P220: 4.938630164e-144 | R220: 6.714485621e-38 | U220: 1.040611288e+98 | Y220: 0 | AB220: 0 | AF220: 0.5689334171 | AH220: 56.89334171 | AJ220: 170.1695166 | AL220: 170.1695166 | AN220: 0.1701695166
B221: 1050 | D221: 0.9927499096 | F221: -0.1308319711 | I221: 1.146790062 | L221: 8.796002522 | N221: 1.59646902e-35 | P221: 1.063317032e-142 | R221: 1.451134822e-37 | U221: 1.040611288e+98 | Y221: 0 | AB221: 0 | AF221: 0.569237865 | AH221: 56.9237865 | AJ221: 170.2605778 | AL221: 170.2605778 | AN221: 0.1702605778
B222: 1060 | D222: 0.9926811144 | F222: -0.1314535042 | I222: 1.147479428 | L222: 8.753173497 | N222: 3.401539187e-35 | P222: 2.160650507e-141 | R222: 3.091038438e-37 | U222: 1.040611288e+98 | Y222: 0 | AB222: 0 | AF222: 0.5695405787 | AH222: 56.95405787 | AJ222: 170.3511203 | AL222: 170.3511203 | AN222: 0.1703511203
B223: 1070 | D223: 0.992612324 | F223: -0.1320721123 | I223: 1.148165438 | L223: 8.710940482 | N223: 7.146089814e-35 | P223: 4.15026941e-140 | R223: 6.49200853e-37 | U223: 1.040611288e+98 | Y223: 0 | AB223: 0 | AF223: 0.5698415821 | AH223: 56.98415821 | AJ223: 170.4411512 | AL223: 170.4411512 | AN223: 0.1704411512
B224: 1080 | D224: 0.9925435384 | F224: -0.1326878365 | I224: 1.148848139 | L224: 8.669289676 | N224: 1.480844131e-34 | P224: 7.547732507e-139 | R224: 1.344936161e-36 | U224: 1.040611288e+98 | Y224: 0 | AB224: 0 | AF224: 0.5701408986 | AH224: 57.01408986 | AJ224: 170.5306776 | AL224: 170.5306776 | AN224: 0.1705306776
B225: 1090 | D225: 0.9924747575 | F225: -0.1333007166 | I225: 1.149527576 | L225: 8.628207719 | N225: 3.028041062e-34 | P225: 1.301543528e-137 | R225: 2.749386645e-36 | U225: 1.040611288e+98 | Y225: 0 | AB225: 0 | AF225: 0.5704385511 | AH225: 57.04385511 | AJ225: 170.6197062 | AL225: 170.6197062 | AN225: 0.1706197062
B226: 1100 | D226: 0.9924059814 | F226: -0.1339107917 | I226: 1.150203793 | L226: 8.58768168 | N226: 6.112000843e-34 | P226: 2.131241466e-136 | R226: 5.548035439e-36 | U226: 1.040611288e+98 | Y226: 0 | AB226: 0 | AF226: 0.5707345619 | AH226: 57.07345619 | AJ226: 170.7082438 | AL226: 170.7082438 | AN226: 0.1707082438
B227: 1110 | D227: 0.99233721 | F227: -0.1345181 | I227: 1.150876833 | L227: 8.547699036 | N227: 1.218221623e-33 | P227: 3.318527862e-135 | R227: 1.105513151e-35 | U227: 1.040611288e+98 | Y227: 0 | AB227: 0 | AF227: 0.5710289528 | AH227: 57.10289528 | AJ227: 170.796297 | AL227: 170.796297 | AN227: 0.170796297
B228: 1120 | D228: 0.9922684434 | F228: -0.1351226788 | I228: 1.151546739 | L228: 8.508247653 | N228: 2.398485232e-33 | P228: 4.920197517e-134 | R228: 2.175987882e-35 | U228: 1.040611288e+98 | Y228: 0 | AB228: 0 | AF228: 0.5713217453 | AH228: 57.13217453 | AJ228: 170.883872 | AL228: 170.883872 | AN228: 0.170883872
B229: 1130 | D229: 0.9921996816 | F229: -0.1357245645 | I229: 1.152213553 | L229: 8.469315776 | N229: 4.666132288e-33 | P229: 6.955182871e-133 | R229: 4.23212329e-35 | U229: 1.040611288e+98 | Y229: 0 | AB229: 0 | AF229: 0.5716129601 | AH229: 57.16129601 | AJ229: 170.9709751 | AL229: 170.9709751 | AN229: 0.1709709751
B230: 1140 | D230: 0.9921309246 | F230: -0.1363237929 | I230: 1.152877314 | L230: 8.430892012 | N230: 8.972691733e-33 | P230: 9.385737266e-132 | R230: 8.135905158e-35 | U230: 1.040611288e+98 | Y230: 0 | AB230: 0 | AF230: 0.5719026177 | AH230: 57.19026177 | AJ230: 171.0576125 | AL230: 171.0576125 | AN230: 0.1710576125
B231: 1150 | D231: 0.9920621723 | F231: -0.1369203987 | I231: 1.153538062 | L231: 8.392965312 | N231: 1.705948255e-32 | P231: 1.21056464e-130 | R231: 1.54643217e-34 | U231: 1.040611288e+98 | Y231: 0 | AB231: 0 | AF231: 0.572190738 | AH231: 57.2190738 | AJ231: 171.14379 | AL231: 171.14379 | AN231: 0.17114379
B232: 1160 | D232: 0.9919934247 | F232: -0.1375144163 | I232: 1.154195837 | L232: 8.355524964 | N232: 3.207846161e-32 | P232: 1.494084367e-129 | R232: 2.907103353e-34 | U232: 1.040611288e+98 | Y232: 0 | AB232: 0 | AF232: 0.5724773406 | AH232: 57.24773406 | AJ232: 171.2295137 | AL232: 171.2295137 | AN232: 0.1712295137
B233: 1170 | D233: 0.991924682 | F233: -0.1381058789 | I233: 1.154850676 | L233: 8.318560574 | N233: 5.967447461e-32 | P233: 1.766526847e-128 | R233: 5.406515929e-34 | U233: 1.040611288e+98 | Y233: 0 | AB233: 0 | AF233: 0.5727624447 | AH233: 57.27624447 | AJ233: 171.314789 | AL233: 171.314789 | AN233: 0.171314789
B234: 1180 | D234: 0.991855944 | F234: -0.1386948192 | I234: 1.155502616 | L234: 8.28206206 | N234: 1.098524451e-31 | P234: 2.003074765e-127 | R234: 9.949942701e-34 | U234: 1.040611288e+98 | Y234: 0 | AB234: 0 | AF234: 0.5730460689 | AH234: 57.30460689 | AJ234: 171.3996218 | AL234: 171.3996218 | AN234: 0.1713996218
B235: 1190 | D235: 0.9917872107 | F235: -0.1392812692 | I235: 1.156151693 | L235: 8.246019634 | N235: 2.001665837e-31 | P235: 2.180538527e-126 | R235: 1.812526746e-33 | U235: 1.040611288e+98 | Y235: 0 | AB235: 0 | AF235: 0.5733282315 | AH235: 57.33282315 | AJ235: 171.4840174 | AL235: 171.4840174 | AN235: 0.1714840174
B236: 1200 | D236: 0.9917184823 | F236: -0.1398652604 | I236: 1.156797944 | L236: 8.210423795 | N236: 3.611145645e-31 | P236: 2.281196439e-125 | R236: 3.269037273e-33 | U236: 1.040611288e+98 | Y236: 0 | AB236: 0 | AF236: 0.5736089505 | AH236: 57.36089505 | AJ236: 171.5679812 | AL236: 171.5679812 | AN236: 0.1715679812
... 81 more rows

Sheet OutputJury1 (hidden)
A1: 2008-11-01
D3: Outputs from Soil Contamination Versus Time, IntercalcsJury1
F5: =IF('Alt-GPL Calc for VOCs'!$I$13>IntercalsJury1!$M$30*1000,"Warning: Input soil concentration exceeds maximum allowed"," ") -> 
F27: =IF('Alt-GPL Calc for VOCs'!$I$13>IntercalsJury1!$M$30*1000,"Warning: Input soil concentration exceeds maximum allowed"," ") -> 
F48: =IF('Alt-GPL Calc for VOCs'!$I$13>IntercalsJury1!$M$30*1000,"Warning: Input soil concentration exceeds maximum allowed"," ") -> 
F69: =IF('Alt-GPL Calc for VOCs'!$I$13>IntercalsJury1!$M$30*1000,"Warning: Input soil concentration exceeds maximum allowed"," ") -> 
F90: =IF('Alt-GPL Calc for VOCs'!$I$13>IntercalsJury1!$M$30*1000,"Warning: Input soil concentration exceeds maximum allowed"," ") -> 

Sheet GPL (hidden)
A1: 2008-06-01
C2: Saturated Zone Mixing Cell Model | G2: (calculates soil concentration protective of groundwater quality)
B7: Sc = Distance from edge of release to compliance point (m) | F7: ='Alt-GPL Calc for VOCs'!I27 -> 30.5
B9: s = Screen interval (m) | F9: ='Alt-GPL Calc for VOCs'!I29 -> 8.2
B11: WQS = Water quality standard (ug/l) | F11: ='Alt-GPL Calc for VOCs'!I10 -> 1
B13: T1/2 GW = Saturated zone 1/2 life (d) | F13: ='Alt-GPL Calc for VOCs'!I12 -> 100000
B15: v = Groundwater velocity [v=Ki/n] (cm/d) | F15: ='Alt-GPL Calc for VOCs'!I30 -> 10
B17: Si = Infiltration rate (cm/d) | F17: ='Alt-GPL Calc for VOCs'!I24 -> 0.007
B18: (under source zone)
B20: Ai= Infiltration rate (cm/d) | F20: ='Alt-GPL Calc for VOCs'!I31 -> 0.007
B21: (outside source zone)
B23: Sl = Source width (m) | F23: ='Alt-GPL Calc for VOCs'!I28 -> 10
B25: Φ = total porosity (vol/vol) | F25: ='Alt-GPL Calc for VOCs'!I16 -> 0.5
B27: θ = water content (vol/vol) | F27: ='Alt-GPL Calc for VOCs'!I18 -> 0.45
B29: foc A = Organic carbon in aquifer (mass/mass) | F29: ='Alt-GPL Calc for VOCs'!I20 -> 0.001
B31: koc = Soil distribution coefficient (L/kg) | F31: ='Alt-GPL Calc for VOCs'!$I$9 -> 1
B33: Pb = Dry bulk density (g/cm3) | F33: ='Alt-GPL Calc for VOCs'!I17 -> 1.5
B35: R = Retardation factor | D35: 1+ (Pb)(Koc)(foc A)/ Φ | F35: =1+(F33*F31*F29)/F25 -> 1.003
B37: I. Calcuate water travel time to compliance point
C39: t = (Sc + Sl)/ v
C41: t (days) = | D41: =($F$7+$F$23)/($F$15/100) -> 405
B43: II. Calculate concentration reduction due to degradation in the saturated zone
C45: A. Calculate saturated zone degradation time
D47: t = R*Sc/ v
D49: =$F$35*(F7+ F23)/(F15/100) -> 406.215 | E49: days
C52: B. Calculate the dilution factor from peak vadose zone concentration to saturated
C53: concentration at compliance point but before well screen dilution
D55: daf =(Si)(Sl)/((Ai)(Sc) + (Si)(Sl))
D57: daf = | F57: =$F$23*$F$17/($F$23*$F$17+($F$7*$F$20)) -> 0.2469135802
C60: C. Calculate the degraded peak liquid phase concentration at compliance point but before well screen adjustment
D62: =MAX(IntercalsJury1!AJ117:AJ317)*(EXP(-0.693/$F$13*$D$49))*$F$57 -> 43.65000309 | E62: ug/L
B63: max vadose zone | D63: =MAX(IntercalsJury1!AJ117:AJ317) -> 177.2808688 | E63: ug/L
C65: D. Calculate peak concentration adusted for well screen
D67: 1) Calculate mixing zone depth at compliance point
E69: t =( Sc + Sl)/ v
E71: =(F7+F23)*100/F15 -> 405 | G71: unit days
D73: 2) mixing depth = (infiltration rate)(t)/porosity
D75: d (cm) = | E75: =$F$17*$E$71/F25 -> 5.67
D77: 3) daf well screen = well screen/d
E79: =IF($F$9*100/$E$75>1,$F$9*100/$E$75,1) -> 144.6208113 | F79: (length/length)
C82: E. Calculate GPL
D84: 1) Calculate peak groundwater concentration after well screen dilution
E86: =$D$62/$E$79 -> 0.3018238018 | F86: ug/L
D88: 2) Adjust initial soil contaminant concentration and calculate GPL
E90: =(IntercalsJury1!$M$5*$F$11/$E$86)/($F$33+$F$27)/1000 -> 0.2548608707 | F90: mg/kg
D92: 3) Compare to soil saturation concentration
D94: soil saturation (mg/kg) = | F94: =IntercalsJury1!M30 -> 0.3343333333
D96: =IF(E90>F94,F94,E90) -> 0.2548608707 | E96: mg/kg
D97: =IF(E90>F94,"GPL based upon solubility threshold","") -> 
D101: =IF($E$99>IntercalsJury1!$M$30,"Warning: Soil concentration exceeds saturation level"," ") -> 
B245: IV. Calculate

Sheet IntercalcsJury2 (hidden)
A1: 2008-01-28 | C1: Solution of Jury Equation | F1: This spreadsheet estimates C/Co at depth given a specific time.
B4: Ct = total soil contamination (ug/kg) | M4: ='Alt-GPL Calc for VOCs'!I13 -> 100
B5: Co (ug/cm3) = (Ct)(Pbw) | M5: =$M$4*$M$9 -> 150
B6: T1/2 (d) | M6: ='Alt-GPL Calc for VOCs'!I11 -> 100000
B7: Kh (dimensionless) | M7: ='Alt-GPL Calc for VOCs'!$I$7 -> 1
B8: Φ(total porosity) | M8: ='Alt-GPL Calc for VOCs'!I16 -> 0.5
B9: Pb dry g/cm3 | M9: ='Alt-GPL Calc for VOCs'!I17 -> 1.5
B10: foc | M10: ='Alt-GPL Calc for VOCs'!I19 -> 0.001
B11: Dga (cm2/d) | M11: ='Alt-GPL Calc for VOCs'!I21 -> 7000 | N11: (default)
B12: D1w(cm2/d) | M12: ='Alt-GPL Calc for VOCs'!I22 -> 0.7 | N12: (default)
B13: L (cm)(depth of incorporation) | M13: ='Alt-GPL Calc for VOCs'!I25 -> 1000
B14: θ (vol/vol)= water content | M14: ='Alt-GPL Calc for VOCs'!I18 -> 0.45
B15: Jw (water flux- cm/d) | M15: ='Alt-GPL Calc for VOCs'!I24 -> 0.007
B16: Koc (cm3/g) | M16: ='Alt-GPL Calc for VOCs'!$I$9 -> 1
B17: z (total vadose zone depth, cm) | M17: ='Alt-GPL Calc for VOCs'!I34 -> 3000
B18: a(air filled porosity) | M18: =$M$8-$M$14 -> 0.05
B19: t (days) (calculation test) | M19: ='Alt-GPL Calc for VOCs'!I33 -> 365
B20: d(diffusion layer thickness,cm) | M20: 0.5 | N20: (default)
B24: Rl (liquid phase coeffcient ) = (Pb)(foc)(Koc)+Φ+aKh | M24: =($M$16*$M$10*$M$9)+($M$14+$M$18*$M$7) -> 0.5015
B25: Maximum liquid phase concentration (ug/l) | M25: =$M$5/$M$24 -> 299.1026919
B26: Maximum gas phase Concentraton (ug/l) = Kh*Max. liquid phase | M26: =$M$25*$M$7 -> 299.1026919
B27: Maximum sorbed phase soil concentration (ug/kg) = (Cl)(Foc)(Koc) | M27: =$M$25*$M$10*$M$16 -> 0.2991026919
C28: A | O28: B
H29: Ve=Jw/((Pb)(Foc)(Koc)+θ+aKh)
R30: De=((a3.33)(Dga)(Kh)+(θ3.33)(D1w))/Φ2/((Pb)(Foc)(Koc)+θ+aKh)
B31: (Pb)(Foc)(Koc) | I31: =$M$9*$M$10*$M$16 -> 0.0015
B32: (Pb)(Foc)(Koc)+θ+aKh | I32: =$I$31+$M$14+$M$18*$M$7 -> 0.5015 | O32: (a3.33)(Dga)(Kh)+(θ3.33)(D1w))/Φ2 | T32: =((POWER($M$18,3.33)*$M$11*$M$7+POWER($M$14,3.33)*$M$12))/POWER($M$8,2) -> 1.498396263
B33: Ve = | I33: =$M$15/$I$32 -> 0.01395812562 | R33: De= | T33: =$T$32/$I$32 -> 2.987829039
C36: C | O36: D
B37: He=(Kh)(Dga)/(d((Pb)(Foc)(Koc)+θ+aKh)) | N37: (1+Ve/He)(exp(Ve)(z)/De)
C39: =$M$11*$M$7/($M$20*$I$32) -> 27916.25125 | N39: 1+(Ve/He) = | R39: =1+($I$33/$C$39) -> 1.0000005
N40: (Ve)(z)/De = | R40: =($I$33*$M$17)/$T$33 -> 14.01498423
N41: 1+Ve/He)(exp((Ve)(z)/De = | R41: =R39*EXP(R40) -> 1220760.683
C44: E | Q44: F
H45: erfc(z-L-(Ve)(t)/(4De)(t).5) | Q45: z-(Ve)(t)/4De)(t).5)
B47: z-L-(Ve)(t) | I47: =($M$17-$M$13-($I$33*$M$19)) -> 1994.905284 | N47: z-(Ve)(t) | R47: =($M$17-$M$19*$I$33) -> 2994.905284
B48: 4De)(t).5) | I48: =POWER(4*$T$33*$M$19,0.5) -> 66.04718311 | N48: z-(Ve)(t)/4De)(t).5 = | R48: =($M$17-($M$19*$I$33))/POWER(4*$T$33*$M$19,0.5) -> 45.3449359
B49: z-L-(Ve)(t)/4De)(t).5)= | I49: =($M$17-$M$13-($I$33*$M$19))/POWER(4*$T$33*$M$19,0.5) -> 30.20424476 | N49: erfc(z-(Ve)(t)/4De)(t).5)) | R49: =IF($R$48>0,ERFC(IF($R$48<27,$R$48,27)),1+ERF(IF(-$R$48<27,-$R$48,27))) -> 0
B50: erfc(z-L-(Ve)(t)/(4De)(t).5)= | I50: =IF($I$49>0,ERFC(IF($I$49<27,$I$49,27)),1+ERF(IF(-$I$49<27,-$I$4%,27))) -> 0 | S50: =IF(($M$17-$M$19*$I$33)/POWER(4*$T$33*$M$19,0.5)>27,ERFC(27),6) -> 0
C53: G | Q53: H
H55: (1+Ve/He)(exp((Ve)(z)/De | Q55: erfc(z+L+(Ve)(t)/(4De)(t).5))
H56: (D)
B57: 1+(Ve/He) = | I57: =1+($I$33/$C$39) -> 1.0000005 | N57: z+L+(Ve)(t) = | R57: =$M$17+$M$13+($I$33*$M$19) -> 4005.094716
B58: (Ve)(z)/De = | I58: =($I$33*$M$17)/$T$33 -> 14.01498423 | N58: z+L+(Ve)(t)/(4De)(t).5) = | R58: =($M$17+$M$13+$I$33*$M$19)/POWER(4*$T$33*$M$19,0.5) -> 60.63990207
B59: 1+Ve/He)(exp((Ve)(z)/De = | I59: =(1+($I$33/$C$39))*EXP(($I$33*$M$17)/$T$33) -> 1220760.683 | N59: erfc(z+L+(Ve)(t)/(4De)(t).5) = | R59: =IF($R$58>27,ERFC(27),ERFC($R$58)) -> 0
C61: I | Q61: J
H63: erfc(z+(Ve)(t)/(4De)(t).5) | Q63: 2+(Ve)/(He)exp((He(He+Ve)(t)+(He+Ve)z)De
B65: z+(Ve)(t) = | I65: =$M$17+($I$33*$M$19) -> 3005.094716 | N65: 2+(Ve)/(He) | R65: =2+$I$33/$C$39 -> 2.0000005
B66: z+(Ve)(t)/((4)(De)(t))1/2 = | I66: =($M$17+($I$33*$M$19))/(POWER(4*$T$33*$M$19,0.5)) -> 45.49921093
B67: erfc(z+(Ve)(t)/(4De)(t).5) = | I67: =IF($I$66>27,ERFC(27),ERFC($I$66)) -> 0 | N67: He+Ve | R67: =$I$33+$C$39 -> 27916.2652
N68: He(He+Ve)(t) | R68: =$C$39*($C$39+$I$33)*$M$19 -> 2.844508778e+11
N69: (He+Ve)z | R69: =($C$39+$I$33)*$M$17 -> 83748795.61
N70: He(He+Ve)(t)+(He+Ve)z | R70: =$C$39*($C$39+$I$33)*$M$19+($C$39+$I$33)*$M$17 -> 2.845346266e+11
N71: ((He(He+Ve)(t)+(He+Ve)z)/De | R71: =($C$39*($C$39+$I$33)*$M$19+($C$39+$I$33)*$M$17)/$T$33 -> 9.523122738e+10
N72: IF(F101>225,225,F101,1) | R72: =IF(($C$39*($C$39+$I$33)*$M$19+($C$39+$I$33)*$M$17)/$T$33>225,225,($C$39*($C$39+$I$33)*$M$19+($C$39+$I$33)*$M$17)/$T$33) -> 225
N73: exp((He(He+Ve)(t)+(He+Ve)z)De | R73: =EXP(IF(($C$39*($C$39+$I$33)*$M$19+($C$39+$I$33)*$M$17)/$T$33>225,225,($C$39*($C$39+$I$33)*$M$19+($C$39+$I$33)*$M$17)/$T$33)) -> 5.203055138e+97
C75: K | Q75: L
H77: erfc(z+(2He+Ve)t)/(4Det)1/2 | Q77: exp(He*L/De) =
Q78: (X)
B79: z+(2He+Ve)t/(4Det)1/2 = | I79: =$M$17+(2*$C$39+$I$33)*$M19/POWER(4*$T$33*$M$19,0.5) -> 311550.1538 | N79: He*L/De | R79: =$C$39*$M$13/$T$33 -> 9343322.822
B80: erfc(z+(2He+Ve)t/(4Det)1/2) = | I80: =IF($M$17+(2*$C$39+$I$33)*$M19/POWER(4*$T$33*$M$19,0.5)>27,ERFC(27),ERFC(($M$17+(2*$C$39+$I$33)*$M19/POWER(4*$T$33*$M$19,0.5)))) -> 0 | N80: IF(F118>225,225,F1181 | R80: =IF($C$39*$M$13/$T$33>225,225,$C$39*$M$13/$T$33) -> 225
N81: exp(He*L/De) = | R81: =EXP(R80) -> 5.203055138e+97
C84: M | Q84: N
H86: erfc(z+L+(2He+Ve)t)/(4Det)1/2 | N86: u=.693/T1/2 | R86: =0.693/$M$6 -> 6.93e-06
N87: exp(-ut) | R87: =EXP(-0.693/$M$6*$M$19) -> 0.9974737464
B88: z+L+(2He+Ve)t = | I88: =$M$17+$M$13+(2*$C$39+$I$33)*$M$19 -> 20382868.5
B89: (4Det)1/2= | I89: =POWER(4*$T$33*$M$19,0.5) -> 66.04718311
B90: z+L+(2He+Ve)t/(4Det)1/2 | I90: =($M$17+$M$13+(2*$C$39+$I$33)*$M$19)/POWER(4*$T$33*$M$19,0.5) -> 308610.7165
B91: erfc(z+L+(2He+Ve)t)/(4Det)1/2 | I91: =IF(($M$17+$M$13+(2*$C$39+$I$33)*$M$19)/POWER(4*$T$33*$M$19,0.5)>27,ERFC(27),ERFC(($M$17+$M$13+(2*$C$39+$I$33)*$M$19)/POWER(4*$T$33*$M$19,0.5))) -> 0
C97: .5*Co(exp(-ut)(erfc(z-L-(Ve)(t)/(4De)(t).5 -erfc(z-(Ve)(t)/4De)(t).5)+(1+Ve/He)(exp((Ve)(z)/De)(erfc(z+L+(Ve)(t)/(4De)(t).5)-erfc(z+(Ve)(t)/(4De)(t).5)
T103: =POWER(4*$T$33*B126,0.5) -> 55.74353954
B111: depth | D111: exp(-ut) | F111: z-L-(Ve)(t)/(4De)(t).5 | I111: erfc(z-L-(Ve)(t)/(4De)(t).5) | L111: z-(Ve)(t)/4De)(t).5) | N111: erfc(z-(Ve)(t)/4De)(t).5)) | Q111: erfc(z+L+(Ve)(t)/(4De)(t).5)) | S111: erfc(z+(Ve)(t)/(4De)(t).5) | V111: 2+(Ve)/(He)exp((He(He+Ve)(t)+(He+Ve)z)/De) | Z111: erfc(z+(2He+Ve)t)/(4Det)1/2 | AC111: erfc(z+L+(2He+Ve)t)/(4Det)1/2 | AF111: 1+(Ve/He)(exp(Ve)(z)/De) | AI111: Co/Ct | AK111: Ct (ug/kg) | AM111: Cl (ug/l) | AO111: Cg (ug/l) | AQ111: Cs (ug/kg)
D112: (N) | I112: (E) | N112: (F) | Q112: (H) | S112: (I) | V112: (j) | Z112: (K) | AC112: (M) | AM112: (Cl=Ct/Rl) | AO112: (Cg=Ct/Rg) | AQ112: (Cl)(Foc)(Koc)
B114: =M17/150 -> 20 | D114: =EXP(-0.693/$M$6*$M$19) -> 0.9974737464 | F114: =(B114-$M$13-($I$33*$M$19))/POWER(4*$T$33*$M$19,0.5) -> -14.91501483 | I114: =IF(F114>0,ERFC(IF(F114<27,F114,27)),1+ERF(IF(-F114<27,-F114,27))) -> 2 | L114: =(B114-($M$19*$I$33))/POWER(4*$T$33*$M$19,0.5) -> 0.2256763036 | N114: =IF(L114>0,ERFC(IF(L114<27,L114,27)),1+ERF(IF(-L114<27,-L114,27))) -> 0.7496093659 | Q114: =IF((B114+$M$13+$I$33*$M$19)/POWER(4*$T$33*$M$19,0.5)>27,ERFC(27),ERFC((B114+$M$13+$I$33*$M$19)/POWER(4*$T$33*$M$19,0.5))) -> 8.755316591e-107 | S114: =IF((B114+$I$33*$M$19)/(POWER(4*$T$33*$M$19,0.5))>27,ERFC(27),ERFC((B114+$I$33*$M$19)/(POWER(4*$T$33*$M$19,0.5)))) -> 0.5910380698 | V114: =(2+$I$33/$C$39)*EXP(IF(($C$39*($C$39+$I$33)*$M$19+($C$39+$I$33)*B114)/$T$33>225,225,($C$39*($C$39+$I$33)*$M$19+($C$39+$I$33)*B114)/$T$33)) -> 1.040611288e+98 | Z114: =IF((B114+((2*$C$39+$I$33)*$M$19))/POWER(4*$T$33*$M$19,0.5)>27,ERFC(27),ERFC((B114+((2*$C$39+$I$33)*$M$19))/POWER(4*$T$33*$M$19,0.5))) -> 0 | AC114: =IF((B114+$M$13+((2*$C$39+$I$33)*$M$19))/POWER(4*$T$33*$M$19,0.5)>27,ERFC(27),ERFC((B114+$M$13+((2*$C$39+$I$33)*$M$19))/POWER(4*$T$33*$M$19,0.5))) -> 0 | AF114: =1+($I$33/$C$39)*EXP($I$33*B114/$T$33) -> 1.000000549 | AI114: =0.5*D114*((I114-N114)+(AF114)*(Q114-S114)+V114*(Z114-($R$81*AC114))) -> 0.3288432744 | AK114: =$M$4*AI114 -> 32.88432744 | AM114: =AI114*$M$25 -> 98.35790859 | AO114: =AI114*$M$26 -> 98.35790859 | AQ114: =AI114*$M$27 -> 0.09835790859
B115: =B114+$M$17/150 -> 40 | D115: 0.9974737464 | F115: -14.61220101 | I115: 2 | L115: 0.5284901264 | N115: 0.45482341 | Q115: 6.483954026e-111 | S115: =IF((B115+$I$33*$M$19)/(POWER(4*$T$33*$M$19,0.5))>27,ERFC(27),ERFC((B115+$I$33*$M$19)/(POWER(4*$T$33*$M$19,0.5)))) -> 0.3342565117 | V115: 1.040611288e+98 | Z115: 0 | AC115: 0 | AF115: =1+($I$33/$C$39)*EXP($I$33*B115/$T$33) -> 1.000000603 | AI115: =0.5*D115*((I115-N115)+(AF115)*(Q115-S115)+V115*(Z115-($R$81*AC115))) -> 0.603930393 | AK115: =$M$4*AI115 -> 60.3930393 | AM115: =AI115*$M$25 -> 180.6372063 | AO115: =AI115*$M$26 -> 180.6372063 | AQ115: =AI115*$M$27 -> 0.1806372063
B116: =B115+$M$17/150 -> 60 | D116: 0.9974737464 | F116: -14.30938719 | I116: 2 | L116: 0.8313039491 | N116: 0.2397382368 | Q116: 3.998700574e-115 | S116: 0.1633722175 | V116: 1.040611288e+98 | Z116: 0 | AC116: 0 | AF116: 1.000000662 | AI116: 0.7964276449 | AK116: 79.64276449 | AM116: 238.2136525 | AO116: 238.2136525 | AQ116: 0.2382136525
B117: 80 | D117: 0.9974737464 | F117: -14.00657337 | I117: 2 | L117: 1.134117772 | N117: 0.1087394623 | Q117: 2.053538956e-119 | S117: 0.06844548985 | V117: 1.040611288e+98 | Z117: 0 | AC117: 0 | AF117: 1.000000727 | AI117: 0.9091050525 | AK117: 90.91050525 | AM117: 271.9157685 | AO117: 271.9157685 | AQ117: 0.2719157685
B118: 100 | D118: 0.9974737464 | F118: -13.70375954 | I118: 2 | L118: 1.436931595 | N118: 0.04214068434 | Q118: 8.781862616e-124 | S118: 0.02442952727 | V118: 1.040611288e+98 | Z118: 0 | AC118: 0 | AF118: 1.000000798 | AI118: 0.9642727175 | AK118: 96.42727175 | AM118: 288.4165655 | AO118: 288.4165655 | AQ118: 0.2884165655
B119: 120 | D119: 0.9974737464 | F119: -13.40094572 | I119: 2 | L119: 1.739745417 | N119: 0.01387932394 | Q119: 3.127265707e-128 | S119: 0.007394182064 | V119: 1.040611288e+98 | Z119: 0 | AC119: 0 | AF119: 1.000000876 | AI119: 0.9868638613 | AK119: 98.68638613 | AM119: 295.1736375 | AO119: 295.1736375 | AQ119: 0.2951736375
B120: 140 | D120: 0.9974737464 | F120: -13.0981319 | I120: 2 | L120: 2.04255924 | N120: 0.003869425359 | Q120: 9.273260643e-133 | S120: 0.001891288892 | V120: 1.040611288e+98 | Z120: 0 | AC120: 0 | AF120: 1.000000962 | AI120: 0.9946006648 | AK120: 99.46006648 | AM120: 297.4877362 | AO120: 297.4877362 | AQ120: 0.2974877362
B121: 160 | D121: 0.9974737464 | F121: -12.79531808 | I121: 2 | L121: 2.345373063 | N121: 0.0009103574424 | Q121: 2.289733997e-137 | S121: 0.0004077192276 | V121: 1.040611288e+98 | Z121: 0 | AC121: 0 | AF121: 1.000001056 | AI121: 0.9968163727 | AK121: 99.68163727 | AM121: 298.1504604 | AO121: 298.1504604 | AQ121: 0.2981504604
B122: 180 | D122: 0.9974737464 | F122: -12.49250425 | I122: 2 | L122: 2.648186886 | N122: 0.0001803206366 | Q122: 4.707800558e-142 | S122: 7.392709476e-05 | V122: 1.040611288e+98 | Z122: 0 | AC122: 0 | AF122: 1.000001159 | AI122: 0.9973469436 | AK122: 99.73469436 | AM122: 298.3091556 | AO122: 298.3091556 | AQ122: 0.2983091556
B123: 200 | D123: 0.9974737464 | F123: -12.18969043 | I123: 2 | L123: 2.951000709 | N123: 3.001595949e-05 | Q123: 8.059856928e-147 | S123: 1.125593866e-05 | V123: 1.040611288e+98 | Z123: 0 | AC123: 0 | AF123: 1.000001273 | AI123: 0.9974531625 | AK123: 99.74531625 | AM123: 298.340926 | AO123: 298.340926 | AQ123: 0.298340926
B124: 220 | D124: 0.9974737464 | F124: -11.88687661 | I124: 2 | L124: 3.253814531 | N124: 4.192806543e-06 | Q124: 1.14897046e-151 | S124: 1.43726348e-06 | V124: 1.040611288e+98 | Z124: 0 | AC124: 0 | AF124: 1.000001397 | AI124: 0.9974709384 | AK124: 99.74709384 | AM124: 298.3462428 | AO124: 298.3462428 | AQ124: 0.2983462428
B125: 240 | D125: 0.9974737464 | F125: -11.58406278 | I125: 2 | L125: 3.556628354 | N125: 4.909096407e-07 | Q125: 1.363825605e-156 | S125: 1.537510323e-07 | V125: 1.040611288e+98 | Z125: 0 | AC125: 0 | AF125: 1.000001534 | AI125: 0.9974734248 | AK125: 99.74734248 | AM125: 298.3469865 | AO125: 298.3469865 | AQ125: 0.2983469865
B126: 260 | D126: 0.9974737464 | F126: -11.28124896 | I126: 2 | L126: 3.859442177 | N126: 4.813230811e-08 | Q126: 1.347949542e-161 | S126: 1.376768523e-08 | V126: 1.040611288e+98 | Z126: 0 | AC126: 0 | AF126: 1.000001685 | AI126: 0.9974737155 | AK126: 99.74737155 | AM126: 298.3470734 | AO126: 298.3470734 | AQ126: 0.2983470734
B127: 280 | D127: 0.9974737464 | F127: -10.97843514 | I127: 2 | L127: 4.162256 | N127: 3.948920557e-09 | Q127: 1.109301989e-166 | S127: 1.031250982e-09 | V127: 1.040611288e+98 | Z127: 0 | AC127: 0 | AF127: 1.00000185 | AI127: 0.9974737439 | AK127: 99.74737439 | AM127: 298.3470819 | AO127: 298.3470819 | AQ127: 0.2983470819
B128: 300 | D128: 0.9974737464 | F128: -10.67562132 | I128: 2 | L128: 4.465069822 | N128: 2.709271673e-10 | Q128: 7.601232367e-172 | S128: 6.457713037e-11 | V128: 1.040611288e+98 | Z128: 0 | AC128: 0 | AF128: 1.000002031 | AI128: 0.9974737462 | AK128: 99.74737462 | AM128: 298.3470826 | AO128: 298.3470826 | AQ128: 0.2983470826
B129: 320 | D129: 0.9974737464 | F129: -10.37280749 | I129: 2 | L129: 4.767883645 | N129: 1.553568932e-11 | Q129: 4.336837363e-177 | S129: 3.379051939e-12 | V129: 1.040611288e+98 | Z129: 0 | AC129: 0 | AF129: 1.00000223 | AI129: 0.9974737464 | AK129: 99.74737464 | AM129: 298.3470827 | AO129: 298.3470827 | AQ129: 0.2983470827
B130: 340 | D130: 0.9974737464 | F130: -10.06999367 | I130: 2 | L130: 5.070697468 | N130: 7.442518689e-13 | Q130: 2.060222671e-182 | S130: 1.476848739e-13 | V130: 1.040611288e+98 | Z130: 0 | AC130: 0 | AF130: 1.000002448 | AI130: 0.9974737464 | AK130: 99.74737464 | AM130: 298.3470827 | AO130: 298.3470827 | AQ130: 0.2983470827
B131: 360 | D131: 0.9974737464 | F131: -9.767179848 | I131: 2 | L131: 5.373511291 | N131: 2.977539885e-14 | Q131: 8.148997948e-188 | S131: 5.389539851e-15 | V131: 1.040611288e+98 | Z131: 0 | AC131: 0 | AF131: 1.000002688 | AI131: 0.9974737464 | AK131: 99.74737464 | AM131: 298.3470827 | AO131: 298.3470827 | AQ131: 0.2983470827
B132: 380 | D132: 0.9974737464 | F132: -9.464366025 | I132: 2 | L132: 5.676325113 | N132: 9.944982449e-16 | Q132: 2.683740508e-193 | S132: 1.641771789e-16 | V132: 1.040611288e+98 | Z132: 0 | AC132: 0 | AF132: 1.000002951 | AI132: 0.9974737464 | AK132: 99.74737464 | AM132: 298.3470827 | AO132: 298.3470827 | AQ132: 0.2983470827
B133: 400 | D133: 0.9974737464 | F133: -9.161552202 | I133: 2 | L133: 5.979138936 | N133: 2.772293497e-17 | Q133: 7.359028145e-199 | S133: 4.173571438e-18 | V133: 1.040611288e+98 | Z133: 0 | AC133: 0 | AF133: 1.00000324 | AI133: 0.9974737464 | AK133: 99.74737464 | AM133: 298.3470827 | AO133: 298.3470827 | AQ133: 0.2983470827
B134: 420 | D134: 0.9974737464 | F134: -8.858738379 | I134: 2 | L134: 6.281952759 | N134: 6.448507082e-19 | Q134: 1.680124675e-204 | S134: 8.851971937e-20 | V134: 1.040611288e+98 | Z134: 0 | AC134: 0 | AF134: 1.000003557 | AI134: 0.9974737464 | AK134: 99.74737464 | AM134: 298.3470827 | AO134: 298.3470827 | AQ134: 0.2983470827
B135: 440 | D135: 0.9974737464 | F135: -8.555924557 | I135: 2 | L135: 6.584766582 | N135: 1.251334332e-20 | Q135: 3.193752361e-210 | S135: 1.566118754e-21 | V135: 1.040611288e+98 | Z135: 0 | AC135: 0 | AF135: 1.000003905 | AI135: 0.9974737464 | AK135: 99.74737464 | AM135: 298.3470827 | AO135: 298.3470827 | AQ135: 0.2983470827
B136: 460 | D136: 0.9974737464 | F136: -8.253110734 | I136: 2 | L136: 6.887580404 | N136: 2.025360684e-22 | Q136: 5.054722605e-216 | S136: 2.310933725e-23 | V136: 1.040611288e+98 | Z136: 0 | AC136: 0 | AF136: 1.000004288 | AI136: 0.9974737464 | AK136: 99.74737464 | AM136: 298.3470827 | AO136: 298.3470827 | AQ136: 0.2983470827
B137: 480 | D137: 0.9974737464 | F137: -7.950296911 | I137: 2 | L137: 7.190394227 | N137: 2.733860368e-24 | Q137: 6.660817697e-222 | S137: 2.843562584e-25 | V137: 1.040611288e+98 | Z137: 0 | AC137: 0 | AF137: 1.000004708 | AI137: 0.9974737464 | AK137: 99.74737464 | AM137: 298.3470827 | AO137: 298.3470827 | AQ137: 0.2983470827
B138: 500 | D138: 0.9974737464 | F138: -7.647483088 | I138: 2 | L138: 7.49320805 | N138: 3.077041611e-26 | Q138: 7.307852272e-228 | S138: 2.917375784e-27 | V138: 1.040611288e+98 | Z138: 0 | AC138: 0 | AF138: 1.000005169 | AI138: 0.9974737464 | AK138: 99.74737464 | AM138: 298.3470827 | AO138: 298.3470827 | AQ138: 0.2983470827
B139: 520 | D139: 0.9974737464 | F139: -7.344669266 | I139: 2 | L139: 7.796021873 | N139: 2.887476885e-28 | Q139: 6.67547091e-234 | S139: 2.495309258e-29 | V139: 1.040611288e+98 | Z139: 0 | AC139: 0 | AF139: 1.000005675 | AI139: 0.9974737464 | AK139: 99.74737464 | AM139: 298.3470827 | AO139: 298.3470827 | AQ139: 0.2983470827
B140: 540 | D140: 0.9974737464 | F140: -7.041855443 | I140: 2 | L140: 8.098835696 | N140: 2.258825579e-30 | Q140: 5.076939827e-240 | S140: 1.779149407e-31 | V140: 1.040611288e+98 | Z140: 0 | AC140: 0 | AF140: 1.000006231 | AI140: 0.9974737464 | AK140: 99.74737464 | AM140: 298.3470827 | AO140: 298.3470827 | AQ140: 0.2983470827
B141: 560 | D141: 0.9974737464 | F141: -6.73904162 | I141: 2 | L141: 8.401649518 | N141: 1.472929423e-32 | Q141: 3.21475725e-246 | S141: 1.057340479e-33 | V141: 1.040611288e+98 | Z141: 0 | AC141: 0 | AF141: 1.000006841 | AI141: 0.9974737464 | AK141: 99.74737464 | AM141: 298.3470827 | AO141: 298.3470827 | AQ141: 0.2983470827
B142: 580 | D142: 0.9974737464 | F142: -6.436227797 | I142: 2 | L142: 8.704463341 | N142: 8.005283002e-35 | Q142: 1.694800503e-252 | S142: 5.237139897e-36 | V142: 1.040611288e+98 | Z142: 0 | AC142: 0 | AF142: 1.000007511 | AI142: 0.9974737464 | AK142: 99.74737464 | AM142: 298.3470827 | AO142: 298.3470827 | AQ142: 0.2983470827
B143: 600 | D143: 0.9974737464 | F143: -6.133413974 | I143: 2 | L143: 9.007277164 | N143: 3.626028907e-37 | Q143: 7.438946847e-259 | S143: 2.161804685e-38 | V143: 1.040611288e+98 | Z143: 0 | AC143: 0 | AF143: 1.000008247 | AI143: 0.9974737464 | AK143: 99.74737464 | AM143: 298.3470827 | AO143: 298.3470827 | AQ143: 0.2983470827
B144: 620 | D144: 0.9974737464 | F144: -5.830600152 | I144: 2 | L144: 9.310090987 | N144: 1.368715988e-39 | Q144: 2.718473496e-265 | S144: 7.436197907e-41 | V144: 1.040611288e+98 | Z144: 0 | AC144: 0 | AF144: 1.000009055 | AI144: 0.9974737464 | AK144: 99.74737464 | AM144: 298.3470827 | AO144: 298.3470827 | AQ144: 0.2983470827
B145: 640 | D145: 0.9974737464 | F145: -5.527786329 | I145: 2 | L145: 9.612904809 | N145: 4.305202443e-42 | Q145: 8.270997582e-272 | S145: 2.131423063e-43 | V145: 1.040611288e+98 | Z145: 0 | AC145: 0 | AF145: 1.000009941 | AI145: 0.9974737464 | AK145: 99.74737464 | AM145: 298.3470827 | AO145: 298.3470827 | AQ145: 0.2983470827
B146: 660 | D146: =EXP(-0.693/$M$6*$M$19) -> 0.9974737464 | F146: =(B146-$M$13-($I$33*$M$19))/POWER(4*$T$33*$M$19,0.5) -> -5.224972506 | I146: =IF(F146>0,ERFC(IF(F146<27,F146,27)),1+ERF(IF(-F146<27,-F146,27))) -> 2 | L146: =(B146-($M$19*$I$33))/POWER(4*$T$33*$M$19,0.5) -> 9.915718632 | N146: =IF(L146>0,ERFC(IF(L146<27,L146,27)),1+ERF(IF(-L146<27,-L146,27))) -> 1.128353676e-44 | Q146: =IF((B146+$M$13+$I$33*$M$19)/POWER(4*$T$33*$M$19,0.5)>27,ERFC(27),ERFC((B146+$M$13+$I$33*$M$19)/POWER(4*$T$33*$M$19,0.5))) -> 2.095116866e-278 | S146: =IF((B146+$I$33*$M$19)/(POWER(4*$T$33*$M$19,0.5))>27,ERFC(27),ERFC((B146+$I$33*$M$19)/(POWER(4*$T$33*$M$19,0.5)))) -> 5.090343692e-46 | V146: =(2+$I$33/$C$39)*EXP(IF(($C$39*($C$39+$I$33)*$M$19+($C$39+$I$33)*B146)/$T$33>225,225,($C$39*($C$39+$I$33)*$M$19+($C$39+$I$33)*B146)/$T$33)) -> 1.040611288e+98 | Z146: =IF((B146+((2*$C$39+$I$33)*$M$19))/POWER(4*$T$33*$M$19,0.5)>27,ERFC(27),ERFC((B146+((2*$C$39+$I$33)*$M$19))/POWER(4*$T$33*$M$19,0.5))) -> 0 | AC146: =IF((B146+$M$13+((2*$C$39+$I$33)*$M$19))/POWER(4*$T$33*$M$19,0.5)>27,ERFC(27),ERFC((B146+$M$13+((2*$C$39+$I$33)*$M$19))/POWER(4*$T$33*$M$19,0.5))) -> 0 | AF146: 1.000010915 | AI146: 0.9974737464 | AK146: 99.74737464 | AM146: 298.3470827 | AO146: 298.3470827 | AQ146: 0.2983470827
B147: 680 | D147: 0.9974737464 | F147: -4.922158683 | I147: 2 | L147: 10.21853245 | N147: 2.464018373e-47 | Q147: 4.418497994e-285 | S147: 1.012884551e-48 | V147: 1.040611288e+98 | Z147: 0 | AC147: 0 | AF147: 1.000011984 | AI147: 0.9974737464 | AK147: 99.74737464 | AM147: 298.3470827 | AO147: 298.3470827 | AQ147: 0.2983470827
B148: 700 | D148: 0.9974737464 | F148: -4.619344861 | I148: 2 | L148: 10.52134628 | N148: 4.482985264e-50 | Q148: 7.758105057e-292 | S148: 1.679139573e-51 | V148: 1.040611288e+98 | Z148: 0 | AC148: 0 | AF148: 1.000013158 | AI148: 0.9974737463 | AK148: 99.74737463 | AM148: 298.3470827 | AO148: 298.3470827 | AQ148: 0.2983470827
B149: 720 | D149: 0.9974737464 | F149: -4.316531038 | I149: 1.999999999 | L149: 10.8241601 | N149: 6.795084242e-53 | Q149: 1.134096007e-298 | S149: 2.319038743e-54 | V149: 1.040611288e+98 | Z149: 0 | AC149: 0 | AF149: 1.000014446 | AI149: 0.9974737458 | AK149: 99.74737458 | AM149: 298.3470825 | AO149: 298.3470825 | AQ149: 0.2983470825
B150: 740 | D150: 0.9974737464 | F150: -4.013717215 | I150: 1.999999986 | L150: 11.12697392 | N150: 8.580402779e-56 | Q150: 1.380243759e-305 | S150: 2.668120687e-57 | V150: 1.040611288e+98 | Z150: 0 | AC150: 0 | AF150: 1.000015861 | AI150: 0.9974737395 | AK150: 99.74737395 | AM150: 298.3470806 | AO150: 298.3470806 | AQ150: 0.2983470806
B151: 760 | D151: 0.9974737464 | F151: -3.710903392 | I151: 1.999999846 | L151: 11.42978775 | N151: 9.025856076e-59 | Q151: 0 | S151: 2.557187016e-60 | V151: 1.040611288e+98 | Z151: 0 | AC151: 0 | AF151: 1.000017415 | AI151: 0.9974736697 | AK151: 99.74736697 | AM151: 298.3470597 | AO151: 298.3470597 | AQ151: 0.2983470597
B152: 780 | D152: 0.9974737464 | F152: -3.40808957 | I152: 1.999998563 | L152: 11.73260157 | N152: 7.908988816e-62 | Q152: 0 | S152: 2.04156691e-63 | V152: 1.040611288e+98 | Z152: 0 | AC152: 0 | AF152: 1.00001912 | AI152: 0.9974730295 | AK152: 99.74730295 | AM152: 298.3468683 | AO152: 298.3468683 | AQ152: 0.2983468683
B153: 800 | D153: 0.9974737464 | F153: -3.105275747 | I153: 1.999988744 | L153: 12.03541539 | N153: 5.772852612e-65 | Q153: 0 | S153: 1.357670991e-66 | V153: 1.040611288e+98 | Z153: 0 | AC153: 0 | AF153: 1.000020993 | AI153: 0.9974681326 | AK153: 99.74681326 | AM153: 298.3454036 | AO153: 298.3454036 | AQ153: 0.2983454036
B154: 820 | D154: 0.9974737464 | F154: -2.802461924 | I154: 1.999926073 | L154: 12.33822921 | N154: 3.509806151e-68 | Q154: 0 | S154: 7.520417727e-70 | V154: 1.040611288e+98 | Z154: 0 | AC154: 0 | AF154: 1.000023049 | AI154: 0.9974368762 | AK154: 99.74368762 | AM154: 298.3360547 | AO154: 298.3360547 | AQ154: 0.2983360547
B155: 840 | D155: 0.9974737464 | F155: -2.499648101 | I155: 1.999592281 | L155: 12.64104304 | N155: 1.777403886e-71 | Q155: 0 | S155: 3.46971289e-73 | V155: 1.040611288e+98 | Z155: 0 | AC155: 0 | AF155: 1.000025306 | AI155: 0.9972704018 | AK155: 99.72704018 | AM155: 298.2862617 | AO155: 298.2862617 | AQ155: 0.2982862617
B156: 860 | D156: 0.9974737464 | F156: -2.196834279 | I156: 1.998108711 | L156: 12.94385686 | N156: 7.497000195e-75 | Q156: 0 | S156: 1.333330315e-76 | V156: 1.040611288e+98 | Z156: 0 | AC156: 0 | AF156: 1.000027785 | AI156: 0.9965304909 | AK156: 99.65304909 | AM156: 298.0649524 | AO156: 298.0649524 | AQ156: 0.2980649524
B157: 880 | D157: 0.9974737464 | F157: -1.894020456 | I157: 1.992605818 | L157: 13.24667068 | N157: 2.633760005e-78 | Q157: 0 | S157: 4.267405064e-80 | V157: 1.040611288e+98 | Z157: 0 | AC157: 0 | AF157: 1.000030506 | AI157: 0.9937859951 | AK157: 99.37859951 | AM157: 297.2440663 | AO157: 297.2440663 | AQ157: 0.2972440663
B158: 900 | D158: 0.9974737464 | F158: -1.591206633 | I158: 1.975570473 | L158: 13.54948451 | N158: 7.706226492e-82 | Q158: 0 | S158: 1.137527355e-83 | V158: 1.040611288e+98 | Z158: 0 | AC158: 0 | AF158: 1.000033493 | AI158: 0.9852898403 | AK158: 98.52898403 | AM158: 294.7028436 | AO158: 294.7028436 | AQ158: 0.2947028436
B159: 920 | D159: 0.9974737464 | F159: -1.28839281 | I159: 1.93155451 | L159: 13.85229833 | N159: 1.877908912e-85 | Q159: 0 | S159: 2.525354238e-87 | V159: 1.040611288e+98 | Z159: 0 | AC159: 0 | AF159: 1.000036774 | AI159: 0.9633374568 | AK159: 96.33374568 | AM159: 288.1368266 | AO159: 288.1368266 | AQ159: 0.2881368266
B160: 940 | D160: 0.9974737464 | F160: -0.9855789875 | I160: 1.836627782 | L160: 14.15511215 | N160: 3.811231823e-89 | Q160: 0 | S160: 4.669135103e-91 | V160: 1.040611288e+98 | Z160: 0 | AC160: 0 | AF160: 1.000040375 | AI160: 0.9159939974 | AK160: 91.59939974 | AM160: 273.9762704 | AO160: 273.9762704 | AQ160: 0.2739762704
B161: 960 | D161: 0.9974737464 | F161: -0.6827651647 | I161: 1.665743488 | L161: 14.45792597 | N161: 6.441778251e-93 | Q161: 0 | S161: 7.189455411e-95 | V161: 1.040611288e+98 | Z161: 0 | AC161: 0 | AF161: 1.000044329 | AI161: 0.8307676989 | AK161: 83.07676989 | AM161: 248.4848551 | AO161: 248.4848551 | AQ161: 0.2484848551
B162: 980 | D162: 0.9974737464 | F162: -0.3799513419 | I162: 1.40896193 | L162: 14.7607398 | N162: 9.067503458e-97 | Q162: 0 | S162: 9.219199435e-99 | V162: 1.040611288e+98 | Z162: 0 | AC162: 0 | AF162: 1.000048671 | AI162: 0.7027012675 | AK162: 70.27012675 | AM162: 210.1798407 | AO162: 210.1798407 | AQ162: 0.2101798407
B163: 1000 | D163: 0.9974737464 | F163: -0.07713751916 | I163: 1.086868042 | L163: 15.06355362 | N163: 1.062927676e-100 | Q163: 0 | S163: 9.845114882e-103 | V163: 1.040611288e+98 | Z163: 0 | AC163: 0 | AF163: 1.000053438 | AI163: 0.5420611686 | AK163: 54.20611686 | AM163: 162.1319547 | AO163: 162.1319547 | AQ163: 0.1621319547
B164: 1020 | D164: 0.9974737464 | F164: 0.2256763036 | I164: 0.7496093659 | L164: 15.36636744 | N164: 1.037639844e-104 | Q164: 0 | S164: 8.755316591e-107 | V164: 1.040611288e+98 | Z164: 0 | AC164: 0 | AF164: 1.000058671 | AI164: 0.3738578313 | AK164: 37.38578313 | AM164: 111.8218837 | AO164: 111.8218837 | AQ164: 0.1118218837
B165: 1040 | D165: 0.9974737464 | F165: 0.5284901264 | I165: 0.45482341 | L165: 15.66918126 | N165: 8.435480505e-109 | Q165: 0 | S165: 6.483954026e-111 | V165: 1.040611288e+98 | Z165: 0 | AC165: 0 | AF165: 1.000064417 | AI165: 0.2268372054 | AK165: 22.68372054 | AM165: 67.84761876 | AO165: 67.84761876 | AQ165: 0.06784761876
B166: 1060 | D166: 0.9974737464 | F166: 0.8313039491 | I166: 0.2397382368 | L166: 15.97199509 | N166: 5.710668788e-113 | Q166: 0 | S166: 3.998700574e-115 | V166: 1.040611288e+98 | Z166: 0 | AC166: 0 | AF166: 1.000070726 | AI166: 0.1195662986 | AK166: 11.95662986 | AM166: 35.76260177 | AO166: 35.76260177 | AQ166: 0.03576260177
B167: 1080 | D167: 0.9974737464 | F167: 1.134117772 | I167: 0.1087394623 | L167: 16.27480891 | N167: 3.219379152e-117 | Q167: 0 | S167: 2.053538956e-119 | V167: 1.040611288e+98 | Z167: 0 | AC167: 0 | AF167: 1.000077653 | AI167: 0.05423237944 | AK167: 5.423237944 | AM167: 16.22105068 | AO167: 16.22105068 | AQ167: 0.01622105068
B168: 1100 | D168: 0.9974737464 | F168: 1.436931595 | I168: 0.04214068434 | L168: 16.57762273 | N168: 1.511331255e-121 | Q168: 0 | S168: 8.781862616e-124 | V168: 1.040611288e+98 | Z168: 0 | AC168: 0 | AF168: 1.000085258 | AI168: 0.02101711314 | AK168: 2.101711314 | AM168: 6.286275117 | AO168: 6.286275117 | AQ168: 0.006286275117
B169: 1120 | D169: 0.9974737464 | F169: 1.739745417 | I169: 0.01387932394 | L169: 16.88043656 | N169: 5.908051273e-126 | Q169: 0 | S169: 3.127265707e-128 | V169: 1.040611288e+98 | Z169: 0 | AC169: 0 | AF169: 1.000093608 | AI169: 0.006922130625 | AK169: 0.6922130625 | AM169: 2.070427904 | AO169: 2.070427904 | AQ169: 0.002070427904
B170: 1140 | D170: 0.9974737464 | F170: 2.04255924 | I170: 0.003869425359 | L170: 17.18325038 | N170: 1.923184089e-130 | Q170: 0 | S170: 9.273260643e-133 | V170: 1.040611288e+98 | Z170: 0 | AC170: 0 | AF170: 1.000102775 | AI170: 0.001929825105 | AK170: 0.1929825105 | AM170: 0.5772158838 | AO170: 0.5772158838 | AQ170: 0.0005772158838
B171: 1160 | D171: 0.9974737464 | F171: 2.345373063 | I171: 0.0009103574424 | L171: 17.4860642 | N171: 5.212963496e-135 | Q171: 0 | S171: 2.289733997e-137 | V171: 1.040611288e+98 | Z171: 0 | AC171: 0 | AF171: 1.000112841 | AI171: 0.0004540288243 | AK171: 0.04540288243 | AM171: 0.1358012436 | AO171: 0.1358012436 | AQ171: 0.0001358012436
B172: 1180 | D172: 0.9974737464 | F172: 2.648186886 | I172: 0.0001803206366 | L172: 17.78887802 | N172: 1.176606365e-139 | Q172: 0 | S172: 4.707800558e-142 | V172: 1.040611288e+98 | Z172: 0 | AC172: 0 | AF172: 1.000123892 | AI172: 8.993255045e-05 | AK172: 0.008993255045 | AM172: 0.02689906793 | AO172: 0.02689906793 | AQ172: 2.689906793e-05
B173: 1200 | D173: 0.9974737464 | F173: 2.951000709 | I173: 3.001595949e-05 | L173: 18.09169185 | N173: 2.2113428e-144 | Q173: 0 | S173: 8.059856928e-147 | V173: 1.040611288e+98 | Z173: 0 | AC173: 0 | AF173: 1.000136026 | AI173: 1.497006578e-05 | AK173: 0.001497006578 | AM173: 0.004477586974 | AO173: 0.004477586974 | AQ173: 4.477586974e-06
B174: 1220 | D174: 0.9974737464 | F174: 3.253814531 | I174: 4.192806543e-06 | L174: 18.39450567 | N174: 3.460630384e-149 | Q174: 0 | S174: 1.14897046e-151 | V174: 1.040611288e+98 | Z174: 0 | AC174: 0 | AF174: 1.000149348 | AI174: 2.091107225e-06 | AK174: 0.0002091107225 | AM174: 0.0006254558002 | AO174: 0.0006254558002 | AQ174: 6.254558002e-07
B175: 1240 | D175: 0.9974737464 | F175: 3.556628354 | I175: 4.909096407e-07 | L175: 18.69731949 | N175: 4.509461924e-154 | Q175: 0 | S175: 1.363825605e-156 | V175: 1.040611288e+98 | Z175: 0 | AC175: 0 | AF175: 1.000163975 | AI175: 2.448347392e-07 | AK175: 2.448347392e-05 | AM175: 7.323072957e-05 | AO175: 7.323072957e-05 | AQ175: 7.323072957e-08
B176: 1260 | D176: 0.9974737464 | F176: 3.859442177 | I176: 4.813230811e-08 | L176: 19.00013332 | N176: 4.892838458e-159 | Q176: 0 | S176: 1.347949542e-161 | V176: 1.040611288e+98 | Z176: 0 | AC176: 0 | AF176: 1.000180034 | AI176: 2.400535685e-08 | AK176: 2.400535685e-06 | AM176: 7.180066853e-06 | AO176: 7.180066853e-06 | AQ176: 7.180066853e-09
B177: 1280 | D177: 0.9974737464 | F177: 4.162256 | I177: 3.948920557e-09 | L177: 19.30294714 | N177: 4.420385366e-164 | Q177: 0 | S177: 1.109301989e-166 | V177: 1.040611288e+98 | Z177: 0 | AC177: 0 | AF177: 1.000197666 | AI177: 1.969472291e-09 | AK177: 1.969472291e-07 | AM177: 5.890744639e-07 | AO177: 5.890744639e-07 | AQ177: 5.890744639e-10
B178: 1300 | D178: =EXP(-0.693/$M$6*$M$19) -> 0.9974737464 | F178: =(B178-$M$13-($I$33*$M$19))/POWER(4*$T$33*$M$19,0.5) -> 4.465069822 | I178: =IF(F178>0,ERFC(IF(F178<27,F178,27)),1+ERF(IF(-F178<27,-F178,27))) -> 2.709271673e-10 | L178: =(B178-($M$19*$I$33))/POWER(4*$T$33*$M$19,0.5) -> 19.60576096 | N178: =IF(L178>0,ERFC(IF(L178<27,L178,27)),1+ERF(IF(-L178<27,-L178,27))) -> 3.325210249e-169 | Q178: =IF((B178+$M$13+$I$33*$M$19)/POWER(4*$T$33*$M$19,0.5)>27,ERFC(27),ERFC((B178+$M$13+$I$33*$M$19)/POWER(4*$T$33*$M$19,0.5))) -> 0 | S178: =IF((B178+$I$33*$M$19)/(POWER(4*$T$33*$M$19,0.5))>27,ERFC(27),ERFC((B178+$I$33*$M$19)/(POWER(4*$T$33*$M$19,0.5)))) -> 7.601232367e-172 | V178: =(2+$I$33/$C$39)*EXP(IF(($C$39*($C$39+$I$33)*$M$19+($C$39+$I$33)*B178)/$T$33>225,225,($C$39*($C$39+$I$33)*$M$19+($C$39+$I$33)*B178)/$T$33)) -> 1.040611288e+98 | Z178: =IF((B178+((2*$C$39+$I$33)*$M$19))/POWER(4*$T$33*$M$19,0.5)>27,ERFC(27),ERFC((B178+((2*$C$39+$I$33)*$M$19))/POWER(4*$T$33*$M$19,0.5))) -> 0 | AC178: =IF((B178+$M$13+((2*$C$39+$I$33)*$M$19))/POWER(4*$T$33*$M$19,0.5)>27,ERFC(27),ERFC((B178+$M$13+((2*$C$39+$I$33)*$M$19))/POWER(4*$T$33*$M$19,0.5))) -> 0 | AF178: 1.000217025 | AI178: 1.351213683e-10 | AK178: 1.351213683e-08 | AM178: 4.041516498e-08 | AO178: 4.041516498e-08 | AQ178: 4.041516498e-11
B179: 1320 | D179: 0.9974737464 | F179: 4.767883645 | I179: 1.553568932e-11 | L179: 19.90857478 | N179: 2.082737733e-174 | Q179: 0 | S179: 4.336837363e-177 | V179: 1.040611288e+98 | Z179: 0 | AC179: 0 | AF179: =1+($I$33/$C$39)*EXP($I$33*B179/$T$33) -> 1.00023828 | AI179: =0.5*D179*((I179-N179)+(AF179)*(Q179-S179)+V179*(Z179-($R$81*AC179))) -> 7.748221114e-12 | AK179: =$M$4*AI179 -> 7.748221114e-10 | AM179: =AI179*$M$25 -> 2.317513793e-09 | AO179: =AI179*$M$26 -> 2.317513793e-09 | AQ179: =AI179*$M$27 -> 2.317513793e-12
B180: =B179+$M$17/150 -> 1340 | D180: 0.9974737464 | F180: 5.070697468 | I180: 7.442518689e-13 | L180: 20.21138861 | N180: 1.086184188e-179 | Q180: 0 | S180: 2.060222671e-182 | V180: 1.040611288e+98 | Z180: 0 | AC180: 0 | AF180: 1.000261616 | AI180: 3.7118585e-13 | AK180: 3.7118585e-11 | AM180: 1.110226869e-10 | AO180: 1.110226869e-10 | AQ180: 1.110226869e-13
B181: 1360 | D181: 0.9974737464 | F181: 5.373511291 | I181: 2.977539885e-14 | L181: 20.51420243 | N181: 4.716532574e-185 | Q181: 0 | S181: 8.148997948e-188 | V181: 1.040611288e+98 | Z181: 0 | AC181: 0 | AF181: 1.000287238 | AI181: 1.485008932e-14 | AK181: 1.485008932e-12 | AM181: 4.441701691e-12 | AO181: 4.441701691e-12 | AQ181: 4.441701691e-15
B182: 1380 | D182: 0.9974737464 | F182: 5.676325113 | I182: 9.944982449e-16 | L182: 20.81701625 | N182: 1.705257053e-190 | Q182: 0 | S182: 2.683740508e-193 | V182: 1.040611288e+98 | Z182: 0 | AC182: 0 | AF182: 1.00031537 | AI182: 4.95992945e-16 | AK182: 4.95992945e-14 | AM182: 1.48352825e-13 | AO182: 1.48352825e-13 | AQ182: 1.48352825e-16
B183: 1400 | D183: 0.9974737464 | F183: 5.979138936 | I183: 2.772293497e-17 | L183: 21.11983007 | N183: 5.133361271e-196 | Q183: 0 | S183: 7.359028145e-199 | V183: 1.040611288e+98 | Z183: 0 | AC183: 0 | AF183: 1.000346256 | AI183: 1.38264499e-17 | AK183: 1.38264499e-15 | AM183: 4.135528386e-15 | AO183: 4.135528386e-15 | AQ183: 4.135528386e-18
B184: 1420 | D184: 0.9974737464 | F184: 6.281952759 | I184: 6.448507082e-19 | L184: 21.4226439 | N184: 1.286637431e-201 | Q184: 0 | S184: 1.680124675e-204 | V184: 1.040611288e+98 | Z184: 0 | AC184: 0 | AF184: 1.000380168 | AI184: 3.216108259e-19 | AK184: 3.216108259e-17 | AM184: 9.619466377e-17 | AO184: 9.619466377e-17 | AQ184: 9.619466377e-20
B185: 1440 | D185: 0.9974737464 | F185: 6.584766582 | I185: 1.251334332e-20 | L185: 21.72545772 | N185: 2.685038005e-207 | Q185: 0 | S185: 3.193752361e-210 | V185: 1.040611288e+98 | Z185: 0 | AC185: 0 | AF185: 1.0004174 | AI185: 6.240865718e-21 | AK185: 6.240865718e-19 | AM185: 1.866659736e-18 | AO185: 1.866659736e-18 | AQ185: 1.866659736e-21
B186: 1460 | D186: 0.9974737464 | F186: 6.887580404 | I186: 2.025360684e-22 | L186: 22.02827154 | N186: 4.665328443e-213 | Q186: 0 | S186: 5.054722605e-216 | V186: 1.040611288e+98 | Z186: 0 | AC186: 0 | AF186: 1.000458279 | AI186: 1.010122055e-22 | AK186: 1.010122055e-20 | AM186: 3.021302257e-20 | AO186: 3.021302257e-20 | AQ186: 3.021302257e-23
B187: 1480 | D187: 0.9974737464 | F187: 7.190394227 | I187: 2.733860368e-24 | L187: 22.33108537 | N187: 6.749152885e-219 | Q187: 0 | S187: 6.660817697e-222 | V187: 1.040611288e+98 | Z187: 0 | AC187: 0 | AF187: 1.000503162 | AI187: 1.363476972e-24 | AK187: 1.363476972e-22 | AM187: 4.078196326e-22 | AO187: 4.078196326e-22 | AQ187: 4.078196326e-25
B188: 1500 | D188: 0.9974737464 | F188: 7.49320805 | I188: 3.077041611e-26 | L188: 22.63389919 | N188: 8.129229406e-225 | Q188: 0 | S188: 7.307852272e-228 | V188: 1.040611288e+98 | Z188: 0 | AC188: 0 | AF188: 1.00055244 | AI188: 1.534634112e-26 | AK188: 1.534634112e-24 | AM188: 4.590131939e-24 | AO188: 4.590131939e-24 | AQ188: 4.590131939e-27
B189: 1520 | D189: 0.9974737464 | F189: 7.796021873 | I189: 2.887476885e-28 | L189: 22.93671301 | N189: 8.152305875e-231 | Q189: 0 | S189: 6.67547091e-234 | V189: 1.040611288e+98 | Z189: 0 | AC189: 0 | AF189: 1.000606545 | AI189: 1.440091193e-28 | AK189: 1.440091193e-26 | AM189: 4.307351525e-26 | AO189: 4.307351525e-26 | AQ189: 4.307351525e-29
B190: 1540 | D190: 0.9974737464 | F190: 8.098835696 | I190: 2.258825579e-30 | L190: 23.23952683 | N190: 6.806761125e-237 | Q190: 0 | S190: 5.076939827e-240 | V190: 1.040611288e+98 | Z190: 0 | AC190: 0 | AF190: 1.000665948 | AI190: 1.126559606e-30 | AK190: 1.126559606e-28 | AM190: 3.369570108e-28 | AO190: 3.369570108e-28 | AQ190: 3.369570108e-31
B191: 1560 | D191: 0.9974737464 | F191: 8.401649518 | I191: 1.472929423e-32 | L191: 23.54234066 | N191: 4.731812993e-243 | Q191: 0 | S191: 3.21475725e-246 | V191: 1.040611288e+98 | Z191: 0 | AC191: 0 | AF191: 1.000731169 | AI191: 7.346042148e-33 | AK191: 7.346042148e-31 | AM191: 2.197220982e-30 | AO191: 2.197220982e-30 | AQ191: 2.197220982e-33
B192: 1580 | D192: 0.9974737464 | F192: 8.704463341 | I192: 8.005283002e-35 | L192: 23.84515448 | N192: 2.738670535e-249 | Q192: 0 | S192: 1.694800503e-252 | V192: 1.040611288e+98 | Z192: 0 | AC192: 0 | AF192: 1.000802778 | AI192: 3.992529814e-35 | AK192: 3.992529814e-33 | AM192: 1.194176415e-32 | AO192: 1.194176415e-32 | AQ192: 1.194176415e-35
B193: 1600 | D193: 0.9974737464 | F193: 9.007277164 | I193: 3.626028907e-37 | L193: 24.1479683 | N193: 1.319700454e-255 | Q193: 0 | S193: 7.438946847e-259 | V193: 1.040611288e+98 | Z193: 0 | AC193: 0 | AF193: 1.0008814 | AI193: 1.808434319e-37 | AK193: 1.808434319e-35 | AM193: 5.40907573e-35 | AO193: 5.40907573e-35 | AQ193: 5.40907573e-38
B194: 1620 | D194: 0.9974737464 | F194: 9.310090987 | I194: 1.368715988e-39 | L194: 24.45078212 | N194: 5.294592924e-262 | Q194: 0 | S194: 2.718473496e-265 | V194: 1.040611288e+98 | Z194: 0 | AC194: 0 | AF194: 1.000967721 | AI194: 6.826291319e-40 | AK194: 6.826291319e-38 | AM194: 2.041762109e-37 | AO194: 2.041762109e-37 | AQ194: 2.041762109e-40
B195: 1640 | D195: 0.9974737464 | F195: 9.612904809 | I195: 4.305202443e-42 | L195: 24.75359595 | N195: 1.768519087e-268 | Q195: 0 | S195: 8.270997582e-272 | V195: 1.040611288e+98 | Z195: 0 | AC195: 0 | AF195: 1.001062497 | AI195: 2.147163205e-42 | AK195: 2.147163205e-40 | AM195: 6.422222945e-40 | AO195: 6.422222945e-40 | AQ195: 6.422222945e-43
B196: 1660 | D196: 0.9974737464 | F196: 9.915718632 | I196: 1.128353676e-44 | L196: 25.05640977 | N196: 4.918189872e-275 | Q196: 0 | S196: 2.095116866e-278 | V196: 1.040611288e+98 | Z196: 0 | AC196: 0 | AF196: 1.001166556 | AI196: 5.627515842e-45 | AK196: 5.627515842e-43 | AM196: 1.683205137e-42 | AO196: 1.683205137e-42 | AQ196: 1.683205137e-45
B197: 1680 | D197: 0.9974737464 | F197: 10.21853245 | I197: 2.464018373e-47 | L197: 25.35922359 | N197: 1.138721834e-281 | Q197: 0 | S197: 4.418497994e-285 | V197: 1.040611288e+98 | Z197: 0 | AC197: 0 | AF197: 1.001280805 | AI197: 1.228896819e-47 | AK197: 1.228896819e-45 | AM197: 3.675663466e-45 | AO197: 3.675663466e-45 | AQ197: 3.675663466e-48
B198: 1700 | D198: 0.9974737464 | F198: 10.52134628 | I198: 4.482985264e-50 | L198: 25.66203742 | N198: 2.19505461e-288 | Q198: 0 | S198: 7.758105057e-292 | V198: 1.040611288e+98 | Z198: 0 | AC198: 0 | AF198: 1.001406243 | AI198: 2.235830053e-50 | AK198: 2.235830053e-48 | AM198: 6.687427876e-48 | AO198: 6.687427876e-48 | AQ198: 6.687427876e-51
B199: 1720 | D199: 0.9974737464 | F199: 10.8241601 | I199: 6.795084242e-53 | L199: 25.96485124 | N199: 3.522791146e-295 | Q199: 0 | S199: 1.134096007e-298 | V199: 1.040611288e+98 | Z199: 0 | AC199: 0 | AF199: 1.001543967 | AI199: 3.388959068e-53 | AK199: 3.388959068e-51 | AM199: 1.01364678e-50 | AO199: 1.01364678e-50 | AQ199: 1.01364678e-53
B200: 1740 | D200: 0.9974737464 | F200: 11.12697392 | I200: 8.580402779e-56 | L200: 26.26766506 | N200: 4.706964881e-302 | Q200: 0 | S200: 1.380243759e-305 | V200: 1.040611288e+98 | Z200: 0 | AC200: 0 | AF200: 1.001695179 | AI200: 4.279363253e-56 | AK200: 4.279363253e-54 | AM200: 1.279969069e-53 | AO200: 1.279969069e-53 | AQ200: 1.279969069e-56
B201: 1760 | D201: 0.9974737464 | F201: 11.42978775 | I201: 9.025856076e-59 | L201: 26.57047888 | N201: 0 | Q201: 0 | S201: 0 | V201: 1.040611288e+98 | Z201: 0 | AC201: 0 | AF201: 1.0018612 | AI201: 4.501527237e-59 | AK201: 4.501527237e-57 | AM201: 1.346418914e-56 | AO201: 1.346418914e-56 | AQ201: 1.346418914e-59
B202: 1780 | D202: 0.9974737464 | F202: 11.73260157 | I202: 7.908988816e-62 | L202: 26.87329271 | N202: 0 | Q202: 0 | S202: 0 | V202: 1.040611288e+98 | Z202: 0 | AC202: 0 | AF202: 1.002043481 | AI202: 3.944504352e-62 | AK202: 3.944504352e-60 | AM202: 1.17981187e-59 | AO202: 1.17981187e-59 | AQ202: 1.17981187e-62
B203: 1800 | D203: 0.9974737464 | F203: 12.03541539 | I203: 5.772852612e-65 | L203: 27.17610653 | N203: 0 | Q203: 0 | S203: 0 | V203: 1.040611288e+98 | Z203: 0 | AC203: 0 | AF203: 1.002243614 | AI203: 2.879134461e-65 | AK203: 2.879134461e-63 | AM203: 8.611568677e-63 | AO203: 8.611568677e-63 | AQ203: 8.611568677e-66
B204: 1820 | D204: 0.9974737464 | F204: 12.33822921 | I204: 3.509806151e-68 | L204: 27.47892035 | N204: 0 | Q204: 0 | S204: 0 | V204: 1.040611288e+98 | Z204: 0 | AC204: 0 | AF204: 1.002463348 | AI204: 1.750469745e-68 | AK204: 1.750469745e-66 | AM204: 5.235702129e-66 | AO204: 5.235702129e-66 | AQ204: 5.235702129e-69
B205: 1840 | D205: 0.9974737464 | F205: 12.64104304 | I205: 1.777403886e-71 | L205: 27.78173418 | N205: 0 | Q205: 0 | S205: 0 | V205: 1.040611288e+98 | Z205: 0 | AC205: 0 | AF205: 1.002704601 | AI205: 8.864568565e-72 | AK205: 8.864568565e-70 | AM205: 2.651416321e-69 | AO205: 2.651416321e-69 | AQ205: 2.651416321e-72
B206: 1860 | D206: 0.9974737464 | F206: 12.94385686 | I206: 7.497000195e-75 | L206: 28.084548 | N206: 0 | Q206: 0 | S206: 0 | V206: 1.040611288e+98 | Z206: 0 | AC206: 0 | AF206: 1.002969483 | AI206: 3.739030436e-75 | AK206: 3.739030436e-73 | AM206: 1.118354068e-72 | AO206: 1.118354068e-72 | AQ206: 1.118354068e-75
B207: 1880 | D207: 0.9974737464 | F207: 13.24667068 | I207: 2.633760005e-78 | L207: 28.38736182 | N207: 0 | Q207: 0 | S207: 0 | V207: 1.040611288e+98 | Z207: 0 | AC207: 0 | AF207: 1.003260306 | AI207: 1.31355323e-78 | AK207: 1.31355323e-76 | AM207: 3.92887307e-76 | AO207: 3.92887307e-76 | AQ207: 3.92887307e-79
B208: 1900 | D208: 0.9974737464 | F208: 13.54948451 | I208: 7.706226492e-82 | L208: 28.69017564 | N208: 0 | Q208: 0 | S208: 0 | V208: 1.040611288e+98 | Z208: 0 | AC208: 0 | AF208: 1.003579611 | AI208: 3.843379305e-82 | AK208: 3.843379305e-80 | AM208: 1.149565096e-79 | AO208: 1.149565096e-79 | AQ208: 1.149565096e-82
B209: 1920 | D209: 0.9974737464 | F209: 13.85229833 | I209: 1.877908912e-85 | L209: 28.99298947 | N209: 0 | Q209: 0 | S209: 0 | V209: 1.040611288e+98 | Z209: 0 | AC209: 0 | AF209: 1.003930189 | AI209: 9.365824188e-86 | AK209: 9.365824188e-84 | AM209: 2.801343227e-83 | AO209: 2.801343227e-83 | AQ209: 2.801343227e-86
B210: 1940 | D210: =EXP(-0.693/$M$6*$M$19) -> 0.9974737464 | F210: =(B210-$M$13-($I$33*$M$19))/POWER(4*$T$33*$M$19,0.5) -> 14.15511215 | I210: =IF(F210>0,ERFC(IF(F210<27,F210,27)),1+ERF(IF(-F210<27,-F210,27))) -> 3.811231823e-89 | L210: =(B210-($M$19*$I$33))/POWER(4*$T$33*$M$19,0.5) -> 29.29580329 | N210: =IF(L210>0,ERFC(IF(L210<27,L210,27)),1+ERF(IF(-L210<27,-L210,27))) -> 0 | Q210: =IF((B210+$M$13+$I$33*$M$19)/POWER(4*$T$33*$M$19,0.5)>27,ERFC(27),ERFC((B210+$M$13+$I$33*$M$19)/POWER(4*$T$33*$M$19,0.5))) -> 0 | S210: =IF((B210+$I$33*$M$19)/(POWER(4*$T$33*$M$19,0.5))>27,ERFC(27),ERFC((B210+$I$33*$M$19)/(POWER(4*$T$33*$M$19,0.5)))) -> 0 | V210: =(2+$I$33/$C$39)*EXP(IF(($C$39*($C$39+$I$33)*$M$19+($C$39+$I$33)*B210)/$T$33>225,225,($C$39*($C$39+$I$33)*$M$19+($C$39+$I$33)*B210)/$T$33)) -> 1.040611288e+98 | Z210: =IF((B210+((2*$C$39+$I$33)*$M$19))/POWER(4*$T$33*$M$19,0.5)>27,ERFC(27),ERFC((B210+((2*$C$39+$I$33)*$M$19))/POWER(4*$T$33*$M$19,0.5))) -> 0 | AC210: =IF((B210+$M$13+((2*$C$39+$I$33)*$M$19))/POWER(4*$T$33*$M$19,0.5)>27,ERFC(27),ERFC((B210+$M$13+((2*$C$39+$I$33)*$M$19))/POWER(4*$T$33*$M$19,0.5))) -> 0 | AF210: 1.004315101 | AI210: 1.900801842e-89 | AK210: 1.900801842e-87 | AM210: 5.685349479e-87 | AO210: 5.685349479e-87 | AQ210: 5.685349479e-90
B211: 1960 | D211: 0.9974737464 | F211: 14.45792597 | I211: 6.441778251e-93 | L211: 29.59861711 | N211: 0 | Q211: 0 | S211: 0 | V211: 1.040611288e+98 | Z211: 0 | AC211: 0 | AF211: 1.00473771 | AI211: 3.212752343e-93 | AK211: 3.212752343e-91 | AM211: 9.609428742e-91 | AO211: 9.609428742e-91 | AQ211: 9.609428742e-94
B212: 1980 | D212: 0.9974737464 | F212: 14.7607398 | I212: 9.067503458e-97 | L212: 29.90143093 | N212: 0 | Q212: 0 | S212: 0 | V212: 1.040611288e+98 | Z212: 0 | AC212: 0 | AF212: 1.005201709 | AI212: 4.522298322e-97 | AK212: 4.522298322e-95 | AM212: 1.352631602e-94 | AO212: 1.352631602e-94 | AQ212: 1.352631602e-97
B213: 2000 | D213: 0.9974737464 | F213: 15.06355362 | I213: 1.062927676e-100 | L213: 30.20424476 | N213: 0 | Q213: 0 | S213: 0 | V213: 1.040611288e+98 | Z213: 0 | AC213: 0 | AF213: 1.00571115 | AI213: 5.301212254e-101 | AK213: 5.301212254e-99 | AM213: 1.585606856e-98 | AO213: 1.585606856e-98 | AQ213: 1.585606856e-101
B214: 2020 | D214: 0.9974737464 | F214: 15.36636744 | I214: 1.037639844e-104 | L214: 30.50705858 | N214: 0 | Q214: 0 | S214: 0 | V214: 1.040611288e+98 | Z214: 0 | AC214: 0 | AF214: 1.006270484 | AI214: 5.175092515e-105 | AK214: 5.175092515e-103 | AM214: 1.547884102e-102 | AO214: 1.547884102e-102 | AQ214: 1.547884102e-105
B215: 2040 | D215: 0.9974737464 | F215: 15.66918126 | I215: 8.435480505e-109 | L215: 30.8098724 | N215: 0 | Q215: 0 | S215: 0 | V215: 1.040611288e+98 | Z215: 0 | AC215: 0 | AF215: 1.006884599 | AI215: 4.207085171e-109 | AK215: 4.207085171e-107 | AM215: 1.2583505e-106 | AO215: 1.2583505e-106 | AQ215: 1.2583505e-109
B216: 2060 | D216: 0.9974737464 | F216: 15.97199509 | I216: 5.710668788e-113 | L216: 31.11268623 | N216: 0 | Q216: 0 | S216: 0 | V216: 1.040611288e+98 | Z216: 0 | AC216: 0 | AF216: 1.007558857 | AI216: 2.848121095e-113 | AK216: 2.848121095e-111 | AM216: 8.518806865e-111 | AO216: 8.518806865e-111 | AQ216: 8.518806865e-114
B217: 2080 | D217: 0.9974737464 | F217: 16.27480891 | I217: 3.219379152e-117 | L217: 31.41550005 | N217: 0 | Q217: 0 | S217: 0 | V217: 1.040611288e+98 | Z217: 0 | AC217: 0 | AF217: 1.008299151 | AI217: 1.605623092e-117 | AK217: 1.605623092e-115 | AM217: 4.80246189e-115 | AO217: 4.80246189e-115 | AQ217: 4.80246189e-118
B218: 2100 | D218: 0.9974737464 | F218: 16.57762273 | I218: 1.511331255e-121 | L218: 31.71831387 | N218: 0 | Q218: 0 | S218: 0 | V218: 1.040611288e+98 | Z218: 0 | AC218: 0 | AF218: 1.009111948 | AI218: 7.537566243e-122 | AK218: 7.537566243e-120 | AM218: 2.254506354e-119 | AO218: 2.254506354e-119 | AQ218: 2.254506354e-122
B219: 2120 | D219: 0.9974737464 | F219: 16.88043656 | I219: 5.908051273e-126 | L219: 32.02112769 | N219: 0 | Q219: 0 | S219: 0 | V219: 1.040611288e+98 | Z219: 0 | AC219: 0 | AF219: 1.010004347 | AI219: 2.946563019e-126 | AK219: 2.946563019e-124 | AM219: 8.813249308e-124 | AO219: 8.813249308e-124 | AQ219: 8.813249308e-127
B220: 2140 | D220: 0.9974737464 | F220: 17.18325038 | I220: 1.923184089e-130 | L220: 32.32394152 | N220: 0 | Q220: 0 | S220: 0 | V220: 1.040611288e+98 | Z220: 0 | AC220: 0 | AF220: 1.010984146 | AI220: 9.591628192e-131 | AK220: 9.591628192e-129 | AM220: 2.868881812e-128 | AO220: 2.868881812e-128 | AQ220: 2.868881812e-131
B221: 2160 | D221: 0.9974737464 | F221: 17.4860642 | I221: 5.212963496e-135 | L221: 32.62675534 | N221: 0 | Q221: 0 | S221: 0 | V221: 1.040611288e+98 | Z221: 0 | AC221: 0 | AF221: 1.012059903 | AI221: 2.599897114e-135 | AK221: 2.599897114e-133 | AM221: 7.776362255e-133 | AO221: 7.776362255e-133 | AQ221: 7.776362255e-136
B222: 2180 | D222: 0.9974737464 | F222: 17.78887802 | I222: 1.176606365e-139 | L222: 32.92956916 | N222: 0 | Q222: 0 | S222: 0 | V222: 1.040611288e+98 | Z222: 0 | AC222: 0 | AF222: 1.013241018 | AI222: 5.868169794e-140 | AK222: 5.868169794e-138 | AM222: 1.755185382e-137 | AO222: 1.755185382e-137 | AQ222: 1.755185382e-140
B223: 2200 | D223: 0.9974737464 | F223: 18.09169185 | I223: 2.2113428e-144 | L223: 33.23238299 | N223: 0 | Q223: 0 | S223: 0 | V223: 1.040611288e+98 | Z223: 0 | AC223: 0 | AF223: 1.014537807 | AI223: 1.102878194e-144 | AK223: 1.102878194e-142 | AM223: 3.298738366e-142 | AO223: 3.298738366e-142 | AQ223: 3.298738366e-145
B224: 2220 | D224: 0.9974737464 | F224: 18.39450567 | I224: 3.460630384e-149 | L224: 33.53519681 | N224: 0 | Q224: 0 | S224: 0 | V224: 1.040611288e+98 | Z224: 0 | AC224: 0 | AF224: 1.015961601 | AI224: 1.725943977e-149 | AK224: 1.725943977e-147 | AM224: 5.162344897e-147 | AO224: 5.162344897e-147 | AQ224: 5.162344897e-150
B225: 2240 | D225: 0.9974737464 | F225: 18.69731949 | I225: 4.509461924e-154 | L225: 33.83801063 | N225: 0 | Q225: 0 | S225: 0 | V225: 1.040611288e+98 | Z225: 0 | AC225: 0 | AF225: 1.017524836 | AI225: 2.24903494e-154 | AK225: 2.24903494e-152 | AM225: 6.726924047e-152 | AO225: 6.726924047e-152 | AQ225: 6.726924047e-155
B226: 2260 | D226: 0.9974737464 | F226: 19.00013332 | I226: 4.892838458e-159 | L226: 34.14082445 | N226: 0 | Q226: 0 | S226: 0 | V226: 1.040611288e+98 | Z226: 0 | AC226: 0 | AF226: 1.019241171 | AI226: 2.440238953e-159 | AK226: 2.440238953e-157 | AM226: 7.298820399e-157 | AO226: 7.298820399e-157 | AQ226: 7.298820399e-160
B227: 2280 | D227: 0.9974737464 | F227: 19.30294714 | I227: 4.420385366e-164 | L227: 34.44363828 | N227: 0 | Q227: 0 | S227: 0 | V227: 1.040611288e+98 | Z227: 0 | AC227: 0 | AF227: 1.0211256 | AI227: 2.204609176e-164 | AK227: 2.204609176e-162 | AM227: 6.594045391e-162 | AO227: 6.594045391e-162 | AQ227: 6.594045391e-165
B228: 2300 | D228: 0.9974737464 | F228: 19.60576096 | I228: 3.325210249e-169 | L228: 34.7464521 | N228: 0 | Q228: 0 | S228: 0 | V228: 1.040611288e+98 | Z228: 0 | AC228: 0 | AF228: 1.023194584 | AI228: 1.658404962e-169 | AK228: 1.658404962e-167 | AM228: 4.960333884e-167 | AO228: 4.960333884e-167 | AQ228: 4.960333884e-170
B229: 2320 | D229: 0.9974737464 | F229: 19.90857478 | I229: 2.082737733e-174 | L229: 35.04926592 | N229: 0 | Q229: 0 | S229: 0 | V229: 1.040611288e+98 | Z229: 0 | AC229: 0 | AF229: 1.025466198 | AI229: 1.038738105e-174 | AK229: 1.038738105e-172 | AM229: 3.106893633e-172 | AO229: 3.106893633e-172 | AQ229: 3.106893633e-175
B230: 2340 | D230: 0.9974737464 | F230: 20.21138861 | I230: 1.086184188e-179 | L230: 35.35207974 | N230: 0 | Q230: 0 | S230: 0 | V230: 1.040611288e+98 | Z230: 0 | AC230: 0 | AF230: 1.027960289 | AI230: 5.417201054e-180 | AK230: 5.417201054e-178 | AM230: 1.620299418e-177 | AO230: 1.620299418e-177 | AQ230: 1.620299418e-180
B231: 2360 | D231: 0.9974737464 | F231: 20.51420243 | I231: 4.716532574e-185 | L231: 35.65489357 | N231: 0 | Q231: 0 | S231: 0 | V231: 1.040611288e+98 | Z231: 0 | AC231: 0 | AF231: 1.030698644 | AI231: 2.352308708e-185 | AK231: 2.352308708e-183 | AM231: 7.035818668e-183 | AO231: 7.035818668e-183 | AQ231: 7.035818668e-186
B232: 2380 | D232: 0.9974737464 | F232: 20.81701625 | I232: 1.705257053e-190 | L232: 35.95770739 | N232: 0 | Q232: 0 | S232: 0 | V232: 1.040611288e+98 | Z232: 0 | AC232: 0 | AF232: 1.033705186 | AI232: 8.504745708e-191 | AK232: 8.504745708e-189 | AM232: 2.543792335e-188 | AO232: 2.543792335e-188 | AQ232: 2.543792335e-191
B233: 2400 | D233: 0.9974737464 | F233: 21.11983007 | I233: 5.133361271e-196 | L233: 36.26052121 | N233: 0 | Q233: 0 | S233: 0 | V233: 1.040611288e+98 | Z233: 0 | AC233: 0 | AF233: 1.03700618 | AI233: 2.560196549e-196 | AK233: 2.560196549e-194 | AM233: 7.657616797e-194 | AO233: 7.657616797e-194 | AQ233: 7.657616797e-197
B234: 2420 | D234: 0.9974737464 | F234: 21.4226439 | I234: 1.286637431e-201 | L234: 36.56333504 | N234: 0 | Q234: 0 | S234: 0 | V234: 1.040611288e+98 | Z234: 0 | AC234: 0 | AF234: 1.040630465 | AI234: 6.416935294e-202 | AK234: 6.416935294e-200 | AM234: 1.91932262e-199 | AO234: 1.91932262e-199 | AQ234: 1.91932262e-202
B235: 2440 | D235: 0.9974737464 | F235: 21.72545772 | I235: 2.685038005e-207 | L235: 36.86614886 | N235: 0 | Q235: 0 | S235: 0 | V235: 1.040611288e+98 | Z235: 0 | AC235: 0 | AF235: 1.044609703 | AI235: 1.339127459e-207 | AK235: 1.339127459e-205 | AM235: 4.005366278e-205 | AO235: 4.005366278e-205 | AQ235: 4.005366278e-208
B236: 2460 | D236: 0.9974737464 | F236: 22.02827154 | I236: 4.665328443e-213 | L236: 37.16896268 | N236: 0 | Q236: 0 | S236: 0 | V236: 1.040611288e+98 | Z236: 0 | AC236: 0 | AF236: 1.048978656 | AI236: 2.32677132e-213 | AK236: 2.32677132e-211 | AM236: 6.959435653e-211 | AO236: 6.959435653e-211 | AQ236: 6.959435653e-214
B237: 2480 | D237: 0.9974737464 | F237: 22.33108537 | I237: 6.749152885e-219 | L237: 37.4717765 | N237: 0 | Q237: 0 | S237: 0 | V237: 1.040611288e+98 | Z237: 0 | AC237: 0 | AF237: 1.053775493 | AI237: 3.366051406e-219 | AK237: 3.366051406e-217 | AM237: 1.006795037e-216 | AO237: 1.006795037e-216 | AQ237: 1.006795037e-219
B238: 2500 | D238: 0.9974737464 | F238: 22.63389919 | I238: 8.129229406e-225 | L238: 37.77459033 | N238: 0 | Q238: 0 | S238: 0 | V238: 1.040611288e+98 | Z238: 0 | AC238: 0 | AF238: 1.059042119 | AI238: 4.054346455e-225 | AK238: 4.054346455e-223 | AM238: 1.212665939e-222 | AO238: 1.212665939e-222 | AQ238: 1.212665939e-225
B239: 2520 | D239: 0.9974737464 | F239: 22.93671301 | I239: 8.152305875e-231 | L239: 38.07740415 | N239: 0 | Q239: 0 | S239: 0 | V239: 1.040611288e+98 | Z239: 0 | AC239: 0 | AF239: 1.064824544 | AI239: 4.065855542e-231 | AK239: 4.065855542e-229 | AM239: 1.216108337e-228 | AO239: 1.216108337e-228 | AQ239: 1.216108337e-231
B240: 2540 | D240: 0.9974737464 | F240: 23.23952683 | I240: 6.806761125e-237 | L240: 38.38021797 | N240: 0 | Q240: 0 | S240: 0 | V240: 1.040611288e+98 | Z240: 0 | AC240: 0 | AF240: 1.071173284 | AI240: 3.39478276e-237 | AK240: 3.39478276e-235 | AM240: 1.015388662e-234 | AO240: 1.015388662e-234 | AQ240: 1.015388662e-237
... 23 more rows

Sheet OutputJury 2 (hidden)
A1: 2008-02-27
E3: Solution of Jury 2 equation with time fixed and depth varies
F6: =IF('Alt-GPL Calc for VOCs'!$I$13>IntercalsJury1!$M$30*1000,"Warning: Input soil concentration exceeds maximum allowed"," ") -> 
F27: =IF('Alt-GPL Calc for VOCs'!$I$13>IntercalsJury1!$M$30*1000,"Warning: Input soil concentration exceeds maximum allowed"," ") -> 
F47: =IF('Alt-GPL Calc for VOCs'!$I$13>IntercalsJury1!$M$30*1000,"Warning: Input soil concentration exceeds maximum allowed"," ") -> 
F68: =IF('Alt-GPL Calc for VOCs'!$I$13>IntercalsJury1!$M$30*1000,"Warning: Input soil concentration exceeds maximum allowed"," ") -> 
F90: =IF('Alt-GPL Calc for VOCs'!$I$13>IntercalsJury1!$M$30*1000,"Warning: Input soil concentration exceeds maximum allowed"," ") -> 
